{"text_format":"1","workbook":"xlsx","n_sheets":2,"sheets":["1. INFORMACION ACUMULADA","Tipo"],"not_rendered":{"charts":0,"images":1,"macros":1,"external_links":0,"defined_names":15,"comments":0,"pivot_tables":0},"unopened":[],"bounds":{"document_bytes":16777216,"sheet_cells":100000,"rows_first":2000,"rows_last":500,"rows_between":2000,"halvings":0,"cell_chars":16384,"cell_head_chars":4096},"cells_cut":0,"cells_raw":0,"read":"whole","date_system":"1900"}

{"sheet":"1. INFORMACION ACUMULADA","index":0,"n_rows":342,"n_cols":40,"rows_kept":342,"cut":false,"hidden":false,"merged":[[330,22,330,24],[6,36,6,39],[7,36,7,39],[8,36,8,39],[9,36,9,39],[1,0,1,38],[2,0,2,38],[4,0,4,3],[4,8,4,10],[5,0,5,3],[5,8,5,10],[5,34,5,35],[5,36,5,39],[6,0,6,3],[6,8,6,10],[6,34,6,35],[7,34,7,35],[11,2,11,3],[11,8,11,12],[11,15,11,20],[10,0,10,20],[8,34,8,35],[9,34,9,35],[10,28,10,33],[10,34,10,37],[10,21,10,27]]}
[]
["INFORMACIÓN GESTION CONTRACTUAL"]
["DEL 1 DE ENERO AL 31 DE DICIEMBRE DE 2023"]
[]
["1. Entidad",null,null,null,"Alcaldia Local La Candelaria ",null,null,"2. Sector","Gobierno"]
["3. Presupuesto Disponible Inversión Directa PREDIS (BOGDATA)",null,null,null,32049065123,null,null,"5. Presupuesto Disponible Funcionamiento PREDIS (BOGDATA)",3155737493,null,null,null,null,null,null,null,null,null,null,null,null,null,null,null,null,null,null,null,null,null,null,null,null,null,"7. Nombre de quien diligencia el formato",null,"PAULA ANDREA VILLOTA DELGADO\n"]
["4. Presupuesto Comprometido de Inversión Directa según PREDIS (BOGDATA)",null,null,null,32038450914,null,null,"6. Presupuesto Comprometido Funcionamiento según PREDIS (BOGDATA)",3124954130,null,null,null,null,null,null,null,null,null,null,null,null,null,null,null,null,null,null,null,null,null,null,null,null,null,"Cargo",null,"AUXILIAR ADMINISTRATIVO\n"]
[null,null,null,null,null,null,null,null,null,null,null,null,null,null,null,null,null,null,null,null,null,null,null,null,null,null,null,null,null,null,null,null,null,null,"Dependencia",null,"CONTRATACION\n"]
[null,null,null,null,null,null,null,null,null,null,null,null,null,null,null,null,null,null,null,null,null,null,null,null,null,null,null,null,null,null,null,null,null,null,"Teléfono",null,"3143208836\n"]
[null,null,null,null,null,null,null,null,null,null,null,null,null,null,null,null,null,null,null,null,null,null,null,null,null,null,null,null,null,null,null,null,null,null,"Correo Electrónico",null,"paula.villota@gobiernobogota.gov.co\n"]
[0,null,null,null,null,null,null,null,null,null,null,null,null,null,null,null,null,null,null,null,null,"2- INFORMACION FINANCIERA",null,null,null,null,null,null,"3 - PLAZOS ",null,null,null,null,null,"4. CESION",null,null,null,"5. ESTADO","6. %  Avance y/o cumplimiento"]
[1,2,3,null,4,5,6,7,8,null,null,null,null,9,10,11,null,null,null,null,null,12,13,14,15,16,17,18,19,20,21,22,23,24,25,26,27,28,29,30]
["Número Contrato","Año","Número de proceso contractual \nSECOP","Link proceso SECOP","Tipo de contrato ","Modalidad de Selección","Procedimiento o causal","Objeto","Afectación","Plan de Desarrollo Distrital","Número Programa","Equivalencia número de programa","Propósito","Número Proyecto","Número de proponentes","Número  de Identificación del contratista\n(Cédula o NIT sin puntos, comas ni caracteres especiales y sin digito de verificación)","Nombre del contratista\n  (según el caso: nombres y apellidos o Razón social y Tipo societario)","Naturaleza Jurídica","Número  de Identificación del integrante del Consorcio o U.T.\n(Cédula o NIT sin puntos, comas ni caracteres especiales y sin digito de verificación)","Nombre del Integrante del Consorcio o U.T. y Tipo societario\n (Según el caso: nombres y apellidos o razón social y tipo societario)","% Participación (indicar solo el numero del porcentaje, sin caracteres especiales)","Vigencias futuras","Valor Inicial del contrato","Valor total reducciones \n(En valor negativo)","Número de adiciones","Valor total de adiciones ","Valor Final ","Giros (Valor en pesos)","Fecha de suscripción (DD/MM/AAAA)","Fecha de inicio (DD/MM/AAAA)","Fecha de terminación (DD/MM/AAAA)","Plazo en días","Número de prórrogas","Prorroga en días","Número  de Identificación del cesionario\n(NIT sin digito de verificación)","Nombre cesionario","Fecha cesión\n(DD/MM/AAAA)","Valor cesión","Estado","% Avance y/o Cumplimiento"]
["FDLC-CPS-001-2023",2023,"FDLC-CPS-001-2023","https://community.secop.gov.co/Public/Tendering/OpportunityDetail/Index?noticeUID=CO1.NTC.3742036&isFromPublicArea=True&isModal=true&asPopupView=true","Contrato de Prestación de Servicios Profesionales y de Apoyo a la gestión","CONTRATACION DIRECTA","No aplica","PRESTAR SERVICIOS PROFESIONALES ESPECIALIZADOS AL FONDO DE DESARROLLO LOCAL DE LA CANDELARIA PARA APOYAR LA COORDINACIÓN DE LA GESTIÓN CONTRACTUAL DE LA ENTIDAD Y DEMÁS ASUNTOS QUE SE REQUIERAN","INVERSION",null,null,null,null,"O23011605570000002021",1,1140864695,"JAVIER DE JESUS TRESPALACIOS QUINTERO","PERSONA NATURAL",null,"NO APLICA","NO APLICA",null,88770000,null,2,20175002,{"$f":"+W14+X14+Z14","v":108945002},85811000,"2023-01-12","2023-01-12","2024-02-26",330,2,75,"N/A","N/A","N/A",null,"EJECUCION",{"$f":"IF(ISERROR(AB14/AA14),\"-\",(AB14/AA14))","v":0.78765430652798551}]
["FDLC-CPS-002-2023",2023,"FDLC-CPS-002-2023","https://community.secop.gov.co/Public/Tendering/OpportunityDetail/Index?noticeUID=CO1.NTC.3741867&isFromPublicArea=True&isModal=true&asPopupView=true","Contrato de Prestación de Servicios Profesionales y de Apoyo a la gestión","CONTRATACION DIRECTA","No aplica","APOYAR AL ALCALDE SA LOCAL EN LA PROMOCIÓNACOMPAÑAMIENTO COORDINACIÓN Y ATENCIÓN DE LASINSTANCIAS DE COORDINACIÓN INTERINSTITUCIONALES Y LASINSTANCIAS DE PARTICIPACIÓN LOCALES ASÍ COMO LOS PROCESOSCOMUNITARIOS EN LA LOCALIDAD","INVERSION",null,null,null,null,"O23011605550000002019",1,1106786140,"MONICA ANDREA LEAL DIAZ","PERSONA NATURAL",null,"NO APLICA","NO APLICA",null,77000000,null,"N/A",21000000,{"$f":"+W15+X15+Z15","v":98000000},74200000,"2023-01-12","2023-01-13","2024-03-12",330,"N/A",90,"N/A","N/A","N/A",null,"EJECUCION",{"$f":"IF(ISERROR(AB15/AA15),\"-\",(AB15/AA15))","v":0.75714285714285712}]
["FDLC-CPS-003-2023",2023,"FDLC-CPS-003-2023","https://community.secop.gov.co/Public/Tendering/OpportunityDetail/Index?noticeUID=CO1.NTC.3741491&isFromPublicArea=True&isModal=true&asPopupView=true","Contrato de Prestación de Servicios Profesionales y de Apoyo a la gestión","CONTRATACION DIRECTA","No aplica","PRESTAR SERVICIOS ASISTENCIALES AL ÁREA DE GESTIÓN DE DESARROLLO LOCAL EN LAS ACTIVIDADES DE GESTIÓN ADMINISTRATIVA","INVERSION",null,null,null,null,"O23011605570000002021",1,79648784,"JOSE RENE AGUIIRE TIJARO","PERSONA NATURAL",null,"NO APLICA","NO APLICA",null,29700000,null,2,14850002,44550002,28710000,"2023-01-12","2023-01-12","2024-05-26",330,2,150,"N/A","N/A","N/A",null,"EJECUCION",0.64444441551315756]
["FDLC-CPS-004-2023",2023,"FDLC-CPS-004-2023","https://community.secop.gov.co/Public/Tendering/OpportunityDetail/Index?noticeUID=CO1.NTC.3742215&isFromPublicArea=True&isModal=true&asPopupView=true","Contrato de Prestación de Servicios Profesionales y de Apoyo a la gestión","CONTRATACION DIRECTA","No aplica","PRESTAR SERVICIOS DE APOYO EN LAS ACTIVIDADES DE PROTECCIÓN CUIDADO Y CONSERVACIÓN DE LA MALLA VIAL COMO COMPONENTE PATRIMONIAL DE LA CANDELARIA","INVERSION",null,null,null,null,"O23011604490000002020",1,52854525,"ESPERANZA BUITRAGO LOAIZA","PERSONA NATURAL",null,"NO APLICA","NO APLICA",null,9250000,null,"N/A",0,9250000,9250000,"2023-01-12","2023-01-13","2023-06-12",150,"N/A","N/A","N/A","N/A","N/A",null,"TERMINADO",1]
["FDLC-CPS-005-2023",2023,"FDLC-CPS-005-2023","https://community.secop.gov.co/Public/Tendering/OpportunityDetail/Index?noticeUID=CO1.NTC.3741592&isFromPublicArea=True&isModal=true&asPopupView=true","Contrato de Prestación de Servicios Profesionales y de Apoyo a la gestión","CONTRATACION DIRECTA","No aplica","PRESTAR SERVICIOS PROFESIONALES DE APOYO EN LA COORDINACIÓN DE LAS CASAS COMUNITARIAS DE LA LOCALIDAD DE LA CANDELARIA DE CONFORMIDAD CON EL ACUERDO LOCAL 006 DE 2013","INVERSION",null,null,null,null,"O23011605570000002021",1,69027208,"MARIA TERESA BECERRA","PERSONA NATURAL",null,"NO APLICA","NO APLICA",null,49654000,null,"N/A",0,49654000,43334400,"2023-01-12","2023-01-13","2023-12-12",330,"N/A","N/A","N/A","N/A","N/A",null,"TERMINADO",0.87272727272727268]
["FDLC-CPS-006-2023",2023,"FDLC-CPS-006-2023","https://community.secop.gov.co/Public/Tendering/OpportunityDetail/Index?noticeUID=CO1.NTC.3741914&isFromPublicArea=True&isModal=true&asPopupView=true","Contrato de Prestación de Servicios Profesionales y de Apoyo a la gestión","CONTRATACION DIRECTA","No aplica","PRESTAR SERVICIOS DE APOYO EN LA EMISORA VIRTUAL DE LAALCALDÍA LOCAL DE LA CANDELARIA","INVERSION",null,null,null,null,"O23011605570000002021",1,14250858,"RICARDO ABEL ROLDAN CORREA","PERSONA NATURAL",null,"NO APLICA","NO APLICA",null,27500000,null,2,13750002,41250002,26500000,"2023-01-12","2023-01-13","2024-05-27",330,2,165,"N/A","N/A","N/A",null,"EJECUCION",0.64242421127640192]
["FDLC-CPS-007-2023",2023,"FDLC-CPS-007-2023","https://community.secop.gov.co/Public/Tendering/OpportunityDetail/Index?noticeUID=CO1.NTC.3743811&isFromPublicArea=True&isModal=true&asPopupView=true","Contrato de Prestación de Servicios Profesionales y de Apoyo a la gestión","CONTRATACION DIRECTA","No aplica","PRESTACIÓN DE SERVICIOS DE APOYO AL ÁREA DE GESTIÓN DEDESARROLLO LOCAL DE LA ALCALDÍA LOCAL DE LA CANDELARIAPARA PROMOVER LA GESTIÓN Y LAS CONVOCATORIAS REALIZADASPOR LA ALCALDÍA LOCAL EN BENEFICIO DE LA COMUNIDAD","INVERSION",null,null,null,null,"O23011605570000002021",1,41621560,"NELLY PARRA TOCORA","PERSONA NATURAL",null,"NO APLICA","NO APLICA",null,29975000,null,2,14987502,44962502,28885000,"2023-01-12","2023-01-13","2024-05-27",330,2,165,"N/A","N/A","N/A",null,"EJECUCION",0.64242421384824178]
["FDLC-CPS-008-2023",2023,"FDLC-CPS-008-2023","https://community.secop.gov.co/Public/Tendering/OpportunityDetail/Index?noticeUID=CO1.NTC.3742129&isFromPublicArea=True&isModal=true&asPopupView=true","Contrato de Prestación de Servicios Profesionales y de Apoyo a la gestión","CONTRATACION DIRECTA","No aplica","PRESTAR SERVICIOS PROFESIONALES AL FONDO DE DESARROLLO LOCAL DE LA CANDELARIA COMO ABOGADO DE APOYO AL DESPACHO DE EL YO LA ALCALDE SA LOCAL EN LAS DIFERENTES ACTIVIDADES Y FUNCIONES QUE LE SEAN ASIGNADAS","INVERSION",null,null,null,null,"O23011605570000002021",1,52314352,"CONSTANZA DEL PILAR LEYTON RICO","PERSONA NATURAL",null,"NO APLICA","NO APLICA",null,77000000,null,1,21000001,98000001,74200000,"2023-01-12","2023-01-13","2024-03-12",330,1,90,"N/A","N/A","N/A",null,"EJECUCION",0.75714284941690968]
["FDLC-CPS-009-2023",2023,"FDLC-CPS-009-2023","https://community.secop.gov.co/Public/Tendering/OpportunityDetail/Index?noticeUID=CO1.NTC.3741768&isFromPublicArea=True&isModal=true&asPopupView=true","Contrato de Prestación de Servicios Profesionales y de Apoyo a la gestión","CONTRATACION DIRECTA","No aplica","PRESTACIÓN DE SERVICIOS PROFESIONALES AL FONDO DE DESARROLLO LOCAL DE LA CANDELARIA PARA ATENDER LAS PETICIONES QUEJAS RECLAMOS YO SOLICITUDES PRESENTADAS POR LA CIUDADANÍA DE CONFORMIDAD CON LOS TÉRMINOS LEGALES ESTABLECIDOS Y APOYAR LAS RESPUESTAS REQUERIDAS POR LOS ENTES DE CONTROL","INVERSION",null,null,null,null,"O23011605570000002021",1,52514816,"LILIANA BASTIDAS LINARES","PERSONA NATURAL",null,"NO APLICA","NO APLICA",null,40000000,null,1,5000001,45000001,45000000,"2023-01-12","2023-01-13","2023-10-12",240,1,30,"N/A","N/A","N/A",null,"TERMINADO",0.99999997777777827]
["FDLC-CPS-010-2023",2023,"FDLC-CPS-010-2023","https://community.secop.gov.co/Public/Tendering/OpportunityDetail/Index?noticeUID=CO1.NTC.3742124&isFromPublicArea=True&isModal=true&asPopupView=true","Contrato de Prestación de Servicios Profesionales y de Apoyo a la gestión","CONTRATACION DIRECTA","No aplica","PRESTAR SERVICIOS PROFESIONALES AL FONDO DE DESARROLLO LOCAL DE LA CANDELARIA COMO ADMINISTRADOR DE RED LOCAL YCOMO ENLACE CON LA SECRETARÍA DISTRITAL DE GOBIERNO BRINDANDO SOPORTE EN MATERIA DE SISTEMAS SOFTWARE Y HARDWARE A LOS USUARIOS INTERNOS Y EXTERNOS DE LA ENTIDAD","INVERSION",null,null,null,null,"O23011605570000002021",1,79814029,"AGUSTIN LARA BELTRAN","PERSONA NATURAL",null,"NO APLICA","NO APLICA",null,66000000,null,2,33000002,99000002,63600000,"2023-01-12","2023-01-13","2024-05-27",330,2,165,"N/A","N/A","N/A",null,"EJECUCION",0.64242422944597521]
["FDLC-CPS-011-2023",2023,"FDLC-CPS-011-2023","https://community.secop.gov.co/Public/Tendering/OpportunityDetail/Index?noticeUID=CO1.NTC.3741798&isFromPublicArea=True&isModal=true&asPopupView=true","Contrato de Prestación de Servicios Profesionales y de Apoyo a la gestión","CONTRATACION DIRECTA","No aplica","PRESTAR SERVICIOS DE APOYO ADMINISTRATIVO Y ASISTENCIAL AL FONDO DE DESARROLLO LOCAL DE LA CANDELARIA EN EL CENTRO DE INFORMACIÓN Y DOCUMENTACIÓN CDI PARA LA NOTIFICACIÓN DE CORRESPONDENCIA DE LA ENTIDAD","INVERSION",null,null,null,null,"O23011605570000002021",1,1026283437,"JOSE LUIS RINCÓN JIMENEZ","PERSONA NATURAL",null,"NO APLICA","NO APLICA",null,27500000,null,"N/A",0,27500000,26500000,"2023-01-12","2023-01-13","2023-12-12",330,"N/A","N/A","N/A","N/A","N/A",null,"TERMINADO",0.96363636363636362]
["FDLC-CPS-012-2023",2023,"FDLC-CPS-012-2023","https://community.secop.gov.co/Public/Tendering/OpportunityDetail/Index?noticeUID=CO1.NTC.3742218&isFromPublicArea=True&isModal=true&asPopupView=true","Contrato de Prestación de Servicios Profesionales y de Apoyo a la gestión","CONTRATACION DIRECTA","No aplica","PRESTAR SERVICIOS DE APOYO AL FONDO DE DESARROLLO LOCALDE LA CANDELARIA COMO CONDUCTORA DE LOS VEHÍCULOS ACARGO DE LA ENTIDAD","INVERSION",null,null,null,null,"O23011605570000002021",1,79976012,"OSCAR JAVIER BEJARANO MENDEZ ","PERSONA NATURAL",null,"NO APLICA","NO APLICA",null,27500000,null,2,13750002,{"$f":"+W25+X25+Z25","v":41250002},26500000,"2023-01-12","2023-01-13","2024-05-27",330,2,165,93086512,"CESION DE BLADIMIR OVIEDO RUIZ","2023-06-23",null,"EJECUCION",0.64242421127640192]
["FDLC-CPS-013-2023",2023,"FDLC-CPS-013-2023","https://community.secop.gov.co/Public/Tendering/OpportunityDetail/Index?noticeUID=CO1.NTC.3744720&isFromPublicArea=True&isModal=true&asPopupView=true","Contrato de Prestación de Servicios Profesionales y de Apoyo a la gestión","CONTRATACION DIRECTA","No aplica","PRESTAR SERVICIOS PROFESIONALES AL FONDO DE DESARROLLOLOCAL DE LA CANDELARIA EN LOS TRÁMITES RELACIONADOS CONLOS PROCESOS PRECONTRACTUALES CONTRACTUALES Y POSCONTRACTUALES QUE SE ADELANTEN A TRAVÉS DE SECOP I Y II ASÍCOMO LA ADQUISICIÓN DE BIENES Y SERVICIOS A TRAVÉS DE LATIENDA VIRTUAL DEL ESTADO COLOMBIANO","INVERSION",null,null,null,null,"O23011605570000002021",1,1128272452,"ALVARO ANDRES GONZALEZ SAAVEDRA ","PERSONA NATURAL",null,"NO APLICA","NO APLICA",null,69300000,null,2,18900002,{"$f":"+W26+X26+Z26","v":88200002},66780000,"2023-01-12","2023-01-13","2024-03-12",330,2,60,9690552,"CESION  DE GUSTAVO ALFONSO MARTINEZ BADILLO","2023-12-14",null,"EJECUCION",0.75714283997408527]
["FDLC-CPS-014-2023",2023,"FDLC-CPS-014-2023","https://community.secop.gov.co/Public/Tendering/OpportunityDetail/Index?noticeUID=CO1.NTC.3746747&isFromPublicArea=True&isModal=true&asPopupView=true","Contrato de Prestación de Servicios Profesionales y de Apoyo a la gestión","CONTRATACION DIRECTA","No aplica","PRESTAR SERVICIOS DE APOYO AL FONDO DE DESARROLLO LOCAL DE LA CANDELARIA COMO CONDUCTORA DE LOS VEHÍCULOS A CARGO DE LA ENTIDAD Y APOYO LOGÍSTICO QUE LE SEAN ASIGNADOS","INVERSION",null,null,null,null,"O23011605570000002021",1,91238879,"VICTOR MANUEL ORTIZ CARDENAS","PERSONA NATURAL",null,"NO APLICA","NO APLICA",null,29920000,null,2,14960002,44880002,28832000,"2023-01-12","2023-01-13","2024-05-27",330,2,165,"N/A","N/A","N/A",null,"EJECUCION",0.64242421379571235]
["FDLC-CPS-015-2023",2023,"FDLC-CPS-015-2023","https://community.secop.gov.co/Public/Tendering/OpportunityDetail/Index?noticeUID=CO1.NTC.3755149&isFromPublicArea=True&isModal=true&asPopupView=true","Contrato de Prestación de Servicios Profesionales y de Apoyo a la gestión","CONTRATACION DIRECTA","No aplica","PRESTACIÓN DE SERVICIOS PROFESIONALES AL FONDO DEDESARROLLO LOCAL DE LA CANDELARIA PARA ATENDER LASPETICIONES QUEJAS RECLAMOS YO SOLICITUDES PRESENTADASPOR LA CIUDADANÍA DE CONFORMIDAD CON LOS TÉRMINOSLEGALES ESTABLECIDOS Y APOYAR LAS RESPUESTAS REQUERIDASPOR LOS ENTES DE CONTROL","INVERSION",null,null,null,null,"O23011605570000002021",1,79331453,"EMELINO TAPIA MATURANA","PERSONA NATURAL",null,"NO APLICA","NO APLICA",null,40000000,null,2,10000002,50000002,50000000,"2023-01-13","2023-01-16","2023-11-15",240,2,60,"N/A","N/A","N/A",null,"TERMINADO",0.99999996000000158]
["FDLC-CPS-016-2023",2023,"FDLC-CPS-016-2023","https://community.secop.gov.co/Public/Tendering/OpportunityDetail/Index?noticeUID=CO1.NTC.3755614&isFromPublicArea=True&isModal=true&asPopupView=true","Contrato de Prestación de Servicios Profesionales y de Apoyo a la gestión","CONTRATACION DIRECTA","No aplica","PRESTAR SERVICIOS DE APOYO EN LAS ACTIVIDADES DEPROTECCIÓN CUIDADO Y CONSERVACIÓN DE LA MALLA VIAL COMOCOMPONENTE PATRIMONIAL DE LA CANDELARIA","INVERSION",null,null,null,null,"O23011604490000002020",1,1001281981,"YEISON ESMIK GOMEZ HERNANDEZ","PERSONA NATURAL",null,"NO APLICA","NO APLICA",null,9250000,null,"N/A",0,9250000,8325000,"2023-01-13","2023-01-16","2023-06-15",150,"N/A","N/A","N/A","N/A","N/A",null,"TERMINADO",0.9]
["FDLC-CPS-017-2023",2023,"FDLC-CPS-017-2023","https://community.secop.gov.co/Public/Tendering/OpportunityDetail/Index?noticeUID=CO1.NTC.3758351&isFromPublicArea=True&isModal=true&asPopupView=true","Contrato de Prestación de Servicios Profesionales y de Apoyo a la gestión","CONTRATACION DIRECTA","No aplica","PRESTAR SERVICIOS PROFESIONALES PARA APOYAR EN LA FORMULACION TECNICA Y SEGUIMIENTOS DE PLANES POLITICAS PROGRAMAS Y PROYECTOS RELACIONADOS CON OBRAS E INFRAESTRUCTURA QUE DESARROLLE LA ALCALDIA LOCAL DE LA CANDELARIA","INVERSION",null,null,null,null,"O23011604490000002020",1,1014240286,"JORGE ALBERTO OJEDA GONZALEZ","PERSONA NATURAL",null,"NO APLICA","NO APLICA",null,27084000,null,"N/A",0,27084000,23773733,"2023-01-13","2023-01-16","2023-06-23",180,"N/A","N/A","N/A","N/A","N/A",null,"TERMINADO",0.87777776547038844]
["FDLC-CPS-018-2023",2023,"FDLC-CPS-018-2023","https://community.secop.gov.co/Public/Tendering/OpportunityDetail/Index?noticeUID=CO1.NTC.3753375&isFromPublicArea=True&isModal=true&asPopupView=true","Contrato de Prestación de Servicios Profesionales y de Apoyo a la gestión","CONTRATACION DIRECTA","No aplica","PRESTAR SERVICIOS DE APOYO ADMINISTRATIVO Y ASISTENCIAL AL FONDO DE DESARROLLO LOCAL DE LA CANDELARIA EN EL CENTRO DE INFORMACIÓN Y DOCUMENTACIÓN CDI PARA LA NOTIFICACIÓN DE CORRESPONDENCIA DE LA ENTIDAD","INVERSION",null,null,null,null,"O23011605570000002021",1,79651770,"MARBYN ALFONSO SABOGAL SANCHEZ","PERSONA NATURAL",null,"NO APLICA","NO APLICA",null,27500000,null,2,13750002,41250002,26250000,"2023-01-13","2023-01-16","2024-05-30",330,2,165,"N/A","N/A","N/A",null,"EJECUCION",0.63636360550964333]
["FDLC-CPS-019-2023",2023,"FDLC-CPS-019-2023","https://community.secop.gov.co/Public/Tendering/OpportunityDetail/Index?noticeUID=CO1.NTC.3752451&isFromPublicArea=True&isModal=true&asPopupView=true","Contrato de Prestación de Servicios Profesionales y de Apoyo a la gestión","CONTRATACION DIRECTA","No aplica","APOYAR AL EQUIPO DE PRENSA Y COMUNICACIONES DE LA ALCALDÍA LOCAL EN LA REALIZACIÓN Y PUBLICACIÓN DE CONTENIDOS DE REDES SOCIALES Y CANALES DE DIVULGACIÓN DIGITAL SITIO WEB DE LA ALCALDÍA LOCAL","INVERSION",null,null,null,null,"O23011605570000002021",1,1022931048,"ADRIANA MARITZA GARAVITO GARCIA","PERSONA NATURAL",null,"NO APLICA","NO APLICA",null,57200000,null,2,28600002,85800002,54600000,"2023-01-16","2023-01-16","2024-05-30",330,2,165,"N/A","N/A","N/A",null,"EJECUCION",0.63636362152998549]
["FDLC-CPS-020-2023",2023,"FDLC-CPS-020-2023","https://community.secop.gov.co/Public/Tendering/OpportunityDetail/Index?noticeUID=CO1.NTC.3755172&isFromPublicArea=True&isModal=true&asPopupView=true","Contrato de Prestación de Servicios Profesionales y de Apoyo a la gestión","CONTRATACION DIRECTA","No aplica","PRESTAR SERVICIOS PROFESIONALES ESPECIALIZADOS AL FONDO DE DESARROLLO LOCAL DE LA CANDELARIA EN EL DESPACHO DE LA ALCALDESA LOCAL EN LA ORIENTACIÓN DE ASUNTOS JURÍDICOS Y ADMINISTRATIVOS QUE SE REQUIERAN ASÍ COMO EN LA INTERLOCUCIÓN CON LOS ACTORES SOCIALES Y POLÍTICOS DE LA LOCALIDAD","INVERSION",null,null,null,null,"O23011605570000002021",1,80239278,"JOHN FREDY PULIDO RINCON","PERSONA NATURAL",null,"NO APLICA","NO APLICA",null,88770000,null,"N/A",0,88770000,85542000,"2023-01-13","2023-01-13","2023-12-12",330,"N/A","N/A","N/A","N/A","N/A",null,"TERMINADO",0.96363636363636362]
["FDLC-CPS-021-2023",2023,"FDLC-CPS-021-2023","https://community.secop.gov.co/Public/Tendering/OpportunityDetail/Index?noticeUID=CO1.NTC.3759573&isFromPublicArea=True&isModal=true&asPopupView=true","Contrato de Prestación de Servicios Profesionales y de Apoyo a la gestión","CONTRATACION DIRECTA","No aplica","PRESTAR SERVICIOS PROFESIONALES COMO ABOGADO DE APOYO A LA IDENTIFICACIÓN ANÁLISIS REPARTO Y SEGUIMIENTO DE EXPEDIENTES PROCESALES EN EL ÁREA DE GESTIÓN POLICIVA DE LA ALCALDÍA LOCAL DE LACANDELARIA","INVERSION",null,null,null,null,"O23011605570000002023",1,1010178744,"YENNI LORENA INFANTE GARCIA ","PERSONA NATURAL",null,"NO APLICA","NO APLICA",null,66000000,null,"N/A",0,66000000,62600000,"2023-01-16","2023-01-18","2023-12-17",330,"N/A","N/A",1032356337,"CESION DE ANDRES FERNANDO RIVERA SOLINA","2023-03-16",null,"TERMINADO",0.94848484848484849]
["FDLC-CPS-022-2023",2023,"FDLC-CPS-022-2023","https://community.secop.gov.co/Public/Tendering/OpportunityDetail/Index?noticeUID=CO1.NTC.3758462&isFromPublicArea=True&isModal=true&asPopupView=true","Contrato de Prestación de Servicios Profesionales y de Apoyo a la gestión","CONTRATACION DIRECTA","No aplica","PRESTAR SERVICIOS PROFESIONALES PARA APOYAR EN LA FORMULACIÓN TÉCNICA Y SEGUIMIENTOS DE PLANES POLÍTICAS PROGRAMAS Y PROYECTOS RELACIONADOS CON OBRAS E INFRAESTRUCTURA QUE DESARROLLE LA ALCALDÍA LOCAL DE LA CANDELARIA","INVERSION",null,null,null,null,"O23011604490000002020",1,1014267890,"BRYAN FELIPE PRIETO MANZANO ","PERSONA NATURAL",null,"NO APLICA","NO APLICA",null,27084000,null,"N/A",0,27084000,23773733,"2023-01-13","2023-01-16","2023-06-23",150,"N/A","N/A",1030548945,"CESION  DE JOSE DUVAN ARIAS NARANJO","2023-01-26",null,"TERMINADO",0.87777776547038844]
["FDLC-CPS-023-2023",2023,"FDLC-CPS-023-2023","https://community.secop.gov.co/Public/Tendering/OpportunityDetail/Index?noticeUID=CO1.NTC.3767233&isFromPublicArea=True&isModal=true&asPopupView=true","Contrato de Prestación de Servicios Profesionales y de Apoyo a la gestión","CONTRATACION DIRECTA","No aplica","PRESTAR SERVICIOS PROFESIONALES PARA APOYAR EN LA FORMULACION PRESENTACIÓN EVALUACIÓN Y SEGUIMIENTO JURÍDICO DE LOS PROYECTOS DE INVERSION DE LA ALCALDÍA LOCAL DE LA CANDELARIA","INVERSION",null,null,null,null,"O23011605570000002021",1,80120031,"LUIS ALFONSO ORJUELA ORTIZ","PERSONA NATURAL",null,"NO APLICA","NO APLICA",null,36112000,null,1,9028001,45140001,36112000,"2023-01-20","2023-01-24","2023-11-23",240,1,60,"N/A","N/A","NA",null,"TERMINADO",0.79999998227735969]
["FDLC-CPS-024-2023",2023,"FDLC-CPS-024-2023","https://community.secop.gov.co/Public/Tendering/OpportunityDetail/Index?noticeUID=CO1.NTC.3759713&isFromPublicArea=True&isModal=true&asPopupView=true","Contrato de Prestación de Servicios Profesionales y de Apoyo a la gestión","CONTRATACION DIRECTA","No aplica","PRESTAR SERVICIOS PROFESIONALES AL FONDO DE DESARROLLO LOCAL DE LA CANDELARIA PARA APOYAR EN LA FORMULACION PRESENTACIÓN EVALUACIÓN Y SEGUIMIENTO DE LOS PROYECTOS DE INVERSION EN LA LOCALIDAD","INVERSION",null,null,null,null,"O23011605570000002021",1,1078826087,"TATIANA NIYIRIT MORENO QUINTERO","PERSONA NATURAL",null,"NO APLICA","NO APLICA",null,27084000,null,"N/A",0,27084000,15046066,"2023-01-16","2023-01-18","2023-07-15",180,"N/A","N/A",52219649," CESION DE INDIRA BETANCOURT MACUASE","2023-04-28",null,"TERMINADO",0.55553337763993504]
["FDLC-CPS-025-2023",2023,"FDLC-CPS-025-2023","https://community.secop.gov.co/Public/Tendering/OpportunityDetail/Index?noticeUID=CO1.NTC.3770950&isFromPublicArea=True&isModal=true&asPopupView=true","Contrato de Prestación de Servicios Profesionales y de Apoyo a la gestión","CONTRATACION DIRECTA","No aplica","PRESTAR SERVICIOS DE APOYO EN LAS ACTIVIDADES DE PROTECCIÓN CUIDADO Y CONSERVACIÓN DE LA MALLA VIAL COMO COMPONENTE PATRIMONIAL DE LA CANDELARIA","INVERSION",null,null,null,null,"O23011604490000002020",1,1000832141,"LAURA CATALINA MORA NIETO","PERSONA NATURAL",null,"NO APLICA","NO APLICA",null,9250000,null,"N/A",0,9250000,9250000,"2023-01-16","2023-01-18","2023-06-17",150,"N/A","N/A","N/A","N/A","N/A",null,"TERMINADO",1]
["FDLC-CPS-026-2023",2023,"FDLC-CPS-026-2023","https://community.secop.gov.co/Public/Tendering/OpportunityDetail/Index?noticeUID=CO1.NTC.3765575&isFromPublicArea=True&isModal=true&asPopupView=true","Contrato de Prestación de Servicios Profesionales y de Apoyo a la gestión","CONTRATACION DIRECTA","No aplica","PRESTAR SERVICIOS PROFESIONALES AL FONDO DE DESARROLLO LOCAL DE LA CANDELARIA EN LOS TRÁMITES RELACIONADOS CON LOS PROCESOS PRECONTRACTUALES CONTRACTUALES Y POS CONTRACTUALES QUE SE ADELANTEN A TRAVÉS DE SECOP I Y II ASÍ COMO LA ADQUISICIÓN DE BIENES Y SERVICIOS A TRAVÉS DE LA TIENDA VIRTUAL DEL ESTADO COLOMBIANO","INVERSION",null,null,null,null,"O23011605570000002021",1,1032456470,"DIANA CATHERINE GONZALEZ MOLANO","PERSONA NATURAL",null,"NO APLICA","NO APLICA",null,69300000,-36330000,"N/A",0,32970000,32970000,"2023-01-16","2023-01-16","2023-06-22",330,"N/A","N/A","N/A","N/A","N/A",null,"TERMINADO",1]
["FDLC-CPS-027-2023",2023,"FDLC-CPS-027-2023","https://community.secop.gov.co/Public/Tendering/OpportunityDetail/Index?noticeUID=CO1.NTC.3767128&isFromPublicArea=True&isModal=true&asPopupView=true","Contrato de Prestación de Servicios Profesionales y de Apoyo a la gestión","CONTRATACION DIRECTA","No aplica","PRESTAR SERVICIOS PROFESIONALES AL FONDO DE DESARROLLO LOCAL DE LA CANDELARIA EN LOS TRÁMITES RELACIONADOS CON LOS PROCESOS PRECONTRACTUALES CONTRACTUALES Y POS CONTRACTUALES QUE SE ADELANTEN A TRAVÉS DE SECOP I Y II ASÍ COMO LA ADQUISICIÓN DE BIENES Y SERVICIOS A TRAVÉS DE LA TIENDA VIRTUAL DEL ESTADO COLOMBIANO","INVERSION",null,null,null,null,"O23011605570000002021",1,1032363826,"PAOLA ANDREA PADILLA AYARZA","PERSONA NATURAL",null,"NO APLICA","NO APLICA",null,77000000,null,1,14000001,{"$f":"+W40+X40+Z40","v":91000001},73500000,"2023-01-16","2023-01-16","2024-02-15",150,1,60,"N/A","N/A","N/A",null,"TERMINADO",0.80769229881656812]
["FDLC-CPS-028-2023",2023,"FDLC-CPS-028-2023","https://community.secop.gov.co/Public/Tendering/OpportunityDetail/Index?noticeUID=CO1.NTC.3770456&isFromPublicArea=True&isModal=true&asPopupView=true","Contrato de Prestación de Servicios Profesionales y de Apoyo a la gestión","CONTRATACION DIRECTA","No aplica","PRESTAR SERVICIOS PROFESIONALES ESPECIALIZADOS PARA APOYAR JURÍDICAMENTE AL FONDO DE DESARROLLO LOCAL DE LA CANDELARIA EN LA EJECUCIÓN DE LAS FASES PRECONTRACTUAL CONTRACTUAL Y POSCONTRACTUAL DE LOS PLANES PROGRAMAS Y PROYECTOS DE INFRAESTRUCTURA","INVERSION",null,null,null,null,"O23011604490000002020",1,1018418431,"CARLOS EDUARDO LINARES CASTELLANOS","PERSONA NATURAL",null,"NO APLICA","NO APLICA",null,88770000,null,1,24210001,112980001,84735000,"2023-01-16","2023-01-16","2024-03-14",330,1,90,"N/A","N/A","N/A",null,"EJECUCION",0.74999999336165701]
["FDLC-CPS-029-2023",2023,"FDLC-CPS-029-2023","https://community.secop.gov.co/Public/Tendering/OpportunityDetail/Index?noticeUID=CO1.NTC.3767508&isFromPublicArea=True&isModal=true&asPopupView=true","Contrato de Prestación de Servicios Profesionales y de Apoyo a la gestión","CONTRATACION DIRECTA","No aplica","PRESTAR SERVICIOS PROFESIONALES PARA REALIZAR LA COORDINACION TÉCNICA Y OPERATIVA DEL SEGUIMIENTO DE PLANES POLÍTICAS PROGRAMAS Y PROYECTOS DE INFRAESTRUCTURA Y OBRAS CIVILES QUE DESARROLLE LA ALCALDÍA LOCAL DE LA CANDELARIA EN EL MARCO DEL PLAN DE DESARROLLO LOCAL 20212024","INVERSION",null,null,null,null,"O23011604490000002020",1,1049626361,"FABIAN HUMBERTO SALAMANCA JIMENEZ","PERSONA NATURAL",null,"NO APLICA","NO APLICA",null,56000000,null,2,14000002,70000002,73266667,"2023-01-16","2023-01-17","2024-01-16",240,2,120,"N/A","N/A","N/A",null,"TERMINADO",1.0466666415238102]
["FDLC-CPS-030-2023",2023,"FDLC-CPS-030-2023","https://community.secop.gov.co/Public/Tendering/OpportunityDetail/Index?noticeUID=CO1.NTC.3767199&isFromPublicArea=True&isModal=true&asPopupView=true","Contrato de Prestación de Servicios Profesionales y de Apoyo a la gestión","CONTRATACION DIRECTA","No aplica","PRESTAR SERVICIOS ASISTENCIALES ALÁREA DE GESTIÓN DE DESARROLLO LOCAL EN LOS PROCESOS RELACIONADOS CON LASACTIVIDADES DE GESTION ADMINISTRATIVA DE LA ALCALDÍA LOCAL DE LA CANDELARIA","INVERSION",null,null,null,null,"O23011605570000002021",1,1024462041,"EULER GIOVANNY GAVIRIA SANCHEZ","PERSONA NATURAL",null,"NO APLICA","NO APLICA",null,26400000,0,1,2400001,28800001,25120000,"2023-01-16","2023-01-17","2024-01-16",330,1,30,"N/A","N/A","N/A",null,"TERMINADO",0.87222219193672945]
["FDLC-CPS-031-2023",2023,"FDLC-CPS-031-2023","https://community.secop.gov.co/Public/Tendering/OpportunityDetail/Index?noticeUID=CO1.NTC.3767569&isFromPublicArea=True&isModal=true&asPopupView=true","Contrato de Prestación de Servicios Profesionales y de Apoyo a la gestión","CONTRATACION DIRECTA","No aplica","PRESTAR SERVICIOS PROFESIONALES PARA APOYAR AL ALCALDE LOCAL DE LA CANDELARIA EN LA GESTIÓN DE LOS ASUNTOS RELACIONADOS CON SEGURIDAD CIUDADANA CONVIVENCIA Y PREVENCIÓN DE CONFLICTIVIDADES VIOLENCIAS Y DELITOS EN LA LOCALIDAD DE CONFORMIDAD CON EL MARCO NORMATIVO APLICABLE EN LA MATERIA","INVERSION",null,null,null,null,"O23011605570000002021",1,1102807537,"JOSE MARIA CONDE AREVALO","PERSONA NATURAL",null,"NO APLICA","NO APLICA",null,77000000,0,1,7000001,84000001,72800000,"2023-01-17","2023-01-19","2024-01-18",330,1,30,"N/A","N/A","N/A",null,"TERMINADO",0.86666665634920648]
["FDLC-CPS-032-2023",2023,"FDLC-CPS-032-2023","https://community.secop.gov.co/Public/Tendering/OpportunityDetail/Index?noticeUID=CO1.NTC.3769353&isFromPublicArea=True&isModal=true&asPopupView=true","Contrato de Prestación de Servicios Profesionales y de Apoyo a la gestión","CONTRATACION DIRECTA","No aplica","PRESTAR SERVICIOS PROFESIONALES EN EL DESPACHO DE LA ALCALDÍA LOCAL DE LA CANDELARIA PARA EL SEGUIMIENTO JURÍDICO EN MATERIA DE CONTRATACIÓN ESTATAL A LOS PROCESOS DE FORMULACIÓN EJECUCIÓN CONTROL DE POLÍTICAS PLANES Y PROGRAMAS DE INVERSIÓN EN EL MARCO DEL PLAN DE DESARROLLO LOCAL","INVERSION",null,null,null,null,"O23011605570000002021",1,1010198763,"CARLOS MAURICIO PALOMAR COVALEDA","PERSONA NATURAL",null,"NO APLICA","NO APLICA",null,77000000,null,1,14000001,91000001,73500000,"2023-01-16","2023-01-16","2024-02-15",330,1,60,"N/A","N/A","N/A",null,"TERMINADO",0.80769229881656812]
["FDLC-CPS-033-2023",2023,"FDLC-CPS-033-2023","https://community.secop.gov.co/Public/Tendering/OpportunityDetail/Index?noticeUID=CO1.NTC.3770798&isFromPublicArea=True&isModal=true&asPopupView=true","Contrato de Prestación de Servicios Profesionales y de Apoyo a la gestión","CONTRATACION DIRECTA","No aplica","PRESTAR SERVICIOS ESPECIALIZADOS DE PLANEACIÓN ESTRATÉGICA EN EL DESPACHO DE LA ALCALDÍA LOCAL DE LA CANDELARIA PARA LA COORDINACIÓN FORMULACIÓN EJECUCIÓN Y CONTROL DE POLÍTICAS PLANES Y PROGRAMAS DE INVERSIÓN EN EL MARCO DEL CUMPLIMIENTO DEL PLAN DE DESARROLLO LOCAL","INVERSION",null,null,null,null,"O23011605570000002021",1,1026255127,"DELIO ALCIBIADES LADINO PEÑA","PERSONA NATURAL",null,"NO APLICA","NO APLICA",null,88770000,null,1,24210001,112980001,84735000,"2023-01-16","2023-01-16","2024-03-15",330,1,90,"N/A","N/A","N/A",null,"EJECUCION",0.74999999336165701]
["FDLC-CPS-034-2023",2023,"FDLC-CPS-034-2023","https://community.secop.gov.co/Public/Tendering/OpportunityDetail/Index?noticeUID=CO1.NTC.3781966&isFromPublicArea=True&isModal=true&asPopupView=true","Contrato de Prestación de Servicios Profesionales y de Apoyo a la gestión","CONTRATACION DIRECTA","No aplica","PRESTAR SERVICIOS DE APOYO EN LAS ACTIVIDADES DE SEGURIDADY CONVIVENCIA CIUDADANA DE ACUERDO A LAS NECESIDADES YESTRATEGIAS DE LA ALCALDÍA LOCAL DE LA CANDELARIA","INVERSION",null,null,null,null,"O23011605570000002021",1,39781586,"ALEXI NORVEI OSORIO RUIZ","PERSONA NATURAL",null,"NO APLICA","NO APLICA",null,20680000,null,"N/A",0,20680000,19614667,"2023-01-17","2023-01-18","2023-12-17",330,"N/A","N/A","N/A","N/A","N/A",null,"TERMINADO",0.94848486460348158]
["FDLC-CPS-035-2023",2023,"FDLC-CPS-035-2023","https://community.secop.gov.co/Public/Tendering/OpportunityDetail/Index?noticeUID=CO1.NTC.3773156&isFromPublicArea=True&isModal=true&asPopupView=true","Contrato de Prestación de Servicios Profesionales y de Apoyo a la gestión","CONTRATACION DIRECTA","No aplica","PRESTAR SERVICIOS PROFESIONALES AL FONDO DE DESARROLLOLOCAL DE LA CANDELARIA EN LA PLANEACIÓN SEGUIMIENTO YEJECUCIÓN DE LAS ACTIVIDADES AMBIENTALES EN CUMPLIMIENTODE LAS METAS DEL PLAN DE DESARROLLO LOCAL","INVERSION",null,null,null,null,"O23011605570000002021",1,1013628927,"DAISSY TATIANA FAJARDO VELASCO","PERSONA NATURAL",null,"NO APLICA","NO APLICA",null,66000000,null,1,18000001,84000001,62800000,"2023-01-17","2023-01-17","2024-03-16",330,1,90,"N/A","N/A","N/A",null,"EJECUCION",0.74761903871882096]
["FDLC-CPS-036-2023",2023,"FDLC-CPS-036-2023","https://community.secop.gov.co/Public/Tendering/OpportunityDetail/Index?noticeUID=CO1.NTC.3773179&isFromPublicArea=True&isModal=true&asPopupView=true","Contrato de Prestación de Servicios Profesionales y de Apoyo a la gestión","CONTRATACION DIRECTA","No aplica","PRESTAR SERVICIOS DE APOYO TÉCNICO AL FONDO DEDESARROLLO LOCAL DE LA CANDELARIA EN LOS PROCEDIMIENTOSADMINISTRATIVOS Y OPERATIVOS QUE LE SEAN ASIGNADOS","INVERSION",null,null,null,null,"O23011605570000002021",1,93118919,"ALFONSO CASTAÑEDA BUSTAMANTE","PERSONA NATURAL",null,"NO APLICA","NO APLICA",null,13685000,null,"N/A",0,13685000,13685000,"2023-01-18","2023-01-19","2023-06-18",150,"N/A","N/A","N/A","N/A","N/A",null,"TERMINADO",1]
["FDLC-CPS-037-2023",2023,"FDLC-CPS-037-2023","https://community.secop.gov.co/Public/Tendering/OpportunityDetail/Index?noticeUID=CO1.NTC.3773270&isFromPublicArea=True&isModal=true&asPopupView=true","Contrato de Prestación de Servicios Profesionales y de Apoyo a la gestión","CONTRATACION DIRECTA","No aplica","PRESTAR LOS SERVICIOS PROFESIONALES PARA APOYAR EN ELCUBRIMIENTO ELABORACIÓN DIFUSIÓN GESTIÓN Y PUBLICACIÓNDE CONTENIDOS INSTITUCIONALES Y MATERIAL GRÁFICO DECOMUNICACIÓN EN LAS REDES SOCIALES HERRAMIENTASINSTITUCIONALES DE COMUNICACIÓN Y PÁGINA WEB DE LA ALCALDÍALOCAL DE LA CANDELARIA","INVERSION",null,null,null,null,"O23011605570000002021",1,1032488659,"KEVIN SEBASTIAN MELO RIVERA","PERSONA NATURAL",null,"NO APLICA","NO APLICA",null,56793000,null,2,10326002,67119002,54039400,"2023-01-17","2023-01-17","2024-02-16",330,2,60,"N/A","N/A","N/A",null,"TERMINADO",0.80512818113713913]
["FDLC-CPS-038-2023",2023,"FDLC-CPS-038-2023","https://community.secop.gov.co/Public/Tendering/OpportunityDetail/Index?noticeUID=CO1.NTC.3771845&isFromPublicArea=True&isModal=true&asPopupView=true","Contrato de Prestación de Servicios Profesionales y de Apoyo a la gestión","CONTRATACION DIRECTA","No aplica","PRESTAR SERVICIOS DE APOYO TÉCNICO AL FONDO DE DESARROLLO LOCAL DE LA CANDELARIA PARA APOYAR EN LA IMPLEMENTACIÓN CARGA MANEJO VALIDACIÓN Y ACTUALIZACIÓN DE LA INFORMACIÓN REQUERIDA EN EL APLICATIVO SIPSE LOCAL Y DEMÁS APLICATIVOS DE GESTIÓN LOCAL","INVERSION",null,null,null,null,"O23011605570000002021",1,1014177764,"EDGAR OSWALDO NAVARRETE VANEGAS","PERSONA NATURAL",null,"NO APLICA","NO APLICA",null,34100000,null,1,3100001,37200001,32550000,"2023-01-16","2023-01-16","2024-05-30",330,1,30,"N/A","N/A","N/A",null,"EJECUCION",0.87499997647849526]
["FDLC-CPS-039-2023",2023,"FDLC-CPS-039-2023","https://community.secop.gov.co/Public/Tendering/OpportunityDetail/Index?noticeUID=CO1.NTC.3777240&isFromPublicArea=True&isModal=true&asPopupView=true","Contrato de Prestación de Servicios Profesionales y de Apoyo a la gestión","CONTRATACION DIRECTA","No aplica","PRESTAR SERVICIOS DE APOYO EN LAS ACTIVIDADES DE SEGURIDAD Y CONVIVENCIA CIUDADANA DE ACUERDO A LAS NECESIDADES Y ESTRATEGIAS DE LA ALCALDÍA LOCAL DE LA CANDELARIA","INVERSION",null,null,null,null,"O23011605570000002021",1,1051654292,"TITO JOSE MUTIS VALEST","PERSONA NATURAL",null,"NO APLICA","NO APLICA",null,20680000,null,2,10340002,31020002,19552000,"2023-01-17","2023-01-19","2024-06-03",330,2,165,"N/A","N/A","N/A",null,"EJECUCION",0.63030298966453968]
["FDLC-CPS-040-2023",2023,"FDLC-CPS-040-2023","https://community.secop.gov.co/Public/Tendering/OpportunityDetail/Index?noticeUID=CO1.NTC.3781329&isFromPublicArea=True&isModal=true&asPopupView=true","Contrato de Prestación de Servicios Profesionales y de Apoyo a la gestión","CONTRATACION DIRECTA","No aplica","PRESTACIÓN DE SERVICIOS DE APOYO TÉCNICO AL FONDO DE DESARROLLO LOCAL DE LA CANDELARIA EN LOS ASUNTOS RELACIONADOS CON LOS PROCESOS DEL ALMACÉN DE LA ENTIDAD","INVERSION",null,null,null,null,"O23011605570000002021",1,12139994,"JUAN CARLOS PUENTES NARVAEZ","PERSONA NATURAL",null,"NO APLICA","NO APLICA",null,42900000,0,2,21450002,64350002,40820000,"2023-01-17","2023-01-17","2024-05-31",330,2,165,"N/A","N/A","N/A",null,"EJECUCION",0.63434341462802135]
["FDLC-CPS-041-2023",2023,"FDLC-CPS-041-2023","https://community.secop.gov.co/Public/Tendering/OpportunityDetail/Index?noticeUID=CO1.NTC.3781837&isFromPublicArea=True&isModal=true&asPopupView=true","Contrato de Prestación de Servicios Profesionales y de Apoyo a la gestión","CONTRATACION DIRECTA","No aplica","PRESTAR SERVICIOS PROFESIONALES AL FONDO DE DESARROLLO LOCAL DE LA CANDELARIA PARA APOYAR Y FORTALECER LAS GESTIONES CONTABLES DE LA ENTIDAD APOYANDO EL PROCESO DE CAUSACIÓN CONTABLE","INVERSION",null,null,null,null,"O23011605570000002021",1,52520044,"PAOLA ANDREA OYUELA VARGAS","PERSONA NATURAL",null,"NO APLICA","NO APLICA",null,60500000,null,2,30250002,90750002,57383333,"2023-01-17","2023-01-18","2024-06-02",330,2,165,"N/A","N/A","N/A",null,"EJECUCION",0.63232321471463993]
["FDLC-CPS-042-2023",2023,"FDLC-CPS-042-2023","https://community.secop.gov.co/Public/Tendering/OpportunityDetail/Index?noticeUID=CO1.NTC.3782152&isFromPublicArea=True&isModal=true&asPopupView=true","Contrato de Prestación de Servicios Profesionales y de Apoyo a la gestión","CONTRATACION DIRECTA","No aplica","PRESTAR SERVICIOS PROFESIONALES AL FONDO DE DESARROLLO LOCAL DE LA CANDELARIA PARA APOYAR Y FORTALECER LAS GESTIONES CONTABLES DE LA ENTIDAD","INVERSION",null,null,null,null,"O23011605570000002021",1,52540545,"ALEXANDRA CASTILLO ARDILA","PERSONA NATURAL",null,"NO APLICA","NO APLICA",null,49654000,null,"N/A",0,{"$f":"+W55+X55+Z55","v":49654000},38068067,"2023-01-17","2023-01-18","2023-12-17",330,"N/A","N/A","N/A","N/A","N/A",null,"TERMINADO",0.76666667337978811]
["FDLC-CPS-043-2023",2023,"FDLC-CPS-043-2023","https://community.secop.gov.co/Public/Tendering/OpportunityDetail/Index?noticeUID=CO1.NTC.3782531&isFromPublicArea=True&isModal=true&asPopupView=true","Contrato de Prestación de Servicios Profesionales y de Apoyo a la gestión","CONTRATACION DIRECTA","No aplica","PRESTAR SERVICIOS DE APOYO TÉCNICO Y ADMINISTRATIVO CONRELACIÓN A LOS PROYECTOS DE OBRAS E INFRAESTRUCTURA QUEDESARROLLE LA ALCALDÍA LOCAL DE LA CANDELARIA Y LOS DEMÁSREQUERIDOS POR EL DESPACHO DEL LA ALCALDE SA LOCAL","INVERSION",null,null,null,null,"O23011604490000002020",1,52305372,"ELCY JEANETH PULIDO AMORTEGUI","PERSONA NATURAL",null,"NO APLICA","NO APLICA",null,44000000,null,1,10000001,54000001,41866667,"2023-01-17","2023-01-17","2024-03-01",330,1,75,"N/A","N/A","N/A",null,"EJECUCION",0.7753086337905809]
["FDLC-CPS-044-2023",2023,"FDLC-CPS-044-2023","https://community.secop.gov.co/Public/Tendering/OpportunityDetail/Index?noticeUID=CO1.NTC.3784015&isFromPublicArea=True&isModal=true&asPopupView=true","Contrato de Prestación de Servicios Profesionales y de Apoyo a la gestión","CONTRATACION DIRECTA","No aplica","PRESTAR SERVICIOS PROFESIONALES DE APOYO PARA LAPLANEACIÓN IMPLEMENTACIÓN Y FORTALECIMIENTO DEPROYECTOS RELACIONADOS CON LAS ACTIVIDADES DEL TURISMO ATRAVÉS DE LA GESTIÓN ARTICULACIÓN E INTERLOCUCIÓN CONCIUDADANÍA Y ENTIDADES PÚBLICAS Y PRIVADAS DE LA LOCALIDADDE LA CANDELARIA","INVERSION",null,null,null,null,"O23011605570000002021",1,1024571510,"PAULA MEDELLIN LEON","PERSONA NATURAL",null,"NO APLICA","NO APLICA",null,36112000,null,1,15347601,{"$f":"+W57+X57+Z57","v":51459601},47096067,"2023-01-18","2023-01-18","2023-12-29","NA",1,102,"N/A","N/A","N/A",null,"TERMINADO",0.9152046670552304]
["FDLC-CPS-045-2023",2023,"FDLC-CPS-045-2023","https://community.secop.gov.co/Public/Tendering/OpportunityDetail/Index?noticeUID=CO1.NTC.3797797&isFromPublicArea=True&isModal=true&asPopupView=true","Contrato de Prestación de Servicios Profesionales y de Apoyo a la gestión","CONTRATACION DIRECTA","No aplica","PRESTAR SERVICIOS ASISTENCIALES AL ÁREA DE GESTIÓN DE DESARROLLO LOCAL EN LOS PROCESOS Y ACTIVIDADES DE GESTIÓN ADMINISTRATIVA DE LA ALCALDÍA LOCAL DE LA CANDELARIA","INVERSION",null,null,null,null,"O23011605570000002021",1,19458700,"OSCAR BARRERA ARROYAVE","PERSONA NATURAL",null,"NO APLICA","NO APLICA",null,19800000,null,"N/A",0,19800000,18400000,"2023-01-19","2023-01-24","2023-12-23",330,"N/A","N/A","N/A","N/A","N/A",null,"TERMINADO",0.92929292929292928]
["FDLC-CPS-046-2023",2023,"FDLC-CPS-046-2023","https://community.secop.gov.co/Public/Tendering/OpportunityDetail/Index?noticeUID=CO1.NTC.3789845&isFromPublicArea=True&isModal=true&asPopupView=true","Contrato de Prestación de Servicios Profesionales y de Apoyo a la gestión","CONTRATACION DIRECTA","No aplica","APOYAR JURÍDICAMENTE A LA JUNTA ADMINISTRADORA LOCAL CON EL FIN DE CONTRIBUIR AL ADECUADO CUMPLIMIENTO DE LAS ATRIBUCIONES A SU CARGO","INVERSION",null,null,null,null,"O23011605570000002021",1,1045707561,"RICHARD ANDRES DIAZ NIÑO","PERSONA NATURAL",null,"NO APLICA","NO APLICA",null,51700000,null,"N/A",0,51700000,48880000,"2023-01-18","2023-01-19","2023-12-18",330,"N/A","N/A","N/A","N/A","N/A",null,"TERMINADO",0.94545454545454544]
["FDLC-CPS-047-2023",2023,"FDLC-CPS-047-2023","https://community.secop.gov.co/Public/Tendering/OpportunityDetail/Index?noticeUID=CO1.NTC.3788067&isFromPublicArea=True&isModal=true&asPopupView=true","Contrato de Prestación de Servicios Profesionales y de Apoyo a la gestión","CONTRATACION DIRECTA","No aplica","PRESTAR SERVICIOS PROFESIONALES AL FONDO DE DESARROLLO LOCAL PARA APOYAR LA FORMULACIÓN EJECUCIÓN SEGUIMIENTO Y MEJORA CONTINUA DE LAS HERRAMIENTAS QUE CONFORMAN LA GESTIÓN AMBIENTAL INSTITUCIONAL DE LA ALCALDÍA LOCAL","INVERSION",null,null,null,null,"O23011605570000002021",1,53032345,"SULY PAOLA CONTRERAS CRUZ","PERSONA NATURAL",null,"NO APLICA","NO APLICA",null,66000000,null,"N/A",0,66000000,62400000,"2023-01-18","2023-01-19","2023-12-18",330,"N/A","N/A","N/A","N/A","N/A",null,"TERMINADO",0.94545454545454544]
["FDLC-CPS-048-2023",2023,"FDLC-CPS-048-2023","https://community.secop.gov.co/Public/Tendering/OpportunityDetail/Index?noticeUID=CO1.NTC.3789923&isFromPublicArea=True&isModal=true&asPopupView=true","Contrato de Prestación de Servicios Profesionales y de Apoyo a la gestión","CONTRATACION DIRECTA","No aplica","PRESTAR SERVICIOS DE APOYO EN LAS ACTIVIDADES DE PROTECCIÓN CUIDADO Y CONSERVACIÓN DE LA MALLA VIAL COMO COMPONENTE PATRIMONIAL DE LA CANDELARIA","INVERSION",null,null,null,null,"O23011604490000002020",1,79596330,"SINUHE WALTARI AYURE VELASQUEZ ","PERSONA NATURAL",null,"NO APLICA","NO APLICA",null,9250000,null,"N/A",0,9250000,8695000,"2023-01-18","2023-01-31","2023-06-20",150,"N/A","N/A",1070331732,"CESION DE  IVONNE JULIETH ROJAS ROJAS","2023-02-22",null,"TERMINADO",0.94]
["FDLC-CPS-049-2023",2023,"FDLC-CPS-049-2023","https://community.secop.gov.co/Public/Tendering/OpportunityDetail/Index?noticeUID=CO1.NTC.3789591&isFromPublicArea=True&isModal=true&asPopupView=true","Contrato de Prestación de Servicios Profesionales y de Apoyo a la gestión","CONTRATACION DIRECTA","No aplica","PRESTAR SERVICIOS PROFESIONALES PARA APOYAR JURÍDICAMENTE EL CUMPLIMIENTO DE LAS COMISIONES JUDICIALES ORDENADAS AL ALCALDESA LOCAL ASÍ COMO LA ATENCIÓN DE PETICIONES REQUERIMIENTOS Y ACCIONES CONSTITUCIONALES ORIGINADAS EN EL TRÁMITE DE DESPACHOS COMISORIOS","INVERSION",null,null,null,null,"O23011605570000002023",1,1026271323,"CAMILO ALBERTO PARDO VERGARA","PERSONA NATURAL",null,"NO APLICA","NO APLICA",null,36112000,null,1,13542001,49654001,46795133,"2023-01-18","2023-01-20","2023-12-19","NA",1,90,"N/A","N/A","N/A",null,"TERMINADO",0.94242421673129628]
["FDLC-CPS-050-2023",2023,"FDLC-CPS-050-2023","https://community.secop.gov.co/Public/Tendering/OpportunityDetail/Index?noticeUID=CO1.NTC.3790008&isFromPublicArea=True&isModal=true&asPopupView=true","Contrato de Prestación de Servicios Profesionales y de Apoyo a la gestión","CONTRATACION DIRECTA","No aplica","PRESTAR SERVICIOS ASISTENCIALES AL ÁREA DE GESTIÓN DE DESARROLLO LOCAL EN LOS PROCESOS RELACIONADOS CON LAS ACTIVIDADES DE GESTION ADMINISTRATIVA DE LA ALCALDÍA LOCAL DE LA CANDELARIA","INVERSION",null,null,null,null,"O23011605570000002021",1,52709184,"LUZ ANGELA ORTIZ SANTOS","PERSONA NATURAL",null,"NO APLICA","NO APLICA",null,26400000,null,"N/A",0,26400000,24000000,"2023-01-20","2023-01-31","2023-12-30",330,"N/A","N/A","N/A","N/A","N/A",null,"TERMINADO",0.90909090909090906]
["FDLC-CPS-051-2023",2023,"FDLC-CPS-051-2023","https://community.secop.gov.co/Public/Tendering/OpportunityDetail/Index?noticeUID=CO1.NTC.3790304&isFromPublicArea=True&isModal=true&asPopupView=true","Contrato de Prestación de Servicios Profesionales y de Apoyo a la gestión","CONTRATACION DIRECTA","No aplica","PRESTAR SERVICIOS PROFESIONALES EN LA PLANEACIÓN Y SEGUIMIENTO DE LOS PROYECTOS CULTURALES ARTÍSTICOS Y PATRIMONIALES DE LA ENTIDAD Y DEMÁS ASIGNADOS POR EL ÁREA DE GESTIÓN DEL DESARROLLO LOCAL PARA EL CUMPLIMIENTO DE LAS METAS DEL PLAN DE DESARROLLO LOCAL 20212024","INVERSION",null,null,null,null,"O23011601210000001625",1,1024462252,"HECTOR JULIO CEDANO MARTINEZ","PERSONA NATURAL",null,"NO APLICA","NO APLICA",null,30000000,3333334,"N/A",0,33333334,26666666,"2023-01-18","2023-01-19","2023-06-26",180,"N/A","N/A","N/A","N/A","N/A",null,"TERMINADO",0.79999996400000073]
["FDLC-CPS-052-2023",2023,"FDLC-CPS-052-2023","https://community.secop.gov.co/Public/Tendering/OpportunityDetail/Index?noticeUID=CO1.NTC.3791858&isFromPublicArea=True&isModal=true&asPopupView=true","Contrato de Prestación de Servicios Profesionales y de Apoyo a la gestión","CONTRATACION DIRECTA","No aplica","PRESTAR EL APOYO SECRETARIAL A LA JUNTA ADMINISTRADORA LOCAL","INVERSION",null,null,null,null,"O23011605570000002021",1,51879946,"ISABEL CRISTINA BULLA RODRIGUEZ","PERSONA NATURAL",null,"NO APLICA","NO APLICA",null,29700000,null,2,5400002,35100002,28080000,"2023-01-19","2023-01-19","2024-02-18",330,2,30,"N/A","N/A","N/A",null,"TERMINADO",0.79999995441595706]
["FDLC-CPS-053-2023",2023,"FDLC-CPS-053-2023","https://community.secop.gov.co/Public/Tendering/OpportunityDetail/Index?noticeUID=CO1.NTC.3792042&isFromPublicArea=True&isModal=true&asPopupView=true","Contrato de Prestación de Servicios Profesionales y de Apoyo a la gestión","CONTRATACION DIRECTA","No aplica","PRESTAR SERVICIOS PROFESIONALES AL FONDO DE DESARROLLO LOCAL DE LA CANDELARIA PARA LA PLANEACIÓN FORMULACIÓN YSEGUIMIENTO DE PLANES POLITICAS PROGRAMAS Y PROYECTOS DE INVERSIÓN RELACIONADOS CON EDUCACIÓN Y DEMÁS ASIGNADOS POR EL ÁREA DE GESTIÓN DEL DESARROLLO LOCAL PARA EL CUMPLIMIENTO DE LAS METAS DEL PLAN DE DESARROLLO LOCAL 20212024","INVERSION",null,null,null,null,"O23011601170000001607",1,41648295,"ISABEL SANCHEZ RODRIGUEZ","PERSONA NATURAL",null,"NO APLICA","NO APLICA",null,40000000,null,"N/A",0,40000000,26333333,"2023-01-18","2023-01-19","2023-06-26",240,"N/A","N/A","N/A","N/A","N/A",null,"TERMINADO",0.65833332499999997]
["FDLC-CPS-054-2023",2023,"FDLC-CPS-054-2023","https://community.secop.gov.co/Public/Tendering/OpportunityDetail/Index?noticeUID=CO1.NTC.3793699&isFromPublicArea=True&isModal=true&asPopupView=true","Contrato de Prestación de Servicios Profesionales y de Apoyo a la gestión","CONTRATACION DIRECTA","No aplica","PRESTAR SERVICIOS DE APOYO EN LAS ACTIVIDADES DE SEGURIDAD Y CONVIVENCIA CIUDADANA DE ACUERDO A LAS NECESIDADES Y ESTRATEGIAS DE LA ALCALDIA LOCAL DE LA CANDELARIA","INVERSION",null,null,null,null,"O23011605570000002021",1,78698367,"FELIPE RICARDO CAUSIL VIDAL ","PERSONA NATURAL",null,"NO APLICA","NO APLICA",null,20680000,null,1,1880001,{"$f":"+W67+X67+Z67","v":22560001},19288667,"2023-01-18","2023-01-24","2024-01-23",330,1,30,79914457,"CESION DE TARCISIO TORO ZAMBRANO","2023-02-21",null,"TERMINADO",0.85499406671125588]
["FDLC-CPS-055-2023",2023,"FDLC-CPS-055-2023","https://community.secop.gov.co/Public/Tendering/OpportunityDetail/Index?noticeUID=CO1.NTC.3793939&isFromPublicArea=True&isModal=true&asPopupView=true","Contrato de Prestación de Servicios Profesionales y de Apoyo a la gestión","CONTRATACION DIRECTA","No aplica","PRESTAR SERVICIOS DE APOYO EN LAS ACTIVIDADES DE SEGURIDAD Y CONVIVENCIA CIUDADANA DE ACUERDO A LAS NECESIDADES Y ESTRATEGIAS DE LA ALCALDIA LOCAL DE LA CANDELARIA","INVERSION",null,null,null,null,"O23011605570000002021",1,52060667,"NELLY CONTRERAS ROJAS","PERSONA NATURAL",null,"NO APLICA","NO APLICA",null,20680000,null,2,10340002,31020002,19238667,"2023-01-19","2023-01-24","2024-06-08",330,2,165,"N/A","N/A","N/A",null,"EJECUCION",0.62020199096054218]
["FDLC-CPS-056-2023",2023,"FDLC-CPS-056-2023","https://community.secop.gov.co/Public/Tendering/OpportunityDetail/Index?noticeUID=CO1.NTC.3912831&isFromPublicArea=True&isModal=true&asPopupView=true","Contrato de Prestación de Servicios Profesionales y de Apoyo a la gestión","CONTRATACION DIRECTA","No aplica","PRESTAR SERVICIOS ASISTENCIALES AL FONDO DE DESARROLLO LOCAL DE LA CANDELARIA EN LA ADMINISTRACIÓN DE LAS CASAS COMUNITARIAS DE LA LOCALIDAD DE CONFORMIDAD CON EL ACUERDO LOCAL 006 DE 2013 CONVIRTIÉNDOLAS EN EPICENTRO DE REVITALIZACIÓN DE MIPYMES Y EMPRENDIMIENTOS LOCALES","INVERSION",null,null,null,null,"O23011601060000001628",1,79889820,"DREZZSSHER NOTCREHJVISCH BHAWKT ORTIZ","PERSONA NATURAL",null,"NO APLICA","NO APLICA",null,29700000,null,"N/A",0,29700000,26820000,"2023-02-02","2023-02-03","2023-12-31",330,"N/A","N/A","N/A","N/A","N/A",null,"TERMINADO",0.90303030303030307]
["FDLC-CPS-057-2023",2023,"FDLC-CPS-057-2023","https://community.secop.gov.co/Public/Tendering/OpportunityDetail/Index?noticeUID=CO1.NTC.3793857&isFromPublicArea=True&isModal=true&asPopupView=true","Contrato de Prestación de Servicios Profesionales y de Apoyo a la gestión","CONTRATACION DIRECTA","No aplica","PRESTAR SERVICIOS DE APOYO EN LAS ACTIVIDADES DEPROTECCIÓN CUIDADO Y CONSERVACIÓN DE LA MALLA VIAL COMOCOMPONENTE PATRIMONIAL DE LA CANDELARIA","INVERSION",null,null,null,null,"O23011604490000002020",1,65788328,"EMPERATRIZ GONZALEZ PALENCIA","PERSONA NATURAL",null,"NO APLICA","NO APLICA",null,9250000,null,"N/A",0,9250000,9250000,"2023-01-19","2023-01-19","2023-06-18",150,"N/A","N/A","N/A","N/A","N/A",null,"TERMINADO",1]
["FDLC-CPS-058-2023",2023,"FDLC-CPS-058-2023","https://community.secop.gov.co/Public/Tendering/OpportunityDetail/Index?noticeUID=CO1.NTC.3799243&isFromPublicArea=True&isModal=true&asPopupView=true","Contrato de Prestación de Servicios Profesionales y de Apoyo a la gestión","CONTRATACION DIRECTA","No aplica","PRESTAR SERVICIOS DE APOYO EN LAS ACTIVIDADES DE SEGURIDAD Y CONVIVENCIA CIUDADANA DE ACUERDO A LAS NECESIDADES Y ESTRATEGIAS DE LA ALCALDIA LOCAL DE LA CANDELARIA","INVERSION",null,null,null,null,"O23011605570000002021",1,1010195489,"SERGIO ANDRES SANABRIA VALENCIA","PERSONA NATURAL",null,"NO APLICA","NO APLICA",null,20680000,null,"N/A",0,20680000,19238667,"2023-01-19","2023-01-24","2023-12-23",330,"N/A","N/A","N/A","N/A","N/A",null,"TERMINADO",0.93030304642166339]
["FDLC-CPS-059-2023",2023,"FDLC-CPS-059-2023","https://community.secop.gov.co/Public/Tendering/OpportunityDetail/Index?noticeUID=CO1.NTC.3799889&isFromPublicArea=True&isModal=true&asPopupView=true","Contrato de Prestación de Servicios Profesionales y de Apoyo a la gestión","CONTRATACION DIRECTA","No aplica","PRESTAR SERVICIOS DE APOYO EN LAS ACTIVIDADES DE SEGURIDAD Y CONVIVENCIA CIUDADANA DE ACUERDO A LAS NECESIDADES Y ESTRATEGIAS DE LA ALCALDIA LOCAL DE LA CANDELARIA","INVERSION",null,null,null,null,"O23011605570000002021",1,1010236602,"IVAN FELIPE SIERRA SANCHEZ","PERSONA NATURAL",null,"NO APLICA","NO APLICA",null,20680000,null,2,10340002,31020002,19238667,"2023-01-19","2023-01-24","2024-06-08",330,2,165,"N/A","N/A","N/A",null,"EJECUCION",0.62020199096054218]
["FDLC-CPS-060-2023",2023,"FDLC-CPS-060-2023","https://community.secop.gov.co/Public/Tendering/OpportunityDetail/Index?noticeUID=CO1.NTC.3800466&isFromPublicArea=True&isModal=true&asPopupView=true","Contrato de Prestación de Servicios Profesionales y de Apoyo a la gestión","CONTRATACION DIRECTA","No aplica","PRESTAR SERVICIOS PROFESIONALES AL FONDO DE DESARROLLO LOCAL DE LA CANDELARIA PARA APOYAR EN LA PLANEACIÓN FORMULACIÓN  VALUACIÓN Y SEGUIMIENTO DE LOS PROYECTOS SOCIALES Y DE SALUD EN LA LOCALIDAD PARA EL CUMPLIMIENTO DE LAS METAS DEL PLAN DE DESARROLLO LOCAL 20212024","INVERSION",null,null,null,null,"O23011601060000001664",1,1010190450,"VIVIANA LIZETH MONROY RAMIREZ","PERSONA NATURAL",null,"NO APLICA","NO APLICA",null,55000000,null,2,27500002,82500002,51833333,"2023-01-19","2023-01-20","2024-06-04",330,2,165,"N/A","N/A","N/A",null,"EJECUCION",0.62828280901132583]
["FDLC-CPS-061-2023",2023,"FDLC-CPS-061-2023","https://community.secop.gov.co/Public/Tendering/OpportunityDetail/Index?noticeUID=CO1.NTC.3801661&isFromPublicArea=True&isModal=true&asPopupView=true","Contrato de Prestación de Servicios Profesionales y de Apoyo a la gestión","CONTRATACION DIRECTA","No aplica","PRESTAR SERVICIOS PROFESIONALES PARA APOYAR EN LA PLANEACIÓN FORMULACIÓN EVALUACIÓN ARTICULACIÓN ACOMPAÑAMIENTO Y SEGUIMIENTO DEL PROYECTO DE INVERSIÓN 1777 LA CANDELARIA TERRITORIO DE PAZ Y RECONCILIACIÓN","INVERSION",null,null,null,null,"O23011603390000001777",1,1026278853,"LEIDY TATIANA BERMUDEZ BARRIOS ","PERSONA NATURAL",null,"NO APLICA","NO APLICA",null,36000000,null,2,18000002,54000002,54000000,"2023-01-19","2023-01-24","2023-10-23",180,2,90,1020713269,"CESION DE NICOLAS FERNANDEZ DE SOTO CAMACHO","2023-06-08",null,"TERMINADO",0.99999996296296434]
["FDLC-CPS-062-2023",2023,"FDLC-CPS-062-2023","https://community.secop.gov.co/Public/Tendering/OpportunityDetail/Index?noticeUID=CO1.NTC.3793729&isFromPublicArea=True&isModal=true&asPopupView=true","Contrato de Prestación de Servicios Profesionales y de Apoyo a la gestión","CONTRATACION DIRECTA","No aplica","PRESTAR SERVICIOS DE APOYO EN LAS ACTIVIDADES DE SEGURIDAD Y CONVIVENCIA CIUDADANA DE ACUERDO A LAS NECESIDADES Y ESTRATEGIAS DE LA ALCALDÍA LOCAL DE LA CANDELARIA","INVERSION",null,null,null,null,"O23011605570000002021",1,24344028,"JULY ANDREA MONTAÑO PEÑA","PERSONA NATURAL",null,"NO APLICA","NO APLICA",null,20680000,null,2,10340002,31020002,19489333,"2023-01-18","2023-01-20","2024-06-04",330,2,165,"N/A","N/A","N/A",null,"EJECUCION",0.6282827770288345]
["FDLC-CPS-063-2023",2023,"FDLC-CPS-063-2023","https://community.secop.gov.co/Public/Tendering/OpportunityDetail/Index?noticeUID=CO1.NTC.3838806&isFromPublicArea=True&isModal=true&asPopupView=true","Contrato de Prestación de Servicios Profesionales y de Apoyo a la gestión","CONTRATACION DIRECTA","No aplica","PRESTAR SERVICIOS PROFESIONALES AL FONDO DE DESARROLLO LOCAL DE LA CANDELARIA EN LA ADMINISTRACIÓN DE LAS CASAS COMUNITARIAS DE LA LOCALIDAD DE LA CANDELARIA DE CONFORMIDAD CON EL ACUERDO LOCAL 006 DE 2013","INVERSION",null,null,null,null,"O23011605570000002021",1,32729605,"DERLY EFIGENIA LENIS MARTINEZ ","PERSONA NATURAL",null,"NO APLICA","NO APLICA",null,36112000,null,1,4514001,{"$f":"+W76+X76+Z76","v":40626001},40626000,"2023-01-27","2023-01-31","2023-10-30",240,1,30,52856969,"CESION DE INGRID ELIANA PARRA CAMARGO","2023-05-15",null,"TERMINADO",0.9999999753852219]
["FDLC-CPS-064-2023",2023,"FDLC-CPS-064-2023","https://community.secop.gov.co/Public/Tendering/OpportunityDetail/Index?noticeUID=CO1.NTC.3838713&isFromPublicArea=True&isModal=true&asPopupView=true","Contrato de Prestación de Servicios Profesionales y de Apoyo a la gestión","CONTRATACION DIRECTA","No aplica","PRESTAR SERVICIOS PROFESIONALES AL ÁREA DE GESTIÓN DE DESARROLLO LOCAL DE LA ALCALDÍA LOCAL PARA LA IMPLEMENTACIÓN EJECUCIÓN Y SEGUIMIENTO DE LAS POLÍTICAS PROGRAMAS PLANES Y PROYECTOS RELACIONADOS CON EL DESARROLLO ECONÓMICO DE LAS EMPRESAS Y EMPRENDIMIENTOS CULTURALES Y CREATIVOS DE LA LOCALIDAD","INVERSION",null,null,null,null,"O23011601060000001628",1,22668487,"ANA KAREN MIRANDA HERNANDEZ","PERSONA NATURAL",null,"NO APLICA","NO APLICA",null,66000000,null,"N/A",0,66000000,60000000,"2023-01-27","2023-01-31","2023-12-30",330,"N/A","N/A","N/A","N/A","N/A",null,"TERMINADO",0.90909090909090906]
["FDLC-CPS-065-2023",2023,"FDLC-CPS-065-2023","https://community.secop.gov.co/Public/Tendering/OpportunityDetail/Index?noticeUID=CO1.NTC.3860839&isFromPublicArea=True&isModal=true&asPopupView=true","Contrato de Prestación de Servicios Profesionales y de Apoyo a la gestión","CONTRATACION DIRECTA","No aplica","PRESTAR SERVICIOS PROFESIONALES AL FONDO DE DESARROLLO LOCAL DE LA CANDELARIA PARA LA PLANEACIÓN FORMULACIÓN EVALUACIÓN ARTICULACIÓN ACOMPAÑAMIENTO Y SEGUIMIENTO DE LOS PROYECTOS DE INVERSIÓN DE EDUCACIÓN INICIAL Y DE LOS DEMÁS QUE LE SEAN DESIGNADOS PARA EL CUMPLIMIENTO DEL PLAN DE DESARROLLO LOCAL","INVERSION",null,null,null,null,"O23011601120000001608",1,1024570825,"GERALDINE NUÑEZ MONROY","PERSONA NATURAL",null,"NO APLICA","NO APLICA",null,27084000,-4965400,"N/A",0,22118600,22118600,"2023-01-27","2023-01-31","2023-06-27",180,"N/A","N/A","N/A","N/A","N/A",null,"TERMINADO",1]
["FDLC-CPS-066-2023",2023,"FDLC-CPS-066-2023","https://community.secop.gov.co/Public/Tendering/OpportunityDetail/Index?noticeUID=CO1.NTC.3846369&isFromPublicArea=True&isModal=true&asPopupView=true","Contrato de Prestación de Servicios Profesionales y de Apoyo a la gestión","CONTRATACION DIRECTA","No aplica","PRESTAR SERVICIOS DE APOYO EN LAS ACTIVIDADES DE SEGURIDAD Y CONVIVENCIA CIUDADANA DE ACUERDO A LAS NECESIDADES Y ESTRATEGIAS DE LA ALCALDÍA LOCAL DE LA CANDELARIA","INVERSION",null,null,null,null,"O23011605570000002021",1,70528247,"MIGUEL TORRES REYES","PERSONA NATURAL",null,"NO APLICA","NO APLICA",null,20680000,null,2,10340002,31020002,19113333,"2023-01-25","2023-01-26","2024-06-10",330,2,165,"N/A","N/A","N/A",null,"EJECUCION",0.61616156568913183]
["FDLC-CPS-067-2023",2023,"FDLC-CPS-067-2023","https://community.secop.gov.co/Public/Tendering/OpportunityDetail/Index?noticeUID=CO1.NTC.3806363&isFromPublicArea=True&isModal=False","Contrato de Prestación de Servicios Profesionales y de Apoyo a la gestión","CONTRATACION DIRECTA","No aplica","PRESTAR SERVICIOS DE APOYO TÉCNICO EN LAS DISTINTAS ETAPASDE LOS PROCESOS CONTRACTUALES Y PARA BRINDARACOMPAÑAMIENTO Y SEGUIMIENTO EN LA IMPLEMENTACIÓN DELSISTEMA DE GESTIÓN DE SEGURIDAD Y SALUD EN EL TRABAJO DE LAALCALDÍA LOCAL DE LA CANDELARIA","INVERSION",null,null,null,null,"O23011605570000002021",1,1010203707,"MICHAEL FELIPE RAMIREZ GRACIA","PERSONA NATURAL",null,"NO APLICA","NO APLICA",null,44000000,null,2,22000002,66000002,41466667,"2023-01-20","2023-01-20","2024-06-04",330,2,165,"N/A","N/A","N/A",null,"EJECUCION",{"$f":"IF(ISERROR(AB80/AA80),\"-\",(AB80/AA80))","v":0.6282828142944602}]
["FDLC-CPS-068-2023",2023,"FDLC-CPS-068-2023","https://community.secop.gov.co/Public/Tendering/OpportunityDetail/Index?noticeUID=CO1.NTC.3806800&isFromPublicArea=True&isModal=true&asPopupView=true","Contrato de Prestación de Servicios Profesionales y de Apoyo a la gestión","CONTRATACION DIRECTA","No aplica","PRESTAR SERVICIOS DE APOYO ADMINISTRATIVO Y ASISTENCIAL AL ÁRA DE GESTIÓN POLICIVA DE LA ALCALDÍA LOCAL DE LA CANDELARIA EN LAS LABORES OPERATIVAS DE IMPULSO DE LAS ACTUACIONES ADMINISTRATIVAS","INVERSION",null,null,null,null,"O23011605570000002023",1,49729700,"NEREIDA HERNANDEZ FLOREZ","PERSONA NATURAL",null,"NO APLICA","NO APLICA",null,29700000,null,2,5400002,35100002,27630000,"2023-01-20","2023-01-24","2024-02-24",330,2,60,"N/A","N/A","N/A",null,"EJECUCION",0.78717944232595771]
["FDLC-CPS-069-2023",2023,"FDLC-CPS-069-2023","https://community.secop.gov.co/Public/Tendering/OpportunityDetail/Index?noticeUID=CO1.NTC.3811594&isFromPublicArea=True&isModal=true&asPopupView=true","Contrato de Prestación de Servicios Profesionales y de Apoyo a la gestión","CONTRATACION DIRECTA","No aplica","PRESTAR SERVICIOS PROFESIONALES PARA APOYAR JURÍDICAMENTE EL CUMPLIMIENTO DE LAS COMISIONES JUDICIALES ORDENADAS AL ALCALDESA LOCAL ASÍ COMO LA ATENCIÓN DE PETICIONES REQUERIMIENTOS Y ACCIONES CONSTITUCIONALES ORIGINADAS EN EL TRÁMITE DE DESPACHOS COMISORIOS","INVERSION",null,null,null,null,"O23011605570000002023",1,1026566529,"LINDA ALEXA PAOLA PRIETO GARZON","PERSONA NATURAL",null,"NO APLICA","NO APLICA",null,55000000,null,1,2333334,57333334,51166667,"2023-01-20","2023-01-24","2024-01-06",330,1,14,"N/A","N/A","N/A",null,"TERMINADO",0.89244185590183889]
["FDLC-CPS-070-2023",2023,"FDLC-CPS-070-2023","https://community.secop.gov.co/Public/Tendering/OpportunityDetail/Index?noticeUID=CO1.NTC.3812125&isFromPublicArea=True&isModal=true&asPopupView=true","Contrato de Prestación de Servicios Profesionales y de Apoyo a la gestión","CONTRATACION DIRECTA","No aplica","PRESTAR SERVICIOS PROFESIONALES PARA APOYAR TÉCNICAMENTE LAS DISTINTAS ETAPAS DE LOS PROCESOS DE COMPETENCIA DE LAALCALDÍA LOCAL PARA LA DEPURACIÓN DE ACTUACIONES ADMINITRATIVAS","INVERSION",null,null,null,null,"O23011605570000002023",1,79507928,"FRANCISCO JAVIER HIGUERA NOVA","PERSONA NATURAL",null,"NO APLICA","NO APLICA",null,60500000,null,"N/A",0,60500000,56283333,"2023-01-20","2023-01-24","2023-12-23",330,"N/A","N/A","N/A","N/A","N/A",null,"TERMINADO",0.93030302479338844]
["FDLC-CPS-071-2023",2023,"FDLC-CPS-071-2023","https://community.secop.gov.co/Public/Tendering/OpportunityDetail/Index?noticeUID=CO1.NTC.3811638&isFromPublicArea=True&isModal=true&asPopupView=true","Contrato de Prestación de Servicios Profesionales y de Apoyo a la gestión","CONTRATACION DIRECTA","No aplica","PRESTAR SERVICIOS PROFESIONALES PARA APOYARJURÍDICAMENTE LA EJECUCIÓN DE LAS ACCIONES REQUERIDASPARA EL TRÁMITE E IMPULSO PROCESAL DE LAS ACTUACIONESCONTRAVENCIONALES YO QUERELLAS QUE CURSEN EN LASINSPECCIONES DE POLICÍA DE LA LOCALIDAD DE LA CANDELARIA","INVERSION",null,null,null,null,"O23011605570000002023",1,1018430013,"DIANA MARGARITA MONJE CARDENAS","PERSONA NATURAL",null,"NO APLICA","NO APLICA",null,60500000,null,2,30250002,{"$f":"+W84+X84+Z84","v":90750002},55916667,"2023-01-20","2023-01-26","2024-06-10",330,2,165,"N/A","N/A","N/A",null,"EJECUCION",0.61616160625539163]
["FDLC-CPS-072-2023",2023,"FDLC-CPS-072-2023","https://community.secop.gov.co/Public/Tendering/OpportunityDetail/Index?noticeUID=CO1.NTC.3812116&isFromPublicArea=True&isModal=true&asPopupView=true","Contrato de Prestación de Servicios Profesionales y de Apoyo a la gestión","CONTRATACION DIRECTA","No aplica","PRESTAR SERVICIOS PROFESIONALES AL FONDO DE DESARROLLO LOCAL DE LA CANDELARIA PARA APOYAR LA GESTION DE LOS ASUNTOS RELACIONADOS CON LA DESTINACIÓN DEL ESPACIO PÚBLICO SEGURIDAD CIUDADANA Y CONVIVENCIA EN LA LOCALIDAD","INVERSION",null,null,null,null,"O23011605570000002021",1,11801160,"JIMMY ORLANDO CORDOBA VIVEROS","PERSONA NATURAL",null,"NO APLICA","NO APLICA",null,36000000,-5400000,"N/A",0,30600000,30600000,"2023-01-20","2023-01-24","2023-06-26",180,"N/A","N/A","N/A","N/A","N/A",null,"TERMINADO",1]
["FDLC-CPS-073-2023",2023,"FDLC-CPS-073-2023","https://community.secop.gov.co/Public/Tendering/OpportunityDetail/Index?noticeUID=CO1.NTC.3845378&isFromPublicArea=True&isModal=true&asPopupView=true","Contrato de Prestación de Servicios Profesionales y de Apoyo a la gestión","CONTRATACION DIRECTA","No aplica","PRESTAR APOYO ADMINISTRATIVO Y DE COMUNICACIONES A LA JUNTA ADMINISTRADORA LOCAL DE LA CANDELARIA","INVERSION",null,null,null,null,"O23011605570000002021",1,1015403410,"ALVARO JAVIER SIERRA SANTOS","PERSONA NATURAL",null,"NO APLICA","NO APLICA",null,33000000,null,"N/A",0,{"$f":"+W86+X86+Z86","v":33000000},30500000,"2023-01-25","2023-01-26","2023-12-25",330,"N/A","N/A","N/A","N/A","N/A",null,"TERMINADO",0.9242424242424242]
["FDLC-CPS-074-2023",2023,"FDLC-CPS-074-2023","https://community.secop.gov.co/Public/Tendering/OpportunityDetail/Index?noticeUID=CO1.NTC.3845739&isFromPublicArea=True&isModal=true&asPopupView=true","Contrato de Prestación de Servicios Profesionales y de Apoyo a la gestión","CONTRATACION DIRECTA","No aplica","PRESTAR SERVICIOS PROFESIONALES AL FONDO DE DESARROLLO LOCAL DE LA CANDELARIA EN LA PLANEACIÓN SEGUIMIENTO Y EJECUCIÓN DE LAS ACTIVIDADES AMBIENTALES EN CUMPLIMIENTO DE LAS METAS DEL PLAN DE DESARROLLO LOCAL","INVERSION",null,null,null,null,"O23011605570000002021",1,92642179,"ALEX ALBERTO ARRIETA VILLABA","PERSONA NATURAL",null,"NO APLICA","NO APLICA",null,55000000,null,"N/A",0,55000000,50833333,"2023-01-25","2023-01-26","2023-12-25",330,"N/A","N/A","N/A","N/A","N/A",null,"TERMINADO",0.92424241818181818]
["FDLC-CPS-075-2023",2023,"FDLC-CPS-075-2023","https://community.secop.gov.co/Public/Tendering/OpportunityDetail/Index?noticeUID=CO1.NTC.3846113&isFromPublicArea=True&isModal=true&asPopupView=true","Contrato de Prestación de Servicios Profesionales y de Apoyo a la gestión","CONTRATACION DIRECTA","No aplica","APOYAR LA FORMULACIÓN GESTIÓN Y SEGUIMIENTO DE ACTIVIDADES ENFOCADAS A LA GESTIÓN AMBIENTAL EXTERNA ENCAMINADAS A LA MITIGACIÓN DE LOS DIFERENTES IMPACTOS AMBIENTALES Y LA CONSERVACIÓN DE LOS RECURSOS NATURALES DE LA LOCALIDAD","INVERSION",null,null,null,null,"O23011602380000001705",1,1024482565,"SANDRA MILENA SANCHEZ GAMBA","PERSONA NATURAL",null,"NO APLICA","NO APLICA",null,77000000,null,1,5133334,82133334,71166667,"2023-01-25","2023-01-26","2024-01-17",330,1,23,"N/A","N/A","N/A",null,"TERMINADO",0.86647726975261952]
["FDLC-CPS-076-2023",2023,"FDLC-CPS-076-2023","https://community.secop.gov.co/Public/Tendering/OpportunityDetail/Index?noticeUID=CO1.NTC.3846126&isFromPublicArea=True&isModal=true&asPopupView=true","Contrato de Prestación de Servicios Profesionales y de Apoyo a la gestión","CONTRATACION DIRECTA","No aplica","PRESTACIÓN DE SERVICIOS PROFESIONALES AL FONDO DE DESARROLLO LOCAL DE LA CANDELARIA PARA APOYAR EL SEGUIMIENTO EJECUCIÓN Y VISUALIZACIÓN DE LA GESTIÓN RELACIONADOS CON LOS PROYECTOS DE MUJERES EQUIDAD DE GÉNERO VIOLENCIA INTRAFAMILIAR CUIDADORAS Y CUIDADORES","INVERSION",null,null,null,null,"O23011601060000001663",1,1128063760,"JEAN SEBASTIAN SANMIGUEL GARZON","PERSONA NATURAL",null,"NO APLICA","NO APLICA",null,36112000,null,1,5717734,{"$f":"+W89+X89+Z89","v":41829734},34306410,"2023-01-27","2023-02-06","2023-11-13",240,1,38,1022415943," CESION DE LIZETH CAROLINA NARNAJO MOLINA","2023-06-21",null,"TERMINADO",0.82014411088533334]
["FDLC-CPS-077-2023",2023,"FDLC-CPS-077-2023","https://community.secop.gov.co/Public/Tendering/OpportunityDetail/Index?noticeUID=CO1.NTC.3846147&isFromPublicArea=True&isModal=true&asPopupView=true","Contrato de Prestación de Servicios Profesionales y de Apoyo a la gestión","CONTRATACION DIRECTA","No aplica","PRESTAR SERVICIOS PROFESIONALES AL FONDO DE DESARROLLO LOCAL DE LA CANDELARIA PARA LA PLANEACIÓN FORMULACIÓN EVALUACIÓN ARTICULACIÓN ACOMPAÑAMIENTO Y SEGUIMIENTO DEL PROYECTO DE INVERSIÓN1662 LA CANDELARIA TERRITORIO LIBRE DE VIOLENCIA INTRAFAMILIAR Y SEXUAL Y DE LOS PROYECTOS CON ENFOQUE DE GÉNERO DEL PLAN DE DESARROLLO LOCAL","INVERSION",null,null,null,null,"O23011601060000001662",1,52087456,"JUANITA SABOGAL SALGADO","PERSONA NATURAL",null,"NO APLICA","NO APLICA",null,30000000,-4833334,"N/A",0,25166666,25166666,"2023-01-25","2023-01-26","2023-06-26",180,"N/A","N/A","N/A","N/A","N/A",null,"TERMINADO",1]
["FDLC-CPS-078-2023",2023,"FDLC-CPS-078-2023","https://community.secop.gov.co/Public/Tendering/OpportunityDetail/Index?noticeUID=CO1.NTC.3839428&isFromPublicArea=True&isModal=true&asPopupView=true","Contrato de Prestación de Servicios Profesionales y de Apoyo a la gestión","CONTRATACION DIRECTA","No aplica","PRESTAR SERVICIOS PROFESIONALES PARA APOYAR AL FONDO DE DESARROLLO LOCAL DE LA CANDELARIA EN LA FORMULACIÓN IMPLEMENTACIÓN Y SEGUIMIENTO DE LAS POLITICAS PLANES PROGRAMAS PROYECTOS Y ACTIVIDADES ARTÍSTICAS CULTURALES Y MUSICALES DE COMPETENCIA DE LA ENTIDAD","INVERSION",null,null,null,null,"O23011601210000001625",1,1015442287,"FABIO DAVID HERNANDEZ UMAÑA ","PERSONA NATURAL",null,"NO APLICA","NO APLICA",null,66000000,null,1,3000001,{"$f":"+W91+X91+Z91","v":69000001},55400000,"2023-01-27","2023-01-27","2024-01-10",330,1,15,1010207254,"CESION DE ELY DAVID MURILLO CORDOBA","2023-04-28",null,"TERMINADO",0.80289853908842701]
["FDLC-CPS-079-2023",2023,"FDLC-CPS-079-2023","https://community.secop.gov.co/Public/Tendering/OpportunityDetail/Index?noticeUID=CO1.NTC.3867645&isFromPublicArea=True&isModal=true&asPopupView=true","Contrato de Prestación de Servicios Profesionales y de Apoyo a la gestión","CONTRATACION DIRECTA","No aplica","PRESTAR SERVICIOS PROFESIONALES PARA LA PLANEACIÓN IMPLEMENTACIÓN Y FORTALECIMIENTO DE PROYECTOS RELACIONADOS CON LAS ACTIVIDADES DEL TURISMO LOCAL A TRAVÉS DE LA GESTIÓN ARTICULACIÓN E INTERLOCUCIÓN CON CIUDADANÍA Y ENTIDADES PÚBLICAS Y PRIVADAS LAS EMPRESAS Y EMPRENDIMIENTOS CULTURALES Y CREATIVOS DE LA LOCALIDAD DE LA CANDELARIA","INVERSION",null,null,null,null,"O23011601240000001627",1,11803256,"HAROLD GARCIA CHAVERRA","PERSONA NATURAL",null,"NO APLICA","NO APLICA",null,50000000,null,"N/A",0,50000000,50000000,"2023-01-27","2023-01-30","2023-11-29",300,"N/A","N/A","N/A","N/A","N/A",null,"TERMINADO",1]
["FDLC-CPS-080-2023",2023,"FDLC-CPS-080-2023","https://community.secop.gov.co/Public/Tendering/OpportunityDetail/Index?noticeUID=CO1.NTC.3839544&isFromPublicArea=True&isModal=true&asPopupView=true","Contrato de Prestación de Servicios Profesionales y de Apoyo a la gestión","CONTRATACION DIRECTA","No aplica","PRESTAR SERVICIOS ASISTENCIALES AL FONDO DE DESARROLLO LOCAL DE LA CANDELARIA PARA LA ADMINISTRACIÓN DE LAS CASAS COMUNITARIAS DE LA LOCALIDAD DE CONFORMIDAD CON EL ACUERDO LOCAL 006 DE 2013 TRANSFORMÁNDOLAS EN ESPACIOS DE APROPIACIÓN PARA LA ELIMINACIÓN DE TODAS LAS FORMAS DE VIOLENCIA EN LA CANDELARIA","INVERSION",null,null,null,null,"O23011601060000001662",1,41503480,"AURA ALICIA ZAMBRANO LOPEZ","PERSONA NATURAL",null,"NO APLICA","NO APLICA",null,29975000,null,"N/A",0,29975000,27340833,"2023-01-27","2023-01-30","2023-12-29",330,"N/A","N/A","N/A","N/A","N/A",null,"TERMINADO",0.91212120100083405]
["FDLC-CPS-081-2023",2023,"FDLC-CPS-081-2023","https://community.secop.gov.co/Public/Tendering/OpportunityDetail/Index?noticeUID=CO1.NTC.3867804&isFromPublicArea=True&isModal=true&asPopupView=true","Contrato de Prestación de Servicios Profesionales y de Apoyo a la gestión","CONTRATACION DIRECTA","No aplica","PRESTAR SERVICIOS PROFESIONALES DE SEGUIMIENTO ADMINISTRATIVO TÉCNICO OPERATIVO Y LOGÍSTICO A LOS CONTRATOS Y O CONVENIOS DEL SECTOR CULTURAL Y CREATIVO SEGÚN DESIGNACIÓN DEL ALCALDE SA LOCAL","INVERSION",null,null,null,null,"O23011601240000001627",1,1019091360,"ANDRES FELIPE REYES DIAZ","PERSONA NATURAL",null,"NO APLICA","NO APLICA",null,30000000,null,"N/A",0,30000000,29666667,"2023-01-27","2023-02-03","2023-08-02",180,"N/A","N/A","N/A","N/A","N/A",null,"TERMINADO",0.98888889999999996]
["FDLC-CPS-082-2023",2023,"FDLC-CPS-082-2023","https://community.secop.gov.co/Public/Tendering/OpportunityDetail/Index?noticeUID=CO1.NTC.3840683&isFromPublicArea=True&isModal=true&asPopupView=true","Contrato de Prestación de Servicios Profesionales y de Apoyo a la gestión","CONTRATACION DIRECTA","No aplica","PRESTAR SERVICIOS PROFESIONALES AL FONDO DE DESARROLLO LOCAL DE LA CANDELARIA PARA APOYAR EN LA FORMULACION PRESENTACIÓN EVALUACIÓN Y SEGUIMIENTO DE LOS PROYECTOS DE INVERSION EN LALOCALIDAD","INVERSION",null,null,null,null,"O23011605570000002021",1,51881732,"NUBIA PRIETO ORTEGON","PERSONA NATURAL",null,"NO APLICA","NO APLICA",null,27084000,null,1,13090601,40174601,40174600,"2023-01-27","2023-02-01","2023-10-27",180,1,87,"N/A","N/A","N/A",null,"TERMINADO",0.99999997510865135]
["FDLC-CPS-083-2023",2023,"FDLC-CPS-083-2023","https://community.secop.gov.co/Public/Tendering/OpportunityDetail/Index?noticeUID=CO1.NTC.3847638&isFromPublicArea=True&isModal=true&asPopupView=true","Contrato de Prestación de Servicios Profesionales y de Apoyo a la gestión","CONTRATACION DIRECTA","No aplica","PRESTAR SERVICIOS DE APOYO ADMINISTRATIVO Y ASISTENCIAL ENLA GESTIÓN DE LA ALCALDÍA LOCAL DE LA CANDELARIA EN ELTRÁMITE DE LOS COMPARENDOS Y QUERELLAS DE CONFORMIDADCON LA LEY 1801 DE 2016","INVERSION",null,null,null,null,"O23011605570000002023",1,1116774188,"ALFREDO EMILIO NAJAR MOJICA ","PERSONA NATURAL",null,"NO APLICA","NO APLICA",null,29700000,null,"N/A",0,29700000,25020000,"2023-01-25","2023-01-27","2023-12-26",330,"N/A","N/A",1022956077,"CESION DE JARRY EMERSON RIAÑO DELGADO","2023-04-27",null,"TERMINADO",0.84242424242424241]
["FDLC-CPS-084-2023",2023,"FDLC-CPS-084-2023","https://community.secop.gov.co/Public/Tendering/OpportunityDetail/Index?noticeUID=CO1.NTC.3847523&isFromPublicArea=True&isModal=true&asPopupView=true","Contrato de Prestación de Servicios Profesionales y de Apoyo a la gestión","CONTRATACION DIRECTA","No aplica","PRESTAR SERVICIOS PROFESIONALES AL FONDO DE DESARROLLOLOCAL DE LA CANDELARIA PARA LA OPERACIÓN PRESTACIÓNSEGUIMIENTO Y CUMPLIMIENTO DE LOS PROCEDIMIENTOSADMINISTRATIVOS OPERATIVOS Y PROGRAMÁTICOS DEL SERVICIOAPOYO ECONÓMICO TIPO C QUE CONTRIBUYAN A LA GARANTÍA DELOS DERECHOS DE LA POBLACIÓN MAYOR EN EL MARCO DE LAPOLÍTICA PÚBLICA SOCIAL PARA EL ENVEJECIMIENTO Y LA VEJEZ ENEL DISTRITO CAPITAL A CARGO DE LA ALCALDÍA LOCAL","INVERSION",null,null,null,null,"O23011601010000001605",1,1121847787,"JAIME ANDRES JIMENEZ POLANIA","PERSONA NATURAL",null,"NO APLICA","NO APLICA",null,55000000,null,2,10000002,{"$f":"+W97+X97+Z97","v":65000002},50833333,"2023-01-26","2023-01-26","2024-02-25",330,2,60,"N/A","N/A","N/A",null,"EJECUCION",0.78205125285996147]
["FDLC-CPS-085-2023",2023,"FDLC-CPS-085-2023","https://community.secop.gov.co/Public/Tendering/OpportunityDetail/Index?noticeUID=CO1.NTC.3847534&isFromPublicArea=True&isModal=true&asPopupView=true","Contrato de Prestación de Servicios Profesionales y de Apoyo a la gestión","CONTRATACION DIRECTA","No aplica","PRESTAR SERVICIOS TÉCNICOS PARA LA OPERACIÓN SEGUIMIENTOY CUMPLIMIENTO DE LOS PROCESOS Y PROCEDIMIENTOS DELSERVICIO APOYOS ECONÓMICOS TIPO C REQUERIDOS PARA ELOPORTUNO Y ADECUADO REGISTRO CRUCE Y REPORTE DE LOSDATOS EN EL SISTEMA MISIONAL SIRBE QUE CONTRIBUYAN A LAGARANTÍA DE LOS DERECHOS DE LA POBLACIÓN MAYOR EN ELMARCO DE LA POLÍTICA PÚBLICA SOCIAL PARA EL ENVEJECIMIENTOY LA VEJEZ EN EL DISTRITO CAPITAL A CARGO DE LA ALCALDÍA LOCAL","INVERSION",null,null,null,null,"O23011601010000001605",1,80263860,"PEDRO SIERRA GARCIA","PERSONA NATURAL",null,"NO APLICA","NO APLICA",null,34650000,null,2,16400002,51050002,31920000,"2023-01-25","2023-01-27","2024-06-01",330,2,165,"N/A","N/A","N/A",null,"EJECUCION",0.62526931928425777]
["FDLC-CPS-086-2023",2023,"FDLC-CPS-086-2023","https://community.secop.gov.co/Public/Tendering/OpportunityDetail/Index?noticeUID=CO1.NTC.3847544&isFromPublicArea=True&isModal=true&asPopupView=true","Contrato de Prestación de Servicios Profesionales y de Apoyo a la gestión","CONTRATACION DIRECTA","No aplica","APOYAR AL ALCALDE LOCAL EN LA FORMULACIÓN SEGUIMIENTO EIMPLEMENTACIÓN DE LA ESTRATEGIA LOCAL PARA LA TERMINACIÓNJURÍDICA DE LAS ACTUACIONES ADMINISTRATIVAS QUE CURSAN ENLA ALCALDÍA LOCAL","INVERSION",null,null,null,null,"O23011605570000002023",1,52421137,"YEIMIT YORYEI ROMERO HUERTAS ","PERSONA NATURAL",null,"NO APLICA","NO APLICA",null,78100000,null,"N/A",0,78100000,72183333,"2023-01-25","2023-01-26","2023-12-25",330,"N/A","N/A",1022973767,"CESION DE CAROLINA ROJAS CARVAJAL","2023-03-01",null,"TERMINADO",0.92424241997439183]
["FDLC-CPS-087-2023",2023,"FDLC-CPS-087-2023","https://community.secop.gov.co/Public/Tendering/OpportunityDetail/Index?noticeUID=CO1.NTC.3847496&isFromPublicArea=True&isModal=true&asPopupView=true","Contrato de Prestación de Servicios Profesionales y de Apoyo a la gestión","CONTRATACION DIRECTA","No aplica","PRESTAR SERVICIOS DE APOYO TÉCNICO EN LA IMPLEMENTACIÓNDE ACCIONES Y ESTRATEGIAS CULTURALES MUSICALES YARTÍSTICAS EN EL MARCO DE LAS POLÍTICAS PLANES PROGRAMASY PROYECTOS PARA EL CUMPLIMIENTO DE LAS METAS DEL PLAN DEDESARROLLO LOCAL 20212024","INVERSION",null,null,null,null,"O23011601210000001625",1,1105670710,"YURANY ALEJANDRA ORTEGA BERRIO","PERSONA NATURAL",null,"NO APLICA","NO APLICA",null,24000000,null,2,12000002,36000002,30400000,"2023-01-25","2023-01-27","2024-01-26",240,2,120,"N/A","N/A","N/A",null,"TERMINADO",0.84444439753086675]
["FDLC-CPS-088-2023",2023,"FDLC-CPS-088-2023","https://community.secop.gov.co/Public/Tendering/OpportunityDetail/Index?noticeUID=CO1.NTC.3856867&isFromPublicArea=True&isModal=true&asPopupView=true","Contrato de Prestación de Servicios Profesionales y de Apoyo a la gestión","CONTRATACION DIRECTA","No aplica","PRESTAR SERVICIOS PROFESIONALES AL FONDO DE DESARROLLO LOCAL DE LA CANDELARIA EN LA PLANEACIÓN SEGUIMIENTO Y EJECUCIÓN DE LAS ACTIVIDADES AMBIENTALES PARA EL FOMENTO DE LA AGRICULTURA URBANA EN CUMPLIMIENTO DE LAS METAS DEL PLAN DE DESARROLLO LOCAL","INVERSION",null,null,null,null,"O23011601240000001626",1,1026567955,"CRISTIAN CAMILO VILLABONA FIGUEROA","PERSONA NATURAL",null,"NO APLICA","NO APLICA",null,27084000,null,"N/A",0,27084000,27084000,"2023-01-26","2023-02-01","2023-07-31",180,"N/A","N/A","N/A","N/A","N/A",null,"TERMINADO",1]
["FDLC-CPS-089-2023",2023,"FDLC-CPS-089-2023","https://community.secop.gov.co/Public/Tendering/OpportunityDetail/Index?noticeUID=CO1.NTC.3849411&isFromPublicArea=True&isModal=true&asPopupView=true","Contrato de Prestación de Servicios Profesionales y de Apoyo a la gestión","CONTRATACION DIRECTA","No aplica","PRESTAR SERVICIOS PROFESIONALES AL FONDO DE DESARROLLO LOCAL DE LA CANDELARIA PARA LA FORMULACIÓN Y SEGUIMIENTODE PLANES POLITICAS PROGRAMAS Y PROYECTOS DE INVERSIÓN RELACIONADOS CON LA ESTRATEGIA DE CUIDADO PREVENCIÓN DE VIOLENCIAS Y PROYECTOS CON ENFOQUE DE GÉNERO DEL PLAN DE DESARROLLO LOCAL","INVERSION",null,null,null,null,"O23011603400000001781",1,1022408072,"LAURA STHEFANIA DIAZ GUTIERREZ","PERSONA NATURAL",null,"NO APLICA","NO APLICA",null,27084000,-4965400,"N/A",0,22118600,22118600,"2023-01-27","2023-01-31","2023-06-27",180,"N/A","N/A","N/A","N/A","N/A",null,"TERMINADO",1]
["FDLC-CPS-090-2023",2023,"FDLC-CPS-090-2023","https://community.secop.gov.co/Public/Tendering/OpportunityDetail/Index?noticeUID=CO1.NTC.3849175&isFromPublicArea=True&isModal=true&asPopupView=true","Contrato de Prestación de Servicios Profesionales y de Apoyo a la gestión","CONTRATACION DIRECTA","No aplica","PRESTAR SERVICIOS DE APOYO ADMINISTRATIVO Y ASISTENCIAL EN LA GESTIÓN DE LA ALCALDÍA LOCAL DE LA CANDELARIA EN EL TRÁMITEDE LOS COMPARENDOS Y QUERELLAS DE CONFORMIDAD CON LA LEY 1801 DE 2016","INVERSION",null,null,null,null,"O23011605570000002023",1,79951133,"WILSON HAISBER RAMIREZ REINA","PERSONA NATURAL",null,"NO APLICA","NO APLICA",null,29700000,null,"N/A",0,29700000,27360000,"2023-01-26","2023-01-27","2023-12-26",330,"N/A","N/A","N/A","N/A","N/A",null,"TERMINADO",0.92121212121212126]
["FDLC-CPS-091-2023",2023,"FDLC-CPS-091-2023","https://community.secop.gov.co/Public/Tendering/OpportunityDetail/Index?noticeUID=CO1.NTC.3849901&isFromPublicArea=True&isModal=true&asPopupView=true","Contrato de Prestación de Servicios Profesionales y de Apoyo a la gestión","CONTRATACION DIRECTA","No aplica","PRESTAR SERVICIOS DE APOYO EN LAS ACTIVIDADES DE SEGURIDAD Y CONVIVENCIA CIUDADANA DE ACUERDO A LAS NECESIDADES Y ESTRATEGIAS DE LA ALCALDIA LOCAL DE LA CANDELARIA","INVERSION",null,null,null,null,"O23011605570000002021",1,79745860,"WILSON JAIR GONZALEZ BELTRAN","PERSONA NATURAL",null,"NO APLICA","NO APLICA",null,20680000,null,2,10340002,31020002,19050667,"2023-01-26","2023-01-27","2024-06-15",330,2,165,"N/A","N/A","N/A",null,"EJECUCION",0.61414138529069084]
["FDLC-CPS-092-2023",2023,"FDLC-CPS-092-2023","https://community.secop.gov.co/Public/Tendering/OpportunityDetail/Index?noticeUID=CO1.NTC.3847646&isFromPublicArea=True&isModal=true&asPopupView=true","Contrato de Prestación de Servicios Profesionales y de Apoyo a la gestión","CONTRATACION DIRECTA","No aplica","PRESTAR SERVICIOS ASISTENCIALES AL ÁREA DE GESTIÓN DE DESARROLLO LOCAL EN LOS PROCESOS RELACIONADOS CON LAS ACTIVIDADES DE GESTION ADMINISTRATIVA DE LA ALCALDÍA LOCAL DE LA CANDELARIA","INVERSION",null,null,null,null,"O23011605570000002021",1,80108185,"ALEXIS ROLANDO CASTELLANOS MOSQUERA","PERSONA NATURAL",null,"NO APLICA","NO APLICA",null,26400000,null,"N/A",0,26400000,24000000,"2023-01-25","2023-01-26","2023-12-25",330,"N/A","N/A","N/A","N/A","N/A",null,"TERMINADO",0.90909090909090906]
["FDLC-CPS-093-2023",2023,"FDLC-CPS-093-2023","https://community.secop.gov.co/Public/Tendering/OpportunityDetail/Index?noticeUID=CO1.NTC.3847511&isFromPublicArea=True&isModal=true&asPopupView=true","Contrato de Prestación de Servicios Profesionales y de Apoyo a la gestión","CONTRATACION DIRECTA","No aplica","PRESTACIÓN DE SERVICIOS DE APOYO LOGÍSTICO EN LOS EVENTOS Y ACTIVIDADES DE LA ADMINISTRACIÓN LOCAL DE LA LOCALIDAD DE LA CANDELARIA","INVERSION",null,null,null,null,"O23011605570000002021",1,79594412,"FABIO ALBERTO MOLINA GUTIERREZ","PERSONA NATURAL",null,"NO APLICA","NO APLICA",null,29700000,null,"N/A",0,29700000,27450000,"2023-01-25","2023-01-26","2023-12-25",330,"N/A","N/A","N/A","N/A","N/A",null,"TERMINADO",0.9242424242424242]
["FDLC-CPS-094-2023",2023,"FDLC-CPS-094-2023","https://community.secop.gov.co/Public/Tendering/OpportunityDetail/Index?noticeUID=CO1.NTC.3848035&isFromPublicArea=True&isModal=true&asPopupView=true","Contrato de Prestación de Servicios Profesionales y de Apoyo a la gestión","CONTRATACION DIRECTA","No aplica","PRESTAR SERVICIOS PROFESIONALES AL FONDO DE DESARROLLO LOCAL DE LA CANDELARIA PARA APOYAR TÉCNICAMENTE A LOS RESPONSABLES E INTEGRANTES DE LOS PROCESOS EN LA IMPLEMENTACIÓN DE HERRAMIENTAS DE GESTIÓN SIGUIENDO LOS LINEAMIENTOS METODOLÓGICOS ESTABLECIDOS POR LA OFICINA ASESORA DE PLANEACIÓN DE LA SECRETARÍA DISTRITAL DE GOBIERNO","INVERSION",null,null,null,null,"O23011605570000002021",1,1030563592,"LUIS CARLOS CARRILLO AHUMADA","PERSONA NATURAL",null,"NO APLICA","NO APLICA",null,56100000,null,"N/A",0,{"$f":"+W107+X107+Z107","v":56100000},51850000,"2023-01-25","2023-01-26","2023-12-25",330,"N/A","N/A","N/A","N/A","N/A",null,"TERMINADO",0.9242424242424242]
["FDLC-CPS-095-2023",2023,"FDLC-CPS-095-2023","https://community.secop.gov.co/Public/Tendering/OpportunityDetail/Index?noticeUID=CO1.NTC.3847287&isFromPublicArea=True&isModal=true&asPopupView=true","Contrato de Prestación de Servicios Profesionales y de Apoyo a la gestión","CONTRATACION DIRECTA","No aplica","PRESTAR SERVICIOS PROFESIONALES PARA APOYAR JURÍDICAMENTE A LA ALCALDIA LOCAL DE LA CANDELARIA","INVERSION",null,null,null,null,"O23011605570000002023",1,80729376,"MAURICIO ANTONIO BOHADA CARDENAS","PERSONA NATURAL",null,"NO APLICA","NO APLICA",null,60500000,null,"N/A",0,60500000,55916667,"2023-01-26","2023-01-26","2023-12-25",330,"N/A","N/A","N/A","N/A","N/A",null,"TERMINADO",0.92424242975206616]
["FDLC-CPS-096-2023",2023,"FDLC-CPS-096-2023","https://community.secop.gov.co/Public/Tendering/OpportunityDetail/Index?noticeUID=CO1.NTC.3856841&isFromPublicArea=True&isModal=true&asPopupView=true","Contrato de Prestación de Servicios Profesionales y de Apoyo a la gestión","CONTRATACION DIRECTA","No aplica","PRESTAR SERVICIOS PROFESIONALES AL FONDO DE DESARROLLO LOCAL DE LA CANDELARIA PARA LA OPERACIÓN PRESTACIÓN SEGUIMIENTO Y CUMPLIMIENTO DE LOS PROCEDIMIENTOS ADMINISTRATIVOS OPERATIVOS Y PROGRAMÁTICOS DEL SERVICIO APOYO ECONÓMICO TIPO C QUE CONTRIBUYAN A LA GARANTÍA DE LOS DERECHOS DE LA POBLACIÓN MAYOR EN EL MARCO DE LA POLÍTICA PÚBLICA SOCIAL PARA EL ENVEJECIMIENTO Y LA VEJEZ EN EL DISTRITO CAPITAL A CARGO DELA ALCALDÍA LOCAL","INVERSION",null,null,null,null,"O23011601010000001605",1,1033749239,"AZUCENA SALAZAR GIRALDO","PERSONA NATURAL",null,"NO APLICA","NO APLICA",null,60500000,null,2,11000002,71500002,55733333,"2023-01-26","2023-01-27","2024-02-26",330,2,60,"N/A","N/A","N/A",null,"EJECUCION",0.77948715302133842]
["FDLC-CPS-097-2023",2023,"FDLC-CPS-097-2023","https://community.secop.gov.co/Public/Tendering/OpportunityDetail/Index?noticeUID=CO1.NTC.3850044&isFromPublicArea=True&isModal=true&asPopupView=true","Contrato de Prestación de Servicios Profesionales y de Apoyo a la gestión","CONTRATACION DIRECTA","No aplica","PRESTAR SERVICIOS PROFESIONALES AL FONDO DE DESARROLLO LOCAL DE LA CANDELARIA PARA APOYAR LAS GESTIONES RELACIONADAS CON EL PRESUPUESTO DE LA ENTIDAD","INVERSION",null,null,null,null,"O23011605570000002021",1,50875779,"ISABELA RAQUEL FERNANDEZ PEREZ","PERSONA NATURAL",null,"NO APLICA","NO APLICA",null,55000000,null,2,10000002,65000002,50666667,"2023-01-26","2023-01-27","2024-02-26",330,2,60,"N/A","N/A","N/A",null,"EJECUCION",0.7794871606311643]
["FDLC-CPS-098-2023",2023,"FDLC-CPS-098-2023","https://community.secop.gov.co/Public/Tendering/OpportunityDetail/Index?noticeUID=CO1.NTC.3855904&isFromPublicArea=True&isModal=true&asPopupView=true","Contrato de Prestación de Servicios Profesionales y de Apoyo a la gestión","CONTRATACION DIRECTA","No aplica","PRESTAR SUS SERVICIOS PROFESIONALES DE APOYO Y ACOMPAÑAMIENTO RELACIONADOS CON LOS PROYECTOS DE OBRA PÚBLICA E INFRAESTRUCTURA PARA LOGRAR EL CUMPLIMIENTO DE LAS METAS DEL PLAN DE DESARROLLO LOCAL 20212024","INVERSION",null,null,null,null,"O23011604490000002020",1,1015395116,"JHON EDWIN MORALES HERRERA","PERSONA NATURAL",null,"NO APLICA","NO APLICA",null,30000000,-3000000,"N/A",0,27000000,27000000,"2023-01-26","2023-01-30","2023-06-29",150,"N/A","N/A","N/A","N/A","N/A",null,"TERMINADO",1]
["FDLC-CPS-099-2023",2023,"FDLC-CPS-099-2023","https://community.secop.gov.co/Public/Tendering/OpportunityDetail/Index?noticeUID=CO1.NTC.3851206&isFromPublicArea=True&isModal=true&asPopupView=true","Contrato de Prestación de Servicios Profesionales y de Apoyo a la gestión","CONTRATACION DIRECTA","No aplica","PRESTAR LOS SERVICIOS DE APOYO TECNICO AL FONDO DE DESARRROLLO LOCAL DE LA CANDELARIA QUE LE SEAN REQUERIDOS POR EL DESPACHO DEL ALCALDESA LOCAL DE LA CANDELARIA","INVERSION",null,null,null,null,"O23011605570000002021",1,1054121677,"LINA MARCELA HOLGUIN HURTADO","PERSONA NATURAL",null,"NO APLICA","NO APLICA",null,35167000,-19714833,"N/A",0,{"$f":"+W112+X112+Z112","v":15452167},15452167,"2023-01-26","2023-01-27","2023-06-21",330,"N/A","N/A","N/A","N/A","N/A",null,"TERMINADO",1]
["FDLC-CPS-100-2023",2023,"FDLC-CPS-100-2023","https://community.secop.gov.co/Public/Tendering/OpportunityDetail/Index?noticeUID=CO1.NTC.3848098&isFromPublicArea=True&isModal=true&asPopupView=true","Contrato de Prestación de Servicios Profesionales y de Apoyo a la gestión","CONTRATACION DIRECTA","No aplica","PRESTAR SERVICIOS DE APOYO TÉCNICO AL FONDO DEDESARROLLO LOCAL DE LA CANDELARIA EN LOS PROCEDIMIENTOSADMINISTRATIVOS DERIVADOS DE LOS PROYECTOS SOCIALES Y DESALUD EN LA LOCALIDAD","INVERSION",null,null,null,null,"O23011601060000001664",1,79907754,"JUAN ANGEL LOPEZ ARDILA","PERSONA NATURAL",null,"NO APLICA","NO APLICA",null,28000000,null,"N/A",2800000,30800000,28373333,"2023-01-25","2023-01-27","2023-12-26",330,1,30,"N/A","N/A","N/A",null,"TERMINADO",0.92121211038961037]
["FDLC-CPS-101-2023",2023,"FDLC-CPS-101-2023","https://community.secop.gov.co/Public/Tendering/OpportunityDetail/Index?noticeUID=CO1.NTC.3855778&isFromPublicArea=True&isModal=true&asPopupView=true","Contrato de Prestación de Servicios Profesionales y de Apoyo a la gestión","CONTRATACION DIRECTA","No aplica","COORDINA LIDERA Y ASESORA LOS PLANES Y ESTRATEGIAS DE COMUNICACIÓN INTERNA Y EXTERNA PARA LA DIVULGACIÓN DE LOS PROGRAMAS PROYECTOS Y ACTIVIDADES DE LA ALCALDÍA LOCAL","INVERSION",null,null,null,null,"O23011605570000002021",1,79943624,"FRANCISCO ARTURO TAFUR LÓPEZ","PERSONA NATURAL",null,"NO APLICA","NO APLICA",null,77000000,null,"N/A",0,{"$f":"+W114+X114+Z114","v":77000000},70933333,"2023-01-26","2023-01-27","2023-12-26",330,"N/A","N/A","N/A","N/A","N/A",null,"TERMINADO",0.92121211688311688]
["FDLC-CPS-102-2023",2023,"FDLC-CPS-102-2023","https://community.secop.gov.co/Public/Tendering/OpportunityDetail/Index?noticeUID=CO1.NTC.3856358&isFromPublicArea=True&isModal=true&asPopupView=true","Contrato de Prestación de Servicios Profesionales y de Apoyo a la gestión","CONTRATACION DIRECTA","No aplica","PRESTAR SERVICIOS DE APOYO EN LAS ACTIVIDADES DE SEGURIDAD Y CONVIVENCIA CIUDADANA DE ACUERDO A LAS NECESIDADES Y ESTRATEGIAS DE LA ALCALDIA LOCAL DE LA CANDELARIA","INVERSION",null,null,null,null,"O23011605570000002021",1,1069763701,"MARIA YULI BERNATE CASTILLO","PERSONA NATURAL",null,"NO APLICA","NO APLICA",null,20680000,null,2,86480002,107160002,18674667,"2023-01-26","2023-02-03","2024-06-15",330,2,165,"N/A","N/A","N/A",null,"EJECUCION",0.1742690057060656]
["FDLC-CPS-103-2023",2023,"FDLC-CPS-103-2023","https://community.secop.gov.co/Public/Tendering/OpportunityDetail/Index?noticeUID=CO1.NTC.3856165&isFromPublicArea=True&isModal=true&asPopupView=true","Contrato de Prestación de Servicios Profesionales y de Apoyo a la gestión","CONTRATACION DIRECTA","No aplica","PRESTAR SERVICIOS PROFESIONALES AL FONDO DE DESARROLLO LOCAL DE LA CANDELARIA PARA APOYAR EL SEGUIMIENTO LIQUIDACIÓN DEPURACIÓN Y CONSOLIDACIÓN DE LA INFORMACIÓN DE LAS OBLIGACIONES POR PAGAR DERIVADAS DE LA GESTIÓN CONTRACTUAL DE LA ENTIDAD Y SU RESPECTIVA LIQUIDACION","INVERSION",null,null,null,null,"O23011605570000002021",1,53029549,"GINNA ANDUKLEY ARIAS MORENO ","PERSONA NATURAL",null,"NO APLICA","NO APLICA",null,30000000,null,1,15000001,45000001,40666667,"2023-01-26","2023-01-27","2023-10-26",180,1,90,1010207593,"CESION DE LEIDY KATHERINE MIRANDA HERNANDEZ","2023-06-27",null,"TERMINADO",0.90370369102880688]
["FDLC-CPS-104-2023",2023,"FDLC-CPS-104-2023","https://community.secop.gov.co/Public/Tendering/OpportunityDetail/Index?noticeUID=CO1.NTC.3855895&isFromPublicArea=True&isModal=true&asPopupView=true","Contrato de Prestación de Servicios Profesionales y de Apoyo a la gestión","CONTRATACION DIRECTA","No aplica","PRESTAR SERVICIOS TÉCNICOS DE APOYO AL FONDO DE DESARROLLO LOCAL DE LA CANDELARIA PARA LA GESTION DE LOS ASUNTOS RELACIONADOS CON SEGURIDAD CIUDADANA CONVIVENCIA PREVENCIÓN DE CONFLICTIVIDADES VIOLENCIAS Y DELITOS EN LA LOCALIDAD","INVERSION",null,null,null,null,"O23011605570000002023",1,1010235642,"YENCI CAMILA PASTOR BULLA","PERSONA NATURAL",null,"NO APLICA","NO APLICA",null,30107000,null,"N/A",0,30107000,27734933,"2023-01-27","2023-01-27","2023-12-26",330,"N/A","N/A","N/A","N/A","N/A",null,"TERMINADO",0.92121211014049886]
["FDLC-CPS-105-2023",2023,"FDLC-CPS-105-2023","https://community.secop.gov.co/Public/Tendering/OpportunityDetail/Index?noticeUID=CO1.NTC.3894626&isFromPublicArea=True&isModal=true&asPopupView=true","Contrato de Prestación de Servicios Profesionales y de Apoyo a la gestión","CONTRATACION DIRECTA","No aplica","PRESTAR SUS SERVICIOS PROFESIONALES DE APOYO Y ACOMPAÑAMIENTO RELACIONADOS CON LOS PROYECTOS Y ESTRATEGIAS DE EMPRENDIMIENTO E INNOVACIÓN DEL SECTOR CULTURAL Y CREATIVO DE LA LOCALIDAD EN CUMPLIMIENTO DE LAS METAS DEL PLAN DE DESARROLLO LOCAL 20212024","INVERSION",null,null,null,null,"O23011601240000001627",1,1012362649,"ALEXANDER JUNIOR VALEGA LOZANO ","PERSONA NATURAL",null,"NO APLICA","NO APLICA",null,30000000,null,"N/A",0,30000000,25000000,"2023-01-31","2023-02-01","2023-07-31",180,"N/A","N/A",1022370301,"CESION DE DIEGO ALEXANDER SAMUDIO CABALLERO","2023-05-24",null,"TERMINADO",0.83333333333333337]
["FDLC-CPS-106-2023",2023,"FDLC-CPS-106-2023","https://community.secop.gov.co/Public/Tendering/OpportunityDetail/Index?noticeUID=CO1.NTC.3852537&isFromPublicArea=True&isModal=true&asPopupView=true","Contrato de Prestación de Servicios Profesionales y de Apoyo a la gestión","CONTRATACION DIRECTA","No aplica","PRESTAR SUS SERVICIOS PROFESIONALES DE APOYO Y ACOMPAÑAMIENTO RELACIONADOS CON LOS PROYECTOS DE OBRA PÚBLICA E INFRAESTRUCTURA PARA LOGRAR EL CUMPLIMIENTO DE LAS METAS DEL PLAN DE DESARROLLO LOCAL 20212024","INVERSION",null,null,null,null,"O23011604490000002020",1,80879007,"JUAN PABLO SANABRIA VEGA","PERSONA NATURAL",null,"NO APLICA","NO APLICA",null,30000000,-2400000,"N/A",0,27600000,27600000,"2023-01-26","2023-01-27","2023-06-14",150,"N/A","N/A","N/A","N/A","N/A",null,"TERMINADO",1]
["FDLC-CPS-107-2023",2023,"FDLC-CPS-107-2023","https://community.secop.gov.co/Public/Tendering/OpportunityDetail/Index?noticeUID=CO1.NTC.3862122&isFromPublicArea=True&isModal=true&asPopupView=true","Contrato de Prestación de Servicios Profesionales y de Apoyo a la gestión","CONTRATACION DIRECTA","No aplica","PRESTAR SERVICIOS DE APOYO ADMINISTRATIVO Y ASISTENCIAL ENLOS PROCESOS DE LOS ASUNTOS JURÍDICOS Y ACTUACIONESADMINISTRATIVAS ADELANTADOS POR LA ALCALDÍA LOCAL DE LACANDELARIA","INVERSION",null,null,null,null,"O23011605570000002023",1,1026567453,"FABIAN ALONSO MORENO RODRIGUEZ ","PERSONA NATURAL",null,"NO APLICA","NO APLICA",null,19800000,null,"N/A",0,19800000,18060000,"2023-01-27","2023-01-30","2023-12-29",330,"N/A","N/A",43904066,"CESION DE MARIA NATHALIE INFANTE GOMEZ","2023-06-27",null,"TERMINADO",0.91212121212121211]
["FDLC-CPS-108-2023",2023,"FDLC-CPS-108-2023","https://community.secop.gov.co/Public/Tendering/OpportunityDetail/Index?noticeUID=CO1.NTC.3863089&isFromPublicArea=True&isModal=true&asPopupView=true","Contrato de Prestación de Servicios Profesionales y de Apoyo a la gestión","CONTRATACION DIRECTA","No aplica","PRESTAR SERVICIOS PROFESIONALES PARA EL SEGUIMIENTOJURÍDICO DE LOS PROYECTOS DE INFRAESTRUCTURA ASÍ COMOLOS ASUNTOS CONTRACTUALES QUE SE REQUIERAN","INVERSION",null,null,null,null,"O23011604490000002020",1,1015453498,"JAVIER EDUARDO SANTIAGO MÉNDEZ","PERSONA NATURAL",null,"NO APLICA","NO APLICA",null,40000000,null,2,16833335,56833335,50000000,"2023-01-27","2023-01-31","2024-01-11",240,2,101,"N/A","N/A","N/A",null,"TERMINADO",0.87976537009485722]
["FDCL-CPS-109-2023",2023,"FDCL-CPS-109-2023","https://community.secop.gov.co/Public/Tendering/OpportunityDetail/Index?noticeUID=CO1.NTC.3861610&isFromPublicArea=True&isModal=true&asPopupView=true","Contrato de Prestación de Servicios Profesionales y de Apoyo a la gestión","CONTRATACION DIRECTA","No aplica","PRESTAR SERVICIOS TÉCNICOS PARA APOYAR AL FONDO DE DESARROLLO LOCAL DE LA CANDELARIA EN LAS TAREAS OPERATIVAS DE CARÁCTER ARCHIVÍSTICO DESARROLLADAS PARA GARANTIZAR LA APLICACIÓN CORRECTA DE LOS PROCEDIMIENTOS TÉCNICOS","INVERSION",null,null,null,null,"O23011605570000002021",1,52496566,"SONIA MORENO SALGUERO","PERSONA NATURAL",null,"NO APLICA","NO APLICA",null,44000000,null,2,22000002,66000002,40533333,"2023-01-27","2023-01-27","2024-06-11",330,2,165,"N/A","N/A","N/A",null,"EJECUCION",0.61414139048056393]
["FDLC-CPS-110-2023",2023,"FDLC-CPS-110-2023","https://community.secop.gov.co/Public/Tendering/OpportunityDetail/Index?noticeUID=CO1.NTC.3861473&isFromPublicArea=True&isModal=true&asPopupView=true","Contrato de Prestación de Servicios Profesionales y de Apoyo a la gestión","CONTRATACION DIRECTA","No aplica","PRESTAR SERVICIOS DE APOYO A LA GESTIÓN DEL FONDO DE DESARROLLO LOCAL DE LA CANDELARIA EN EL CENTRO DE INFORMACIÓN Y DOCUMENTACIÓN CDI PARA EL MANEJO Y PROCESO DE DISTRIBUCIÓN DE CORRESPONDENCIA EN GENERAL","INVERSION",null,null,null,null,"O23011605570000002021",1,1012339492,"DIANA CAROLINA MOLANO MENDEZ","PERSONA NATURAL",null,"NO APLICA","NO APLICA",null,28600000,null,2,5200002,33800002,26346667,"2023-01-27","2023-01-27","2024-02-26",330,2,60,"N/A","N/A","N/A",null,"EJECUCION",0.77948714322561286]
["FDLC-CPS-111-2023",2023,"FDLC-CPS-111-2023","https://community.secop.gov.co/Public/Tendering/OpportunityDetail/Index?noticeUID=CO1.NTC.3892824&isFromPublicArea=True&isModal=true&asPopupView=true","Contrato de Prestación de Servicios Profesionales y de Apoyo a la gestión","CONTRATACION DIRECTA","No aplica","PRESTAR SERVICIOS PROFESIONALES DE APOYO A LA ALCALDÍA LOCAL DE LA CANDELARIA EN EL FORTALECIMIENTO E INCLUSIÓN DE LOS PUEBLOS INDÍGENAS EN EL MARCO DE LA POLÍTICA PÚBLICA DISTRITAL PARA LOS PUEBLOS INDÍGENAS ASÍ COMO LOS PROCESOS COMUNITARIOS Y DEMÁS ESPACIOS DE PARTICIPACIÓN DESIGNADOS","INVERSION",null,null,null,null,"O23011605570000002021",1,1032368719,"ANA PATRICIA JACANAMIJOY JACANAMIJOY","PERSONA NATURAL",null,"NO APLICA","NO APLICA",null,55000000,null,"N/A",0,{"$f":"+W124+X124+Z124","v":55000000},50000000,"2023-01-31","2023-02-01","2023-12-31",330,"N/A","N/A","N/A","N/A","N/A",null,"TERMINADO",0.90909090909090906]
["FDLC-CPS-112-2023",2023,"FDLC-CPS-112-2023","https://community.secop.gov.co/Public/Tendering/OpportunityDetail/Index?noticeUID=CO1.NTC.3892857&isFromPublicArea=True&isModal=true&asPopupView=true","Contrato de Prestación de Servicios Profesionales y de Apoyo a la gestión","CONTRATACION DIRECTA","No aplica","PRESTAR SERVICIOS PROFESIONALES PARA APOYAR LA GESTION DE LOS ASUNTOS RELACIONADOS CON LA PROTECCIÓN CUIDADO Y CONSERVACIÓN DE LA MALLA VIAL COMO COMPONENTE PATRIMONIAL DE LA CANDELARIA","INVERSION",null,null,null,null,"O23011604490000002020",1,52359710,"MARTHA JANNETH TRIANA RUBIANO","PERSONA NATURAL",null,"NO APLICA","NO APLICA",null,55000000,null,1,15000001,70000001,45000000,"2023-01-31","2023-02-01","2024-03-31",330,1,90,"N/A","N/A","N/A",null,"EJECUCION",0.64285713367346953]
["FDLC-CPS-113-2023",2023,"FDLC-CPS-113-2023","https://community.secop.gov.co/Public/Tendering/OpportunityDetail/Index?noticeUID=CO1.NTC.3892774&isFromPublicArea=True&isModal=true&asPopupView=true","Contrato de Prestación de Servicios Profesionales y de Apoyo a la gestión","CONTRATACION DIRECTA","No aplica","PRESTAR SERVICIOS DE APOYO EN LAS ACTIVIDADES DE PROTECCIÓN CUIDADO Y CONSERVACIÓN DE LA MALLA VIAL COMO COMPONENTE PATRIMONIAL DE LA CANDELARIA","INVERSION",null,null,null,null,"O23011604490000002020",1,79314172,"JULIO ALBERTO OSUNA RAMIREZ","PERSONA NATURAL",null,"NO APLICA","NO APLICA",null,9250000,-616667,"N/A",0,8633333,8633333,"2023-02-01","2023-02-01","2023-06-20",150,"N/A","N/A","N/A","N/A","N/A",null,"TERMINADO",1]
["FDLC-CPS-114-2023",2023,"FDLC-CPS-114-2023","https://community.secop.gov.co/Public/Tendering/OpportunityDetail/Index?noticeUID=CO1.NTC.3892769&isFromPublicArea=True&isModal=true&asPopupView=true","Contrato de Prestación de Servicios Profesionales y de Apoyo a la gestión","CONTRATACION DIRECTA","No aplica","PRESTAR SERVICIOS PROFESIONALES PARA EL SEGUIMIENTO JURÍDICO DE LOS PROYECTOS DE INFRAESTRUCTURA ASÍ COMO LOS DEMÁS ASUNTOS CONTRACTUALES QUE SE REQUIERAN","INVERSION",null,null,null,null,"O23011604490000002020",1,1010235944,"JUAN PABLO ORTIZ MARTINEZ","PERSONA NATURAL",null,"NO APLICA","NO APLICA",null,40000000,null,2,20000002,60000002,49000000,"2023-01-31","2023-02-08","2024-02-07",240,2,120,"N/A","N/A","N/A",null,"TERMINADO",0.8166666394444454]
["FDLC-CPS-115-2023",2023,"FDLC-CPS-115-2023","https://community.secop.gov.co/Public/Tendering/OpportunityDetail/Index?noticeUID=CO1.NTC.3922047&isFromPublicArea=True&isModal=true&asPopupView=true","Contrato de Prestación de Servicios Profesionales y de Apoyo a la gestión","CONTRATACION DIRECTA","No aplica","PRESTAR SERVICIOS DE APOYO EN LAS ACTIVIDADES DE PROTECCIÓN CUIDADO Y CONSERVACIÓN DE LA MALLA VIAL COMO COMPONENTE PATRIMONIAL DE LA CANDELARIA","INVERSION",null,null,null,null,"O23011604490000002020",1,1122727530,"JESSE JOSE VILLEGAS CABRERA","PERSONA NATURAL",null,"NO APLICA","NO APLICA",null,9250000,-986667,"N/A",0,8263333,8263333,"2023-02-03","2023-02-07","2023-06-20",150,"N/A","N/A","N/A","N/A","N/A",null,"TERMINADO",1]
["FDLC-CPS-116-2023",2023,"FDLC-CPS-116-2023","https://community.secop.gov.co/Public/Tendering/OpportunityDetail/Index?noticeUID=CO1.NTC.3891710&isFromPublicArea=True&isModal=true&asPopupView=true","Contrato de Prestación de Servicios Profesionales y de Apoyo a la gestión","CONTRATACION DIRECTA","No aplica","PRESTAR SERVICIOS PROFESIONALES AL FONDO DE DESARROLLOLOCAL DE LA CANDELARIA PARA APOYAR EN LA FORMULACIÓNPRESENTACIÓN EVALUACIÓN Y SEGUIMIENTO DE LOS PROYECTOSDE INVERSIÓN DEL SECTOR CULTURAL Y CREATIVO EN LALOCALIDAD","INVERSION",null,null,null,null,"O23011601240000001627",1,1013607417,"YESID FERNANDO BUSTOS AGUILAR","PERSONA NATURAL",null,"NO APLICA","NO APLICA",null,30000000,-5666667,"N/A",0,24333333,24333333,"2023-02-01","2023-02-02","2023-06-27",180,"N/A","N/A","N/A","N/A","N/A",null,"TERMINADO",1]
["FDLC-CPS-117-2023",2023,"FDLC-CPS-117-2023","https://community.secop.gov.co/Public/Tendering/OpportunityDetail/Index?noticeUID=CO1.NTC.3882274&isFromPublicArea=True&isModal=true&asPopupView=true","Contrato de Prestación de Servicios Profesionales y de Apoyo a la gestión","CONTRATACION DIRECTA","No aplica","PRESTAR SERVICIOS ASISTENCIALES PARA APOYAR EN LAS TAREAS RELACIONADAS CON LA GESTIÓN DOCUMENTAL DE LA ALCALDIA LOCAL DE LA CANDELARIA","INVERSION",null,null,null,null,"O23011605570000002021",1,52380326,"ALEXANDRA GARZON BELTRAN","PERSONA NATURAL",null,"NO APLICA","NO APLICA",null,19800000,null,"N/A",0,19800000,17220000,"2023-01-31","2023-02-03","2023-12-31",330,"N/A","N/A","N/A","N/A","N/A",null,"TERMINADO",0.86969696969696975]
["FDLC-CPS-118-2023",2023,"FDLC-CPS-118-2023","https://community.secop.gov.co/Public/Tendering/OpportunityDetail/Index?noticeUID=CO1.NTC.3884640&isFromPublicArea=True&isModal=true&asPopupView=true","Contrato de Prestación de Servicios Profesionales y de Apoyo a la gestión","CONTRATACION DIRECTA","No aplica","PRESTAR SERVICIOS PROFESIONALES PARA EL SEGUIMIENTO JURÍDICO DE LOS PROYECTOS DE INFRAESTRUCTURA ASÍ COMO LOS DEMÁS ASUNTOS CONTRACTUALES QUE SE REQUIERA","INVERSION",null,null,null,null,"O23011604490000002020",1,81740245,"DAVID RICARDO PEÑALOZA LOMBO ","PERSONA NATURAL",null,"NO APLICA","NO APLICA",null,40000000,null,1,10000001,50000001,47500000,"2023-01-31","2023-02-02","2023-09-30",240,1,60,79428611,"CESION DE CARLOS GUILLERMO VANEGAS SALGADO","2023-05-15",null,"TERMINADO",0.94999998100000038]
["FDLC-CPS-119-2023",2023,"FDLC-CPS-119-2023","https://community.secop.gov.co/Public/Tendering/OpportunityDetail/Index?noticeUID=CO1.NTC.3884841&isFromPublicArea=True&isModal=true&asPopupView=true","Contrato de Prestación de Servicios Profesionales y de Apoyo a la gestión","CONTRATACION DIRECTA","No aplica","PRESTAR LOS SERVICIOS PROFESIONALES PARA APOYAR EN LA ELABORACIÓN GESTIÓN Y PUBLICACIÓN DE CONTENIDOS Y MATERIAL GRÁFICO DE COMUNICACIÓN EN LAS REDES SOCIALES HERRAMIENTAS INSTITUCIONALES DE COMUNICACIÓN  DE LA JUNTA ADMINISTRADORA LOCAL DE LA CANDELARIA","INVERSION",null,null,null,null,"O23011605570000002021",1,80238737,"JOHANNI JAVIER MORALES AMAYA","PERSONA NATURAL",null,"NO APLICA","NO APLICA",null,51700000,null,"N/A",0,51700000,46843333,"2023-01-31","2023-02-02","2023-12-31",330,"N/A","N/A","N/A","N/A","N/A",null,"TERMINADO",0.90606059961315277]
["FDLC-CPS-120-2023",2023,"FDLC-CPS-120-2023","https://community.secop.gov.co/Public/Tendering/OpportunityDetail/Index?noticeUID=CO1.NTC.3882217&isFromPublicArea=True&isModal=true&asPopupView=true","Contrato de Prestación de Servicios Profesionales y de Apoyo a la gestión","CONTRATACION DIRECTA","No aplica","PRESTAR SERVICIOS PROFESIONALES PARA APOYAR EN LA FORMULACION TECNICA Y SEGUIMIENTOS DE PLANES POLITICAS PROGRAMAS Y PROYECTOS RELACIONADOS CON OBRAS E INFRAESTRUCTURA QUE DESARROLLE LA ALCALDIA LOCAL DE LA CANDELARIA","INVERSION",null,null,null,null,"O23011604490000002020",1,1015446434,"CATERINE JOHANNA GUZMAN RINCON","PERSONA NATURAL",null,"NO APLICA","NO APLICA",null,36112000,null,2,15789002,51901002,45140000,"2023-01-31","2023-02-01","2024-01-15",240,2,105,"N/A","N/A","N/A",null,"TERMINADO",0.86973272693270931]
["FDLC-CPS-121-2023",2023,"FDLC-CPS-121-2023","https://community.secop.gov.co/Public/Tendering/OpportunityDetail/Index?noticeUID=CO1.NTC.3892939&isFromPublicArea=True&isModal=true&asPopupView=true","Contrato de Prestación de Servicios Profesionales y de Apoyo a la gestión","CONTRATACION DIRECTA","No aplica","PRESTAR SERVICIOS DE APOYO EN LAS ACTIVIDADES DE SEGURIDAD Y CONVIVENCIA CIUDADANA DE ACUERDO A LAS NECESIDADES Y ESTRATEGIAS DE LA ALCALDIA LOCAL DE LA CANDELARIA","INVERSION",null,null,null,null,"O23011605570000002021",1,52319984,"CLAUDA BEATRIZ FLOREZ RINCON","PERSONA NATURAL",null,"NO APLICA","NO APLICA",null,20680000,null,2,10340002,31020002,18737333,"2023-01-31","2023-02-02","2024-06-15",330,2,165,"N/A","N/A","N/A",null,"EJECUCION",0.60404035434942915]
["FDLC-CPS-122-2023",2023,"FDLC-CPS-122-2023","https://community.secop.gov.co/Public/Tendering/OpportunityDetail/Index?noticeUID=CO1.NTC.3891490&isFromPublicArea=True&isModal=true&asPopupView=true","Contrato de Prestación de Servicios Profesionales y de Apoyo a la gestión","CONTRATACION DIRECTA","No aplica","PRESTACIÓN DE SERVICIOS PROFESIONALES AL FONDO DEDESARROLLO LOCAL DE LA CANDELARIA PARA ATENDER LASPETICIONES QUEJAS RECLAMOS YO SOLICITUDES PRESENTADASPOR LA CIUDADANÍA DE CONFORMIDAD CON LOS TÉRMINOSLEGALES ESTABLECIDOS Y APOYAR LAS RESPUESTAS REQUERIDASPOR LOS ENTES DE CONTROL","INVERSION",null,null,null,null,"O23011605570000002021",1,1033757530,"CHRISTIAN ALEJANDRO TORRES PATIÑO","PERSONA NATURAL",null,"NO APLICA","NO APLICA",null,40000000,null,1,5000001,45000001,39833000,"2023-01-31","2023-02-02","2023-11-01",240,1,30,"N/A","N/A","N/A",null,"TERMINADO",0.88517775810716093]
["FDLC-CPS-123-2023",2023,"FDLC-CPS-123-2023","https://community.secop.gov.co/Public/Tendering/OpportunityDetail/Index?noticeUID=CO1.NTC.3892850&isFromPublicArea=True&isModal=true&asPopupView=true","Contrato de Prestación de Servicios Profesionales y de Apoyo a la gestión","CONTRATACION DIRECTA","No aplica","PRESTAR SERVICIOS ASISTENCIALES AL FONDO DE DESARROLLO LOCAL DE LA CANDELARIA PARA LA ADMINISTRACIÓN DE LA CASA DEL ZIPA DE CONFORMIDAD CON EL ACUERDO LOCAL 034 DE 2021","INVERSION",null,null,null,null,"O23011605570000002021",1,41762577,"LUZ MYRIAM TELLEZ PERILLA","PERSONA NATURAL",null,"NO APLICA","NO APLICA",null,29700000,null,"N/A",0,29700000,27000000,"2023-01-31","2023-02-01","2023-12-31",330,"N/A","N/A","N/A","N/A","N/A",null,"TERMINADO",0.90909090909090906]
["FDLC-CPS-124-2023",2023,"FDLC-CPS-124-2023","https://community.secop.gov.co/Public/Tendering/OpportunityDetail/Index?noticeUID=CO1.NTC.3941510&isFromPublicArea=True&isModal=true&asPopupView=true","Contrato de Prestación de Servicios Profesionales y de Apoyo a la gestión","CONTRATACION DIRECTA","No aplica","PRESTAR SERVICIOS DE APOYO EN LAS ACTIVIDADES DE PROTECCIÓN CUIDADO Y CONSERVACIÓN DE LA MALLA VIAL COMO COMPONENTE PATRIMONIAL DE LA CANDELARIA","INVERSION",null,null,null,null,"O23011604490000002020",1,1010181876,"DAVID ANDRES SEGURA ORTIZ","PERSONA NATURAL",null,"NO APLICA","NO APLICA",null,9250000,-1295000,"N/A",0,7955000,7030000,"2023-02-06","2023-02-07","2023-06-15",150,"N/A","N/A","N/A","N/A","N/A",null,"TERMINADO",0.88372093023255816]
["FDLC-CPS-125-2023",2023,"FDLC-CPS-125-2023","https://community.secop.gov.co/Public/Tendering/OpportunityDetail/Index?noticeUID=CO1.NTC.3893006&isFromPublicArea=True&isModal=true&asPopupView=true","Contrato de Prestación de Servicios Profesionales y de Apoyo a la gestión","CONTRATACION DIRECTA","No aplica","PRESTAR SERVICIOS PROFESIONALES PARA APOYAR JURÍDICAMENTE LA EJECUCIÓN DE LAS ACCIONES REQUERIDAS PARA LA DEPURACIÓN DE LAS ACTUACIONES ADMINISTRATIVAS QUE CURSAN EN LA ALCALDÍA LOCAL DE LA CANDELARIA","INVERSION",null,null,null,null,"O23011605570000002023",1,41794885,"TERESA HERREÑO SOLANO","PERSONA NATURAL",null,"NO APLICA","NO APLICA",null,60500000,null,"N/A",0,60500000,55000000,"2023-01-31","2023-02-01","2023-12-31",330,"N/A","N/A","N/A","N/A","N/A",null,"TERMINADO",0.90909090909090906]
["FDLC-CPS-126-2023",2023,"FDLC-CPS-126-2023","https://community.secop.gov.co/Public/Tendering/OpportunityDetail/Index?noticeUID=CO1.NTC.3891795&isFromPublicArea=True&isModal=true&asPopupView=true","Contrato de Prestación de Servicios Profesionales y de Apoyo a la gestión","CONTRATACION DIRECTA","No aplica","PRESTAR SERVICIOS PROFESIONALES AL FONDO DE DESARROLLO LOCAL DE LA CANDELARIA EN LOS TRÁMITES RELACIONADOS CON LOS PROCESOS PRECONTRACTUALES CONTRACTUALES Y POS CONTRACTUALES QUE SE ADELANTEN A TRAVÉS DE SECOP I Y II ASÍ COMO LA ADQUISICIÓN DE BIENES Y SERVICIOS A TRAVÉS DE LA TIENDA VIRTUAL DEL ESTADO COLOMBIANO","INVERSION",null,null,null,null,"O23011605570000002021",1,1065578160,"FRANCISCO ORLANDO HERRERA TORRES","PERSONA NATURAL",null,"NO APLICA","NO APLICA",null,69300000,null,"N/A",0,{"$f":"+W139+X139+Z139","v":69300000},63000000,"2023-01-31","2023-02-01","2023-12-31",330,"N/A","N/A","N/A","N/A","N/A",null,"TERMINADO",0.90909090909090906]
["FDLC-CPS-127-2023",2023,"FDLC-CPS-127-2023","https://community.secop.gov.co/Public/Tendering/OpportunityDetail/Index?noticeUID=CO1.NTC.3893985&isFromPublicArea=True&isModal=true&asPopupView=true","Contrato de Prestación de Servicios Profesionales y de Apoyo a la gestión","CONTRATACION DIRECTA","No aplica","PRESTAR SERVICIOS DE APOYO EN LAS ACTIVIDADES DE SEGURIDADY CONVIVENCIA CIUDADANA DE ACUERDO A LAS NECESIDADES YESTRATEGIAS DE LA ALCALDIA LOCAL DE LA CANDELARIA","INVERSION",null,null,null,null,"O23011605570000002021",1,79301032,"OSCAR WILLIAM MONROY PEREZ","PERSONA NATURAL",null,"NO APLICA","NO APLICA",null,20680000,null,2,10340002,{"$f":"+W140+X140+Z140","v":31020002},18800000,"2023-01-31","2023-01-31","2024-06-15",330,2,165,"N/A","N/A","N/A",null,"EJECUCION",0.60606056698513433]
["FDLC-CPS-128-2023",2023,"FDLC-CPS-128-2023","https://community.secop.gov.co/Public/Tendering/OpportunityDetail/Index?noticeUID=CO1.NTC.3892923&isFromPublicArea=True&isModal=true&asPopupView=true","Contrato de Prestación de Servicios Profesionales y de Apoyo a la gestión","CONTRATACION DIRECTA","No aplica","PRESTAR SERVICIOS PROFESIONALES AL FONDO DE DESARROLLO LOCAL DE LA CANDELARIA PARA APOYAR Y FORTALECER LAS GESTIONES CONTABLES DE LA ENTIDAD","INVERSION",null,null,null,null,"O23011605570000002021",1,52293713,"NUBIA ALEXANDRA PARRA LACHE","PERSONA NATURAL",null,"NO APLICA","NO APLICA",null,49654000,null,"N/A",0,49654000,45140000,"2023-01-31","2023-01-31","2023-12-30",330,0,"NA",80374036," CESION DE OSCAR ALEXANDER FLECHAS OROZCO","2023-08-17",null,"TERMINADO",0.90909090909090906]
["FDLC-CPS-129-2023",2023,"FDLC-CPS-129-2023","https://community.secop.gov.co/Public/Tendering/OpportunityDetail/Index?noticeUID=CO1.NTC.3911780&isFromPublicArea=True&isModal=true&asPopupView=true","Contrato de Prestación de Servicios Profesionales y de Apoyo a la gestión","CONTRATACION DIRECTA","No aplica","PRESTACIÓN DE SERVICIOS DE APOYO ADMINISTRATIVO Y ASISTENCIAL A LA ALCALDIA LOCAL DE LA CANDELARIA EN LOS PROCESOS DE FORMACIÓN PARA LA PARTICIPACIÓN","INVERSION",null,null,null,null,"O23011605550000002019",1,52288993,"DIANA YEISY MENDEZ CUERVO","PERSONA NATURAL",null,"NO APLICA","NO APLICA",null,27500000,null,1,4416668,31916668,24833333,"2023-02-02","2023-02-03","2024-02-23",330,1,53,"N/A","N/A","N/A",null,"EJECUCION",0.77806784216948965]
["FDLC-CPS-130-2023",2023,"FDLC-CPS-130-2023","https://community.secop.gov.co/Public/Tendering/OpportunityDetail/Index?noticeUID=CO1.NTC.3903166&isFromPublicArea=True&isModal=true&asPopupView=true","Contrato de Prestación de Servicios Profesionales y de Apoyo a la gestión","CONTRATACION DIRECTA","No aplica","PRESTAR SERVICIOS DE APOYO A LA GESTIÓN DEL FONDO DE DESARROLLO LOCAL DE LA CANDELARIA EN EL CENTRO DE INFORMACIÓN Y DOCUMENTACIÓN CDI PARA EL MANEJO Y PROCESO DE DISTRIBUCIÓN DE CORRESPONDENCIA EN GENERAL","INVERSION",null,null,null,null,"O23011605570000002021",1,1032471469,"JESICA ESTEFANIA CARRILLO CUBILLOS ","PERSONA NATURAL",null,"NO APLICA","NO APLICA",null,28600000,null,"N/A",0,28600000,28513333,"2023-01-02","2023-02-02","2023-12-31",330,"N/A","N/A","N/A","N/A","N/A",null,"TERMINADO",0.99696968531468533]
["FDLC-CPS-131-2023",2023,"FDLC-CPS-131-2023","https://community.secop.gov.co/Public/Tendering/OpportunityDetail/Index?noticeUID=CO1.NTC.3905716&isFromPublicArea=True&isModal=true&asPopupView=true","Contrato de Prestación de Servicios Profesionales y de Apoyo a la gestión","CONTRATACION DIRECTA","No aplica","PRESTAR SERVICIOS PROFESIONALES PARA APOYAR JURÍDICAMENTE LA EJECUCIÓN DE LAS ACCIONES REQUERIDAS PARA LA DEPURACIÓN DE LAS ACTUACIONES ADMINISTRATIVAS QUE CURSAN EN LA ALCALDÍA LOCAL DE LA CANDELARIA","INVERSION",null,null,null,null,"O23011605570000002023",1,52449287,"ANGELICA MARIA PRECIADO SUAREZ","PERSONA NATURAL",null,"NO APLICA","NO APLICA",null,60500000,null,"N/A",0,60500000,60316667,"2023-02-02","2023-02-02","2023-12-31",330,"N/A","N/A","N/A","N/A","N/A",null,"TERMINADO",0.9969697024793388]
["FDLC-CPS-132-2023",2023,"FDLC-CPS-132-2023","https://community.secop.gov.co/Public/Tendering/OpportunityDetail/Index?noticeUID=CO1.NTC.3905472&isFromPublicArea=True&isModal=true&asPopupView=true","Contrato de Prestación de Servicios Profesionales y de Apoyo a la gestión","CONTRATACION DIRECTA","No aplica","PRESTAR SERVICIOS PROFESIONALES AL FONDO DE DESARROLLO LOCAL DE LA CANDELARIA PARA APOYAR EN LA FORMULACION PRESENTACIÓN EVALUACIÓN Y SEGUIMIENTO DE LOS PROYECTOS DE INVERSION EN LA LOCALIDAD","INVERSION",null,null,null,null,"O23011605570000002021",1,1089242261,"ROMULO SIMON ESTRELLA PANTOJA","PERSONA NATURAL",null,"NO APLICA","NO APLICA",null,27084000,-5868200,"N/A",0,21215800,21215800,"2023-02-02","2023-02-03","2023-06-23",180,"N/A","N/A","N/A","N/A","N/A",null,"TERMINADO",{"$f":"IF(ISERROR(AB145/AA145),\"-\",(AB145/AA145))","v":1}]
["FDLC-CPS-133-2023",2023,"FDLC-CPS-133-2023","https://community.secop.gov.co/Public/Tendering/OpportunityDetail/Index?noticeUID=CO1.NTC.3905558&isFromPublicArea=True&isModal=true&asPopupView=true","Contrato de Prestación de Servicios Profesionales y de Apoyo a la gestión","CONTRATACION DIRECTA","No aplica","PRESTAR SERVICIOS PROFESIONALES PARA APOYAR EN LA FORMULACION TECNICA Y SEGUIMIENTOS DE PLANES POLITICAS PROGRAMAS Y PROYECTOS RELACIONADOS CON OBRAS E INFRAESTRUCTURA QUE DESARROLLE LA ALCALDIA LOCAL DE LA CANDELARIA","INVERSION",null,null,null,null,"O23011604490000002020",1,1032475141,"LAURA DANIELA JACOME HERNANDEZ","PERSONA NATURAL",null,"NO APLICA","NO APLICA",null,66000000,null,2,33000002,99000002,59800000,"2023-02-02","2023-02-02","2024-06-15",330,2,165,"N/A","N/A","N/A",null,"EJECUCION",0.60404039183756786]
["FDLC-CPS-134-2023",2023,"FDLC-CPS-134-2023","https://community.secop.gov.co/Public/Tendering/OpportunityDetail/Index?noticeUID=CO1.NTC.3906522&isFromPublicArea=True&isModal=true&asPopupView=true","Contrato de Prestación de Servicios Profesionales y de Apoyo a la gestión","CONTRATACION DIRECTA","No aplica","PRESTAR SERVICIOS PROFESIONALES EN MATERIA JURIDICA Y EN ARTICULACIÓN INTERINSTITUCIONAL A LA ALCALDIA LOCAL DE LA CANDELARIA","INVERSION",null,null,null,null,"O23011605570000002021",1,1095800182,"LEIDY KARINA CASTILLO PUENTES","PERSONA NATURAL",null,"NO APLICA","NO APLICA",null,48000000,null,1,12000001,60000001,53800000,"2023-02-02","2023-02-02","2023-12-01",240,1,60,"N/A","N/A","N/A",null,"TERMINADO",0.89666665172222249]
["FDLC-CPS-135-2023",2023,"FDLC-CPS-135-2023","https://community.secop.gov.co/Public/Tendering/OpportunityDetail/Index?noticeUID=CO1.NTC.3906354&isFromPublicArea=True&isModal=true&asPopupView=true","Contrato de Prestación de Servicios Profesionales y de Apoyo a la gestión","CONTRATACION DIRECTA","No aplica","PRESTAR SERVICIOS PROFESIONALES EN MATERIA JURIDICA Y EN ARTICULACIÓN INTERINSTITUCIONAL A LA ALCALDIA LOCAL DE LACANDELARIA","INVERSION",null,null,null,null,"O23011605570000002021",1,1012433345,"LISETH VIVIANA GUERRA GONZALEZ ","PERSONA NATURAL",null,"NO APLICA","NO APLICA",null,48000000,null,1,6000001,54000001,54000000,"2023-02-02","2023-02-02","2023-11-01",240,1,30,1077973881,"CESION DE JULIANA VASQUEZ KOMMAN","2023-07-27",null,"TERMINADO",0.99999998148148184]
["FDLC-CPS-136-2023",2023,"FDLC-CPS-136-2023","https://community.secop.gov.co/Public/Tendering/OpportunityDetail/Index?noticeUID=CO1.NTC.3906644&isFromPublicArea=True&isModal=true&asPopupView=true","Contrato de Prestación de Servicios Profesionales y de Apoyo a la gestión","CONTRATACION DIRECTA","No aplica","PRESTAR SERVICIOS TÉCNICOS AL FONDO DE DESARROLLO LOCAL DE LA CANDELARIA PARA APOYAR EL SEGUIMIENTO Y EJECUCION DELOS PROGRAMAS AMBIENTALES EN LA LOCALIDAD","INVERSION",null,null,null,null,"O23011605570000002021",1,1010223608,"LAURA CAMILA QUIROGA MILLAN","PERSONA NATURAL",null,"NO APLICA","NO APLICA",null,35167000,null,"N/A",0,{"$f":"+W149+X149+Z149","v":35167000},31756867,"2023-02-03","2023-02-03","2023-12-31",330,"N/A","N/A","N/A","N/A","N/A",null,"TERMINADO",0.90303031250888621]
["FDLC-CPS-137-2023",2023,"FDLC-CPS-137-2023","https://community.secop.gov.co/Public/Tendering/OpportunityDetail/Index?noticeUID=CO1.NTC.3911485&isFromPublicArea=True&isModal=true&asPopupView=true","Contrato de Prestación de Servicios Profesionales y de Apoyo a la gestión","CONTRATACION DIRECTA","No aplica","PRESTAR SERVICIOS ASISTENCIALES PARA APOYAR EN LAS TAREASRELACIONADAS CON LA GESTIÓN DOCUMENTAL DE LA ALCALDÍALOCAL DE LA CANDELARIA","INVERSION",null,null,null,null,"O23011605570000002021",1,53121023,"NUBIA ALEJANDRA TOVAR NUÑEZ","PERSONA NATURAL",null,"NO APLICA","NO APLICA",null,21600000,null,2,5400002,{"$f":"+W150+X150+Z150","v":27000002},26820000,"2023-02-02","2023-02-03","2023-12-02",240,2,60,"N/A","N/A","N/A",null,"TERMINADO",0.99333325975309184]
["FDLC-CPS-138-2023",2023,"FDLC-CPS-138-2023","https://community.secop.gov.co/Public/Tendering/OpportunityDetail/Index?noticeUID=CO1.NTC.3912020&isFromPublicArea=True&isModal=true&asPopupView=true","Contrato de Prestación de Servicios Profesionales y de Apoyo a la gestión","CONTRATACION DIRECTA","No aplica","PRESTAR SERVICIOS ASISTENCIALES AL ÁREA DE GESTIÓN DEDESARROLLO LOCAL EN LAS ACTIVIDADES DE GESTIÓNADMINISTRATIVA","INVERSION",null,null,null,null,"O23011605570000002021",1,52443839,"ANDREA LILIANA MARTINEZ ACOSTA","PERSONA NATURAL",null,"NO APLICA","NO APLICA",null,29700000,null,2,14850002,44550002,26820000,"2023-02-02","2023-02-03","2024-06-15",330,2,165,"N/A","N/A","N/A",null,"EJECUCION",0.60202017499348259]
["FDLC-CPS-139-2023",2023,"FDLC-CPS-139-2023","https://community.secop.gov.co/Public/Tendering/OpportunityDetail/Index?noticeUID=CO1.NTC.3913049&isFromPublicArea=True&isModal=true&asPopupView=true","Contrato de Prestación de Servicios Profesionales y de Apoyo a la gestión","CONTRATACION DIRECTA","No aplica","PRESTACIÓN DE SERVICIOS DE APOYO LOGÍSTICO EN LOS EVENTOS Y ACTIVIDADES DE LA ADMINISTRACIÓN LOCAL DE LA LOCALIDAD DE LA CANDELARIA","INVERSION",null,null,null,null,"O23011605570000002021",1,1010181876,"DAVID ANDRÉS SEGURA ORTIZ ","PERSONA NATURAL",null,"NO APLICA","NO APLICA",null,29700000,null,"N/A",0,{"$f":"+W152+X152+Z152","v":29700000},26820000,"2023-02-02","2023-02-03","2023-12-31",330,"N/A","N/A",1026279653,"CESION DE DIEGO JOHAN VARGAS TORRES","2023-06-20",null,"TERMINADO",0.90303030303030307]
["FDLC-CPS-140-2023",2023,"FDLC-CPS-140-2023","https://community.secop.gov.co/Public/Tendering/OpportunityDetail/Index?noticeUID=CO1.NTC.3920935&isFromPublicArea=True&isModal=true&asPopupView=true","Contrato de Prestación de Servicios Profesionales y de Apoyo a la gestión","CONTRATACION DIRECTA","No aplica","PRESTAR SERVICIOS PROFESIONALES AL FONDO DE DESARROLLO LOCAL DE LA CANDELARIA PARA APOYAR EL SEGUIMIENTO LIQUIDACIÓN DEPURACIÓN Y CONSOLIDACIÓN DE LA INFORMACIÓN DE LAS OBLIGACIONES POR PAGAR DERIVADAS DE LA GESTIÓN CONTRACTUAL DE LA ENTIDAD Y SU RESPECTIVA LIQUIDACION","INVERSION",null,null,null,null,"O23011605570000002021",1,53120588,"YOSMILE RODRÍGUEZ CUARTAS","PERSONA NATURAL",null,"NO APLICA","NO APLICA",null,30000000,null,1,15000001,45000001,44000000,"2023-02-03","2023-02-07","2023-11-06",180,1,90,"N/A","N/A","N/A",null,"TERMINADO",0.97777775604938322]
["FDLC-CPS-141-2023",2023,"FDLC-CPS-141-2023","https://community.secop.gov.co/Public/Tendering/OpportunityDetail/Index?noticeUID=CO1.NTC.3922911&isFromPublicArea=True&isModal=true&asPopupView=true","Contrato de Prestación de Servicios Profesionales y de Apoyo a la gestión","CONTRATACION DIRECTA","No aplica","PRESTAR SERVICIOS PROFESIONALES PARA APOYAR JURÍDICAMENTE LA EJECUCIÓN DE LAS ACCIONES REQUERIDAS PARA LA DEPURACIÓN DE LAS ACTUACIONES ADMINISTRATIVAS QUE CURSAN EN LA ALCALDÍA LOCAL DE LA CANDELARIA","INVERSION",null,null,null,null,"O23011605570000002023",1,49719195,"JULIETA LUCIA FAJARDO TELLEZ","PERSONA NATURAL",null,"NO APLICA","NO APLICA",null,60500000,null,2,11000002,71500002,53716667,"2023-02-06","2023-02-08","2024-03-06",330,2,67,"N/A","N/A","N/A",null,"EJECUCION",0.75128203492917389]
["FDLC-CPS-142-2023",2023,"FDLC-CPS-142-2023","https://community.secop.gov.co/Public/Tendering/OpportunityDetail/Index?noticeUID=CO1.NTC.3927612&isFromPublicArea=True&isModal=true&asPopupView=true","Contrato de Prestación de Servicios Profesionales y de Apoyo a la gestión","CONTRATACION DIRECTA","No aplica","APOYAR AL A ALCALDE SA LOCAL EN EL FORTALECIMIENTO E INCLUSIÓN DE LAS COMUNIDADES NEGRAS AFROCOLOMBIANAS Y PALENQUERAS EN EL MARCO DE LA POLÍTICA PÚBLICA DISTRITAL AFRODESCENDIENTES Y LOS ESPACIOS DE PARTICIPACIÓN","INVERSION",null,null,null,null,"O23011601060000001664",1,1026275427,"KAREN GUISELLA GUTIERREZ","PERSONA NATURAL",null,"NO APLICA","NO APLICA",null,40000000,null,1,5000001,{"$f":"+W155+X155+Z155","v":45000001},45000000,"2023-02-03","2023-02-06","2023-11-05",240,1,30,"N/A","N/A","N/A",null,"TERMINADO",0.99999997777777827]
["FDLC-CPS-143-2023",2023,"FDLC-CPS-143-2023","https://community.secop.gov.co/Public/Tendering/OpportunityDetail/Index?noticeUID=CO1.NTC.3927190&isFromPublicArea=True&isModal=true&asPopupView=true","Contrato de Prestación de Servicios Profesionales y de Apoyo a la gestión","CONTRATACION DIRECTA","No aplica","PRESTAR SERVICIOS PROFESIONALES PARA APOYAR JURÍDICAMENTE LA EJECUCIÓN DE LAS ACCIONES REQUERIDAS PARA LA DEPURACIÓN DE LAS ACTUACIONES ADMINISTRATIVAS QUE CURSAN EN LA ALCALDÍA LOCAL DE LA CANDELARIA","INVERSION",null,null,null,null,"O23011605570000002023",1,80865633,"ANDRES FABIAN PEÑA MURILLO ","PERSONA NATURAL",null,"NO APLICA","NO APLICA",null,60500000,null,"N/A",0,60500000,53900000,"2023-02-03","2023-02-07","2023-12-31",330,"N/A","N/A",80865633," CESION DE ANDRES FABIAN PEÑA MURILLO","2023-04-28",null,"TERMINADO",0.89090909090909087]
["FDLC-CPS-144-2023",2023,"FDLC-CPS-144-2023","https://community.secop.gov.co/Public/Tendering/OpportunityDetail/Index?noticeUID=CO1.NTC.3937313&isFromPublicArea=True&isModal=true&asPopupView=true","Contrato de Prestación de Servicios Profesionales y de Apoyo a la gestión","CONTRATACION DIRECTA","No aplica","PRESTAR SERVICIOS DE APOYO EN LAS ACTIVIDADES DE PROTECCIÓN CUIDADO Y CONSERVACIÓN DE LA MALLA VIAL COMO COMPONENTE PATRIMONIAL DE LA CANDELARIA","INVERSION",null,null,null,null,"O23011604490000002020",1,52807317,"JENY GONZALEZ CANTOR","PERSONA NATURAL",null,"NO APLICA","NO APLICA",null,9250000,-1048334,"N/A",0,8201666,8201666,"2023-02-06","2023-02-08","2023-06-20",150,"N/A","N/A","N/A","N/A","N/A",null,"TERMINADO",1]
["FDLC-CPS-145-2023",2023,"FDLC-CPS-145-2023","https://community.secop.gov.co/Public/Tendering/OpportunityDetail/Index?noticeUID=CO1.NTC.3937844&isFromPublicArea=True&isModal=true&asPopupView=true","Contrato de Prestación de Servicios Profesionales y de Apoyo a la gestión","CONTRATACION DIRECTA","No aplica","PRESTAR SERVICIOS DE APOYO EN LAS ACTIVIDADES DE PROTECCIÓN CUIDADO Y CONSERVACIÓN DE LA MALLA VIAL COMO COMPONENTE PATRIMONIAL DE LA CANDELARIA","INVERSION",null,null,null,null,"O23011604490000002020",1,1193555922,"LIZ DAIRA TORRES SALDAÑA","PERSONA NATURAL",null,"NO APLICA","NO APLICA",null,9250000,-1110000,"N/A",0,8140000,8140000,"2023-02-06","2023-02-09","2023-06-20",150,"N/A","N/A","N/A","N/A","N/A",null,"TERMINADO",1]
["FDLC-CPS-146-2023",2023,"FDLC-CPS-146-2023","https://community.secop.gov.co/Public/Tendering/OpportunityDetail/Index?noticeUID=CO1.NTC.3974963&isFromPublicArea=True&isModal=true&asPopupView=true","Contrato de Prestación de Servicios Profesionales y de Apoyo a la gestión","CONTRATACION DIRECTA","No aplica","PRESTAR SERVICIOS PROFESIONALES DE SERVICIOS PROFESIONALES DE APOYO EN LA ADMINISTRACION DEL PUNTO VIVE DIGITAL DE LA LOCALIDAD LA CANDELARIA PARA FOMENTAR EN LA COMUNIDAD EL USO DE LAS TICS COMO ESTRATEGIA DE APOYO A LOS EMPRENDIMIENTOS CULTURALES Y CREATIVOS LOCALES","INVERSION",null,null,null,null,"O23011601060000001628",1,1093140396,"JESUS ESGUERRA DELGADO","PERSONA NATURAL",null,"NO APLICA","NO APLICA",null,49654000,null,"N/A",0,49654000,43785800,"2023-02-10","2023-02-10","2023-12-31",330,"N/A","N/A","N/A","N/A","N/A",null,"TERMINADO",0.88181818181818183]
["FDLC-CPS-147-2023",2023,"FDLC-CPS-147-2023","https://community.secop.gov.co/Public/Tendering/OpportunityDetail/Index?noticeUID=CO1.NTC.3973680&isFromPublicArea=True&isModal=true&asPopupView=true","Contrato de Prestación de Servicios Profesionales y de Apoyo a la gestión","CONTRATACION DIRECTA","No aplica","PRESTAR SERVICIOS ASISTENCIALES PARA APOYAR EN LAS TAREAS RELACIONADAS CON LA GESTIÓN DOCUMENTAL DE LA ALCALDIA LOCAL DE LA CANDELARIA","INVERSION",null,null,null,null,"O23011605570000002021",1,79560172,"LUIS BARRIGA PINZON","PERSONA NATURAL",null,"NO APLICA","NO APLICA",null,19800000,null,"N/A",0,19800000,17460000,"2023-02-10","2023-02-10","2023-12-31",330,"N/A","N/A","N/A","N/A","N/A",null,"TERMINADO",0.88181818181818183]
["FDLC-COBM-148-2023",2023,"FDLC-COBM-148-2023","https://community.secop.gov.co/Public/Tendering/OpportunityDetail/Index?noticeUID=CO1.NTC.4003955&isFromPublicArea=True&isModal=False","SUMINISTRO DE SERVICIOS","SELECCION ABREVIADA BOLSA MERCANTIL","No aplica","La SCB actuará en nombre propio, pero por cuenta de la Entidad, quien en virtud de este contrato de comisión ostenta la calidad de comisionista comprador, adquirirá en el Mercado de Compras Públicas (MCP), \"PRESTACIÓN DEL SERVICIO DE VIGILANCIA Y SEGURIDAD PRIVADA IINTEGRAL PERMANENTE PARA TODOS LOS BIENES MUEBLES E INMUEBLES DE PROPIEDAD DE LA ENTIDAD, Y DE LOS QUE LEGALMENTE SEA O LLEGARE A SER RESPONSABLE EL FONDO DE DESARROLLO LOCAL DE LA CANDELARIA.\"","FUNCIONAMIENTO",null,null,null,null,"-O21202020080585250",1,830103828,"AGROBOLSA S.A.","PERSONA JURIDICA",null,"NO APLICA","NO APLICA",null,1101339847,null,1,124439507,1225779354,993156127,"2023-02-14","2023-02-14","2024-01-27",360,1,30,"N/A","N/A","N/A",null,"TERMINADO",0.81022422490565138]
["FDLC-CPS-149-2023",2023,"FDLC-CPS-149-2023","https://community.secop.gov.co/Public/Tendering/OpportunityDetail/Index?noticeUID=CO1.NTC.3996340&isFromPublicArea=True&isModal=true&asPopupView=true","Contrato de Prestación de Servicios Profesionales y de Apoyo a la gestión","CONTRATACION DIRECTA","No aplica","PRESTAR SERVICIOS PROFESIONALES PARAAPOYAR EN LA FORMULACION TECNICA Y SEGUIMIENTOS DE PLANES POLITICASPROGRAMAS Y PROYECTOS RELACIONADOS CON OBRAS E INFRAESTRUCTURA QUEDESARROLLE LA ALCALDIA LOCAL DE LA CANDELARIA","INVERSION",null,null,null,null,"O23011604490000002020",1,1018449224,"DAVID ALEJANDRO HURTADO PALMA","PERSONA NATURAL",null,"NO APLICA","NO APLICA",null,18056000,null,"N/A",0,18056000,11435467,"2023-02-14","2023-02-15","2023-06-13",120,"N/A","N/A","N/A","N/A","N/A",null,"TERMINADO",0.63333335179441741]
["FDLC-CPS-150-2023",2023,"FDLC-CPS-150-2023","https://community.secop.gov.co/Public/Tendering/OpportunityDetail/Index?noticeUID=CO1.NTC.3996224&isFromPublicArea=True&isModal=true&asPopupView=true","Contrato de Prestación de Servicios Profesionales y de Apoyo a la gestión","CONTRATACION DIRECTA","No aplica","PRESTAR SERVICIOS PROFESIONALES PARA APOYAR A LA ALCALDÍA LOCAL DE LA CANDELARIA EN LA PROMOCIÓN SEGUIMIENTO ACOMPAÑAMIENTO Y ATENCIÓN DE LAS INSTANCIAS DE PARTICIPACIÓN JUVENIL DE LA LOCALIDAD ASI COMO LOS PROCESOS COMUNITARIOS DE JUVENTUDES Y DEMÁS ESPACIOS DE PARTICIPACIÓN DESIGNADOS","INVERSION",null,null,null,null,"O23011605570000002021",1,1010228793,"DAVID ALEJANDRO LUNA BARRERA","PERSONA NATURAL",null,"NO APLICA","NO APLICA",null,55000000,-4283333,"N/A",0,50716667,12166667,"2023-02-14","2023-02-16","2023-04-28",330,"N/A","N/A","N/A","N/A","N/A",null,"TERMINADO",0.23989484561357316]
["FDLC-CPS-151-2023",2023,"FDLC-CPS-151-2023","https://community.secop.gov.co/Public/Tendering/OpportunityDetail/Index?noticeUID=CO1.NTC.3996328&isFromPublicArea=True&isModal=true&asPopupView=true","Contrato de Prestación de Servicios Profesionales y de Apoyo a la gestión","CONTRATACION DIRECTA","No aplica","PRESTAR SERVICIOS ASISTENCIALES AL ÁREA DE GESTIÓN DE DESARROLLO LOCAL EN LOS PROCESOS Y ACTIVIDADES DE GESTIÓN ADMINISTRATIVA DE LOS PROYECTOS CULTURALES ARTÍSTICOS Y PATRIMONIALES DE LA ENTIDAD Y DEMÁS ASIGNADOS POR EL ÁREA DE GESTIÓN DEL DESARROLLO LOCAL PARA EL CUMPLIMIENTO DE LAS METAS DEL PLAN DE DESARROLLO LOCAL 20212024","INVERSION",null,null,null,null,"O23011601210000001625",1,1016049004,"LUIS HERNANDO AMAYA","PERSONA NATURAL",null,"NO APLICA","NO APLICA",null,19800000,null,"N/A",0,19800000,17220000,"2023-02-13","2023-02-14","2023-12-31",330,"N/A","N/A","N/A","N/A","N/A",null,"TERMINADO",0.86969696969696975]
["FDLC-CPS-152-2023",2023,"FDLC-CPS-152-2023","https://community.secop.gov.co/Public/Tendering/OpportunityDetail/Index?noticeUID=CO1.NTC.3999888&isFromPublicArea=True&isModal=true&asPopupView=true","Contrato de Prestación de Servicios Profesionales y de Apoyo a la gestión","CONTRATACION DIRECTA","No aplica","PRESTAR SERVICIOS PROFESIONALES ALFONDO DE DESARROLLO LOCAL DE LA CANDELARIA PARA LA FORMULACIÓN Y SEGUIMIENTODE PLANES POLITICAS PROGRAMAS Y PROYECTOS DE INVERSIÓN RELACIONADOS CON LAESTRATEGIA DE CUIDADO PREVENCIÓN DE VIOLENCIAS Y PROYECTOS CON ENFOQUE DEGÉNERO DEL PLAN DE DESARROLLO LOCAL","INVERSION",null,null,null,null,"O23011601060000001662",1,52540454,"ALBA LUCIA CRUZ CARDENAS","PERSONA NATURAL",null,"NO APLICA","NO APLICA",null,22570000,null,1,10833601,33403601,33403600,"2023-02-14","2023-02-16","2023-09-27",150,1,72,"N/A","N/A","N/A",null,"TERMINADO",0.99999997006310781]
["FDLC-CPS-153-2023",2023,"FDLC-CPS-153-2023","https://community.secop.gov.co/Public/Tendering/OpportunityDetail/Index?noticeUID=CO1.NTC.4003174&isFromPublicArea=True&isModal=true&asPopupView=true","Contrato de Prestación de Servicios Profesionales y de Apoyo a la gestión","CONTRATACION DIRECTA","No aplica","PRESTAR SERVICIOS ASISTENCIALES PARA APOYAR EN LAS TAREAS RELACIONADAS CON LA GESTIÓN DOCUMENTAL DE LA ALCALDIA LOCAL DE LA CANDELARIA","INVERSION",null,null,null,null,"O23011605570000002021",1,1030639805,"JEFERSON PARRA TRIVIÑO","PERSONA NATURAL",null,"NO APLICA","NO APLICA",null,19800000,null,"N/A",0,19800000,17040000,"2023-02-14","2023-02-17","2023-12-31",330,"N/A","N/A","N/A","N/A","N/A",null,"TERMINADO",0.8606060606060606]
["FDLC-CPS-154-2023",2023,"FDLC-CPS-154-2023","https://community.secop.gov.co/Public/Tendering/OpportunityDetail/Index?noticeUID=CO1.NTC.4011728&isFromPublicArea=True&isModal=true&asPopupView=true","Contrato de Prestación de Servicios Profesionales y de Apoyo a la gestión","CONTRATACION DIRECTA","No aplica","PRESTAR SERVICIOS PROFESIONALES AL FONDO DE DESARROLLO LOCAL DE LA CANDELARIA PARA LA PLANEACIÓN FORMULACIÓN EVALUACIÓN ARTICULACIÓN ACOMPAÑAMIENTO Y SEGUIMIENTO DEL PROYECTO DE INVERSIÓN 1608 LA CANDELARIA PEDAGÓGICA BASES SÓLIDAS PARA LA VIDA Y DE LOS PROYECTOS DE INVERSIÓN ASIGNADOS POR EL ALCALDE SA LOCAL","INVERSION",null,null,null,null,"O23011601120000001608",1,1022366476,"CRISTHIAN CAMILO GÓMEZ LÓPEZ ","PERSONA NATURAL",null,"NO APLICA","NO APLICA",null,47397000,null,1,13542001,60939001,42883000,"2023-02-16","2023-02-16","2024-03-31",330,1,90,1010166790,"CESION DE GABRIEL GUTIERREZ GARCIA","2024-01-12",null,"EJECUCION",0.7037036921560299]
["FDLC-CPS-155-2023",2023,"FDLC-CPS-155-2023","https://community.secop.gov.co/Public/Tendering/OpportunityDetail/Index?noticeUID=CO1.NTC.4034608&isFromPublicArea=True&isModal=true&asPopupView=true","Contrato de Prestación de Servicios Profesionales y de Apoyo a la gestión","CONTRATACION DIRECTA","No aplica","PRESTAR SERVICIOS PROFESIONALES PARA APOYAR EN LA FORMULACION PRESENTACIÓN EVALUACIÓN Y SEGUIMIENTO JURÍDICO DEL PROYECTO 1606 LA CANDELARIA PEDAGÓGICA MÁS Y MEJOR TIEMPO EN LOS COLEGIOS Y DE LOS PROYECTOS DE INVERSION DE LA ALCALDÍA LOCAL DE LA CANDELARIA","INVERSION",null,null,null,null,"O23011601140000001606",1,60348070,"EDEL ZARAY RAMIREZ LEON","PERSONA NATURAL",null,"NO APLICA","NO APLICA",null,27084000,null,1,12940134,40024134,39873666,"2023-02-20","2023-02-20","2023-11-14",180,1,86,"N/A","N/A","N/A",null,"TERMINADO",0.99624056825314444]
["FDLC-CPS-156-2023",2023,"FDLC-CPS-156-2023","https://community.secop.gov.co/Public/Tendering/OpportunityDetail/Index?noticeUID=CO1.NTC.4035062&isFromPublicArea=True&isModal=true&asPopupView=true","Contrato de Prestación de Servicios Profesionales y de Apoyo a la gestión","CONTRATACION DIRECTA","No aplica","PRESTAR SERVICIOS PROFESIONALES AL FONDO DE DESARROLLO LOCAL DE LA CANDELARIA EN ASUNTOS RELACIONADOS CON LA GESTIÓN Y ATENCIÓN DEL RIESGO Y CAMBIO CLIMÁTICO EN LA LOCALIDAD","INVERSION",null,null,null,null,"O23011605570000002021",1,1010201105,"JESUS DANIEL OÑATE OLIVELLA","PERSONA NATURAL",null,"NO APLICA","NO APLICA",null,55000000,null,"N/A",0,55000000,46833333,"2023-02-20","2023-02-20","2023-12-31",330,"N/A","N/A","N/A","N/A","N/A",null,"TERMINADO",0.85151514545454543]
["FDLC-CPS-157-2023",2023,"FDLC-CPS-157-2023","https://community.secop.gov.co/Public/Tendering/OpportunityDetail/Index?noticeUID=CO1.NTC.4062038&isFromPublicArea=True&isModal=true&asPopupView=true","Contrato de Prestación de Servicios Profesionales y de Apoyo a la gestión","CONTRATACION DIRECTA","No aplica","PRESTAR SERVICIOS PROFESIONALES PARA APOYAR JURÍDICAMENTE LA EJECUCIÓN DE LAS ACCIONES REQUERIDAS PARA LA DEPURACIÓN DE LAS ACTUACIONES ADMINISTRATIVAS QUE CURSAN EN LA ALCALDÍA LOCAL DE LA CANDELARIA","INVERSION",null,null,null,null,"O23011605570000002023",1,4266577,"FABIO HERNÁN DAZA MORENO","PERSONA NATURAL",null,"NO APLICA","NO APLICA",null,60500000,null,"N/A",0,60500000,50233333,"00/01/1900","2023-02-27","2023-12-31",330,"N/A","N/A","N/A","N/A","N/A",null,"TERMINADO",0.83030302479338847]
["FDLC-CPS-158-2023",2023,"FDLC-CPS-158-2023","https://community.secop.gov.co/Public/Tendering/OpportunityDetail/Index?noticeUID=CO1.NTC.4053894&isFromPublicArea=True&isModal=true&asPopupView=true","Contrato de Prestación de Servicios Profesionales y de Apoyo a la gestión","CONTRATACION DIRECTA","No aplica","PRESTACIÓN DE SERVICIOS DE APOYO LOGÍSTICO EN LOS EVENTOS Y ACTIVIDADES DE LA ADMINISTRACIÓN LOCAL DE LA LOCALIDAD DE LA CANDELARIA","INVERSION",null,null,null,null,"O23011605570000002021",1,79914457,"TARCISIO TORO ZAMBRANO","PERSONA NATURAL",null,"NO APLICA","NO APLICA",null,29700000,null,2,13770002,43470002,24930000,"2023-02-22","2023-02-24","2024-06-03",330,2,153,"N/A","N/A","N/A",null,"EJECUCION",0.57349893841734811]
["FDLC-CPS-159-2023",2023,"FDLC-CPS-159-2023","https://community.secop.gov.co/Public/Tendering/OpportunityDetail/Index?noticeUID=CO1.NTC.4059800&isFromPublicArea=True&isModal=true&asPopupView=true","Contrato de Prestación de Servicios Profesionales y de Apoyo a la gestión","CONTRATACION DIRECTA","No aplica","PRESTAR SUS SERVICIOS PROFESIONALES DE APOYO Y ACOMPAÑAMIENTO EN LA FORMULACION Y EJECUCION DE LOS PROYECTOS Y ESTRATEGIAS DE DOTACIÓN PEDAGOGICA A COLEGIOS DE LA LOCALIDAD Y DE LOS DEMAS ASIGNADOS POR EL ALCALDE SA LOCAL EN CUMPLIMIENTO DE LAS METAS DEL PLAN DE DESARROLLO LOCAL 20212024","INVERSION",null,null,null,null,"O23011601140000001606",1,1070331732,"IVONNE JULIETH ROJAS ROJAS","PERSONA NATURAL",null,"NO APLICA","NO APLICA",null,27084000,null,1,13542001,40626001,37165267,"2023-02-22","2023-02-24","2023-11-23",180,1,90,"N/A","N/A","N/A",null,"TERMINADO",0.91481480050177721]
["FDLC-CPS-160-2023",2023,"FDLC-CPS-160-2023","https://community.secop.gov.co/Public/Tendering/OpportunityDetail/Index?noticeUID=CO1.NTC.4060434&isFromPublicArea=True&isModal=true&asPopupView=true","Contrato de Prestación de Servicios Profesionales y de Apoyo a la gestión","CONTRATACION DIRECTA","No aplica","PRESTAR SERVICIOS PROFESIONALES PARA APOYAR EN LA FORMULACION PRESENTACIÓN EVALUACIÓN Y SEGUIMIENTO JURÍDICO DEL PROYECTO 1706 LA CANDELARIA RECREATIVA PARQUES PARA LA VIDA Y DE LOS PROYECTOS DE INVERSION DE LA ALCALDÍA LOCAL DE LA CANDELARIA","INVERSION",null,null,null,null,"O23011602330000001706",1,79386264,"NESTOR IVAN ACERO ALMANZA","PERSONA NATURAL",null,"NO APLICA","NO APLICA",null,25000000,null,"N/A",0,25000000,16333333,"2023-02-22","2023-02-23","2023-07-22",150,"N/A","N/A","N/A","N/A","N/A",null,"TERMINADO",0.65333332]
["FDLC-CPS-161-2023",2023,"FDLC-CPS-161-2023","https://community.secop.gov.co/Public/Tendering/OpportunityDetail/Index?noticeUID=CO1.NTC.4069089&isFromPublicArea=True&isModal=true&asPopupView=true","Contrato de Prestación de Servicios Profesionales y de Apoyo a la gestión","CONTRATACION DIRECTA","No aplica","PRESTAR SERVICIOS DE APOYO TÉCNICO AL FONDO DEDESARROLLO LOCAL DE LA CANDELARIA EN LA ADMINISTRACIÓN DELAS CASAS COMUNITARIAS DE LA LOCALIDAD DE LA CANDELARIA DECONFORMIDAD CON EL ACUERDO LOCAL 006 DE 2013","INVERSION",null,null,null,null,"O23011605570000002021",1,51870502,"CLAUDIA EUGENIA CORREA RODRIGUEZ","PERSONA NATURAL",null,"NO APLICA","NO APLICA",null,33579000,null,"N/A",0,33579000,29208000,"2023-02-24","2023-02-27","2023-12-31",315,"N/A","N/A","N/A","N/A","N/A",null,"TERMINADO",0.86982935763423563]
["FDLC-CPS-162-2023",2023,"FDLC-CPS-162-2023","https://community.secop.gov.co/Public/Tendering/OpportunityDetail/Index?noticeUID=CO1.NTC.4068286&isFromPublicArea=True&isModal=true&asPopupView=true","Contrato de Prestación de Servicios Profesionales y de Apoyo a la gestión","CONTRATACION DIRECTA","No aplica","PRESTAR SERVICIOS DE APOYO EN LAS ACTIVIDADES ARTÍSTICAS CULTURALES MUSICALES TURÍSTICAS DEPORTIVAS COMUNITARIAS Y PATRIMONIALES DE COMPETENCIA DE LA ENTIDAD","INVERSION",null,null,null,null,"O23011601210000001625",1,1030528720,"JENNY JAZMIN CAMACHO QUINTANA","PERSONA NATURAL",null,"NO APLICA","NO APLICA",null,9250000,null,"N/A",0,9250000,9250000,"2023-02-24","2023-02-24","2023-07-23",150,"N/A","N/A","N/A","N/A","N/A",null,"TERMINADO",1]
["FDLC-SUM-163-2023",2023,"FDLC-IMC-002-2023","https://community.secop.gov.co/Public/Tendering/OpportunityDetail/Index?noticeUID=CO1.NTC.4034320&isFromPublicArea=True&isModal=False","SUMINISTRO   ","MINIMA CUANTIA","No aplica","SUMINISTRO A MONTO AGOTABLE DEL SERVICIO DE COMBUSTIBLE, GASOLINA Y DIÉSEL PARA LOS VEHÍCULOS DE PROPIEDAD DEL FONDO DE DESARROLLO LOCAL DE LA CANDELARIA\"","FUNCIONAMIENTO",null,null,null,null,"O2120201003033331101",1,900459737,"GRUPO EDS AUTOGAS  S.A.S","PERSONA JURIDICA",null,"NO APLICA","NO APLICA",null,25000000,null,"N/A",0,1077935000,9320199,"2023-03-03","2023-03-07","2023-12-31",300,"N/A","N/A","N/A","N/A","N/A",null,"TERMINADO",8.6463460227193655E-3]
["FDLC-CPS-164-2023",2023,"FDLC-CPS-164-2023","https://community.secop.gov.co/Public/Tendering/OpportunityDetail/Index?noticeUID=CO1.NTC.4110652&isFromPublicArea=True&isModal=true&asPopupView=true","Contrato de Prestación de Servicios Profesionales y de Apoyo a la gestión","CONTRATACION DIRECTA","No aplica","PRESTAR SERVICIOS DE APOYO EN LAS ACTIVIDADES ARTÍSTICAS CULTURALES MUSICALES TURÍSTICAS DEPORTIVAS COMUNITARIAS Y PATRIMONIALES DE COMPETENCIA DE LA ENTIDAD","INVERSION",null,null,null,null,"O23011601210000001625",1,53105934,"VIVIANA ANDREA JUEZ RODRIGUEZ","PERSONA NATURAL",null,"NO APLICA","NO APLICA",null,9250000,null,"N/A",0,{"$f":"+W177+X177+Z177","v":9250000},3391667,"2023-03-03","2023-03-06","2023-08-05",150,"N/A","N/A","N/A","N/A","N/A",null,"TERMINADO",{"$f":"IF(ISERROR(AB178/AA177),\"-\",(AB178/AA177))","v":0.76}]
["FDLC-CPS-165-2023",2023,"FDLC-CPS-165-2023","https://community.secop.gov.co/Public/Tendering/OpportunityDetail/Index?noticeUID=CO1.NTC.4109267&isFromPublicArea=True&isModal=true&asPopupView=true","Contrato de Prestación de Servicios Profesionales y de Apoyo a la gestión","CONTRATACION DIRECTA","No aplica","PRESTAR SERVICIOS DE APOYO EN LAS ACTIVIDADES ARTÍSTICAS CULTURALES MUSICALES TURÍSTICAS DEPORTIVAS COMUNITARIAS Y PATRIMONIALES DE COMPETENCIA DE LA ENTIDAD","INVERSION",null,null,null,null,"O23011601210000001625",1,1019044580,"YEIMY JULIETA LOPEZ BALLESTEROS","PERSONA NATURAL",null,"NO APLICA","NO APLICA",null,9250000,null,"N/A",0,9250000,7030000,"2023-03-03","2023-03-07","2023-02-08",150,"N/A","N/A","N/A","N/A","N/A",null,"TERMINADO",1]
["FDLC-CPS-166-2023",2023,"FDLC-CPS-166-2023","https://community.secop.gov.co/Public/Tendering/OpportunityDetail/Index?noticeUID=CO1.NTC.4133878&isFromPublicArea=True&isModal=False","Contrato de Prestación de Servicios Profesionales y de Apoyo a la gestión","CONTRATACION DIRECTA","No aplica","PRESTAR SERVICIOS DE APOYO EN LAS ACTIVIDADES ARTÍSTICAS CULTURALES MUSICALES TURÍSTICAS DEPORTIVAS COMUNITARIAS Y PATRIMONIALES DE COMPETENCIA DE LA ENTIDAD","INVERSION",null,null,null,null,"O23011601210000001625",1,52163108,"MARISOL MARIÑO VACA","PERSONA NATURAL",null,"NO APLICA","NO APLICA",null,9250000,null,"N/A",0,9250000,9250000,"2023-03-07","2023-03-08","2023-08-07",150,"N/A","N/A","N/A","N/A","N/A",null,"TERMINADO",0.92108108108108111]
["FDLC-CPS-167-2023",2023,"FDLC-CPS-167-2023","https://community.secop.gov.co/Public/Tendering/OpportunityDetail/Index?noticeUID=CO1.NTC.4134875&isFromPublicArea=True&isModal=true&asPopupView=true","Contrato de Prestación de Servicios Profesionales y de Apoyo a la gestión","CONTRATACION DIRECTA","No aplica","PRESTAR SERVICIOS ASISTENCIALES AL ÁREA DE GESTIÓN DE DESARROLLO LOCAL EN LOS PROCESOS Y ACTIVIDADES DE GESTIÓN ADMINISTRATIVA DE LA ALCALDÍA LOCAL DE LA CANDELARIA.SIPSE 88533","INVERSION",null,null,null,null,"O23011605570000002021",1,1010007337,"PAULA ANDREA RODRIGUEZ YARA","PERSONA NATURAL",null,"NO APLICA","NO APLICA",null,18000000,null,"N/A",0,18000000,8520000,"2023-03-07","2023-03-09","2023-12-31",300,"N/A","N/A","N/A","N/A","N/A",null,"TERMINADO",1.1556222222222223]
["FDLC-CPS-168-2023",2023,"FDLC-CPS-168-2023","https://community.secop.gov.co/Public/Tendering/OpportunityDetail/Index?noticeUID=CO1.NTC.4148848&isFromPublicArea=True&isModal=true&asPopupView=true","Contrato de Prestación de Servicios Profesionales y de Apoyo a la gestión","CONTRATACION DIRECTA","No aplica","PRESTAR SERVICIOS TÉCNICOS DE APOYO AL FONDO DE DESARROLLO LOCAL DE LA CANDELARIA PARA LA GESTION DE LOS ASUNTOS RELACIONADOS CON LA DESTINACIÓN Y BUEN USO DEL ESPACIO PÚBLICO","INVERSION",null,null,null,null,"O23011605570000002021",1,1000588937,"WILSON DAVID QUIROGA VELASQUEZ","PERSONA NATURAL",null,"NO APLICA","NO APLICA",null,16422000,null,1,5474001,21896001,20801200,"2023-03-09","2023-03-13","2023-11-12",180,1,60,"N/A","N/A","N/A",null,"TERMINADO",0.62522832365599545]
["FDLC-CPS-169-2023",2023,"FDLC-CPS-169-2023","https://community.secop.gov.co/Public/Tendering/OpportunityDetail/Index?noticeUID=CO1.NTC.4149356&isFromPublicArea=True&isModal=true&asPopupView=true","Contrato de Prestación de Servicios Profesionales y de Apoyo a la gestión","CONTRATACION DIRECTA","No aplica","PRESTAR SERVICIOS DE APOYO EN LAS ACTIVIDADES ARTÍSTICAS CULTURALES MUSICALES TURÍSTICAS DEPORTIVAS COMUNITARIAS Y PATRIMONIALES DE COMPETENCIA DE LA ENTIDAD","INVERSION",null,null,null,null,"O23011601210000001625",1,1026580557,"CAMILO ANDRES AVELLA SARMIENTO","PERSONA NATURAL",null,"NO APLICA","NO APLICA",null,9250000,null,1,4400001,13650001,13690000,"2023-03-09","2023-03-13","2023-10-25",150,1,72,"N/A","N/A","N/A",null,"TERMINADO",0.67765562801057666]
["FDLC-CPS-170-2023",2023,"FDLC-CPS-170-2023","https://community.secop.gov.co/Public/Tendering/OpportunityDetail/Index?noticeUID=CO1.NTC.4149450&isFromPublicArea=True&isModal=true&asPopupView=true","Contrato de Prestación de Servicios Profesionales y de Apoyo a la gestión","CONTRATACION DIRECTA","No aplica","PRESTAR SERVICIOS DE APOYO EN LAS ACTIVIDADES ARTÍSTICAS CULTURALES MUSICALES TURÍSTICAS DEPORTIVAS COMUNITARIAS Y PATRIMONIALES DE COMPETENCIA DE LA ENTIDAD","INVERSION",null,null,null,null,"O23011601210000001625",1,1013680370,"ANDRES FELIPE RUIZ GAITAN","PERSONA NATURAL",null,"NO APLICA","NO APLICA",null,9250000,null,"N/A",0,9250000,9250000,"2023-03-09","2023-03-14","2023-08-13",150,"N/A","N/A","N/A","N/A","N/A",null,"TERMINADO",{"$f":"IF(ISERROR(#REF!/AA183),\"-\",(#REF!/AA183))","v":"-"}]
["FDLC-CPS-171-2023",2023,"FDLC-SASI-001-2023","https://community.secop.gov.co/Public/Tendering/OpportunityDetail/Index?noticeUID=CO1.NTC.4094693&isFromPublicArea=True&isModal=true&asPopupView=true","PRESTACION DE SERVICIOS","SELECCION ABREVIADA SUBASTA INVERSA","No aplica","PRESTACIÓN INTEGRAL DE LOS SERVICIOS DE ASEO CAFETERÍA MANTENIMIENTO MENOR Y JARDINERIA REQUERIDOS PARA LAS DEPENDENCIAS DE LA ALCALDÍA LOCAL DE LA CANDELARIA","FUNCIONAMIENTO",null,null,null,null,"O21202020060363399/O21202020080585330/O23011605570000002021",7,901346888,"GRUPO GESTION EMPRESARIAL COLOMBIA GEC","PERSONA JURIDICA",null,"NO APLICA","NO APLICA",null,214883590,null,1,60272257,275155847,210425238,"2023-03-14","2023-03-16","2024-01-30",255,1,60,"N/A","N/A","N/A",null,"TERMINADO",0.7647492877009443]
["FDLC-CPS-172-2023",2023,"FDLC-CPS-172-2023","https://community.secop.gov.co/Public/Tendering/OpportunityDetail/Index?noticeUID=CO1.NTC.4244579&isFromPublicArea=True&isModal=true&asPopupView=true","Contrato de Prestación de Servicios Profesionales y de Apoyo a la gestión","CONTRATACION DIRECTA","No aplica","PRESTAR SERVICIOS DE APOYO Y ASISTENCIALES EN LAS ACTIVIDADES ARTÍSTICAS CULTURALES MUSICALES TURÍSTICAS DEPORTIVAS COMUNITARIAS Y PATRIMONIALES DE COMPETENCIA DE LA ENTIDAD","INVERSION",null,null,null,null,"O23011601210000001625",1,80873255,"OMAR ALEXANDER RUIZ BARRERA","PERSONA NATURAL",null,"NO APLICA","NO APLICA",null,12000000,null,"N/A",0,12000000,11840000,"2023-03-30","2023-04-03","2023-09-02",150,"N/A","N/A","N/A","N/A","N/A",null,"TERMINADO",0.98666666666666669]
["FDLC-CPS-173-2023",2023,"FDLC-IMC-003-2023","https://community.secop.gov.co/Public/Tendering/OpportunityDetail/Index?noticeUID=CO1.NTC.4197996&isFromPublicArea=True&isModal=true&asPopupView=true","PRESTACION DE SERVICIOS","MINIMA CUANTIA","No aplica","PRESTACION DE SERVICIO DE RECARGA Y MANTENIMIENTO DE EXTINTORES DE LA ALCALDIA LOCAL DE LA CANDELARIA","FUNCIONAMIENTO",null,null,null,null,"O2120201003053544203",6,901277134,"EXTINNTORES FIREXT SAS","PERSONA JURIDICA",null,"NO APLICA","NO APLICA",null,1938431,null,"N/A",0,1938431,1938431,"2023-04-03","2023-04-05","2023-05-04",30,"N/A","N/A","N/A","N/A","N/A",null,"TERMINADO",1]
["OC107321",2023,"ORDEN DE COMPRA 107321","https://www.colombiacompra.gov.co/tienda-virtual-del-estado-colombiano/ordenes-compra/107321","ORDEN DE COMPRA","SELECCION ABREVIADA MENOR CUANTIA","No aplica","SUMINISTRO DE PRODUCTOS DE PAPELERÍA, ARTICULOS DE ESCRITORIO Y ELEMENTOS DE OFICINA, NECESARIOS PARA EL CUMPLIMIENTO DE LAS FUNCIONES ADMINISTRATIVAS Y MISIONALES DE LA ALCALDÍA LOCAL DE LA CANDELARIA”.","FUNCIONAMIENTO",null,null,null,null,"O2120201003023212801",1,900019737,"VENEPLAST LTDA","PERSONA JURIDICA",null,"NO APLICA","NO APLICA",null,9342500,null,"N/A",0,9342500,9342500,"2023-04-04","2023-04-05","2023-05-04",30,"N/A","N/A","N/A","N/A","N/A",null,"TERMINADO",1]
["OC107324",2023,"ORDEN DE COMPRA 107324","https://www.colombiacompra.gov.co/tienda-virtual-del-estado-colombiano/ordenes-compra/107324","ORDEN DE COMPRA","MINIMA CUANTIA","No aplica","SUMINISTRO DE PRODUCTOS DE PAPELERÍA, ARTICULOS DE ESCRITORIO Y ELEMENTOS DE OFICINA, NECESARIOS PARA EL CUMPLIMIENTO DE LAS FUNCIONES ADMINISTRATIVAS Y MISIONALES DE LA ALCALDÍA LOCAL DE LA CANDELARIA”.","FUNCIONAMIENTO",null,null,null,null,"O2120201003083899998",1,830037946,"PANAMERICANA LIBRERIA Y PAPELERIA S.A.","PERSONA JURIDICA",null,"NO APLICA","NO APLICA",null,1691433,null,"N/A",0,1691433,1691433,"2023-04-04","2023-04-05","2023-05-04",30,"N/A","N/A","N/A","N/A","N/A",null,"TERMINADO",1]
["OC107325",2023,"ORDEN DE COMPRA 107325","https://www.colombiacompra.gov.co/tienda-virtual-del-estado-colombiano/ordenes-compra/107325","ORDEN DE COMPRA","SELECCION ABREVIADA MENOR CUANTIA","No aplica","SUMINISTRO DE PRODUCTOS DE PAPELERÍA, ARTICULOS DE ESCRITORIO Y ELEMENTOS DE OFICINA, NECESARIOS PARA EL CUMPLIMIENTO DE LAS FUNCIONES ADMINISTRATIVAS Y MISIONALES DE LA ALCALDÍA LOCAL DE LA CANDELARIA”.","FUNCIONAMIENTO",null,null,null,null,"O2120201003083899998",1,860007336,"CAJA COLOMBIANA DE SUBSIDIO FAMILIAR COLSUBSIDIO","PERSONA JURIDICA",null,"NO APLICA","NO APLICA",null,4116284,null,"N/A",0,null,4116284,"2023-04-04","2023-04-05","2023-05-04",30,"N/A","N/A","N/A","N/A","N/A",null,"TERMINADO"]
["OC107326",2023,"ORDEN DE COMPRA 107326","https://www.colombiacompra.gov.co/tienda-virtual-del-estado-colombiano/ordenes-compra/107326","ORDEN DE COMPRA","SELECCION ABREVIADA MENOR CUANTIA","No aplica","SUMINISTRO DE PRODUCTOS DE PAPELERÍA, ARTICULOS DE ESCRITORIO Y ELEMENTOS DE OFICINA, NECESARIOS PARA EL CUMPLIMIENTO DE LAS FUNCIONES ADMINISTRATIVAS Y MISIONALES DE LA ALCALDÍA LOCAL DE LA CANDELARIA”.","FUNCIONAMIENTO",null,null,null,null,"O2120201003063692002",1,10125834,"JAIME BELTRAN URIBE - POLYFLEX","PERSONA JURIDICA",null,"NO APLICA","NO APLICA",null,1788800,null,"N/A",0,{"$f":"+W190+X190+Z190","v":1788800},1788800,"2023-04-04","2023-04-05","2023-05-18",30,"N/A","N/A","N/A","N/A","N/A",null,"TERMINADO",{"$f":"IF(ISERROR(AB190/AA190),\"-\",(AB190/AA190))","v":1}]
["OC107327",2023,"ORDEN DE COMPRA 107327","https://www.colombiacompra.gov.co/tienda-virtual-del-estado-colombiano/ordenes-compra/107327/2","ORDEN DE COMPRA","MINIMA CUANTIA","No aplica","SUMINISTRO DE PRODUCTOS DE PAPELERÍA, ARTICULOS DE ESCRITORIO Y ELEMENTOS DE OFICINA, NECESARIOS PARA EL CUMPLIMIENTO DE LAS FUNCIONES ADMINISTRATIVAS Y MISIONALES DE LA ALCALDÍA LOCAL DE LA CANDELARIA”.","FUNCIONAMIENTO",null,null,null,null,"O2120201003083899998",1,900365660,"PROVEER INSTITUCIONAL SAS","PERSONA JURIDICA",null,"NO APLICA","NO APLICA",null,1281690,null,"N/A",0,null,1281690,"2023-04-04","2023-05-01","2023-05-04",30,"N/A","N/A","N/A","N/A","N/A",null,"TERMINADO"]
["FDLC-CPS-174-2023",2023,"FDLC-CPS-174-2023","https://community.secop.gov.co/Public/Tendering/OpportunityDetail/Index?noticeUID=CO1.NTC.4298554&isFromPublicArea=True&isModal=true&asPopupView=true","Contrato de Prestación de Servicios Profesionales y de Apoyo a la gestión","CONTRATACION DIRECTA","No aplica","PRESTAR SERVICIOS PROFESIONALES PARA APOYAR LAS ACCIONES Y ESTRATEGIAS QUE SE INSCRIBEN EN EL MARCO DE LA POLÍTICA PÚBLICA DE MUJER Y EQUIDAD DE GÉNERO EN LA ALCALDÍA LOCAL DE LA CANDELARIA","INVERSION",null,null,null,null,"O23011603400000001781",1,1073689465,"DEISSY PAOLA RODRIGUEZ CUERVO","PERSONA NATURAL",null,"NO APLICA","NO APLICA",null,54000000,null,"N/A",0,54000000,44000000,"2023-04-17","2023-04-21","2023-12-31",250,"N/A","N/A","N/A","N/A","N/A",null,"TERMINADO",0.81481481481481477]
["CIA175",2023,"FDLC-CIA-175-2023","https://www.contratos.gov.co/consultas/detalleProceso.do?numConstancia=23-22-65728&g","CONVENIO INTERADMINISTRATIVO","CONTRATACION DIRECTA","No aplica","Aunar esfuerzos técnicos, administrativos y financieros con el fin de desarrollar acciones articuladas entre la SCRD, la FUGA y los Fondos de Desarrollo Local de La Candelaria, Los Mártires y Santa Fe, orientadas a fomentar procesos de formación, cualificación, fortalecimiento y participación de los agentes culturales territoriales del Distrito Capital, en el marco de la creación, comercialización, apropiación y circulación de bienes y servicios culturales, artísticos y patrimoniales, de conformidad con las iniciativas priorizadas en la estrategia Distrital \"Presupuestos Participativos\", los acuerdos locales o las iniciativas concertadas con los pueblos étnicos y grupos de interés de los territorios y a las acciones adelantadas en el “Proceso Misional de Fomento”, de acuerdo con los proyectos a ejecutar asociados a las metas de cada localidad en el programa \"Es Cultura Local 2023\"","INVERSION",null,null,null,null,"O23011601240000001627",1,"860044113 - 899999061","FUNDACION GILBERTO ALZATE AVENDAÑO - SECRETARIA DE CULTURA RECREACION Y DEPORTE SCRD","PERSONA JURIDICA",null,"NO APLICA","NO APLICA",null,{"$f":"111981600+248018400","v":360000000},null,"N/A",0,360000000,355251456,"2023-04-24","2023-04-26","2024-07-31",464,"N/A","N/A","N/A","N/A","N/A",null,"EJECUCION",0.98680959999999995]
["FDLC-CPS-176-2023",2023,"FDLC-IMC-004-2023","https://community.secop.gov.co/Public/Tendering/OpportunityDetail/Index?noticeUID=CO1.NTC.4322664&isFromPublicArea=True&isModal=true&asPopupView=true","PRESTACION DE SERVICIOS","MINIMA CUANTIA","No aplica","PRESTAR EL SERVICIO DE MANTENIMIENTO PREVENTIVO Y CORRECTIVO INTEGRAL CON SUMINISTRO DE REPUESTOS MANO DE OBRA Y EL SERVICIO DE REVISIÓN TÉCNICO MECÁNICA Y DE EMISIONES CONTAMINANTES PARA LOS VEHÍCULOS QUE CONFORMAN EL PARQUE AUTOMOTOR DEL FONDO DE DESARROLLO LOCAL DE LA CANDELARIA","FUNCIONAMIENTO",null,null,null,null,"O2120202008078714102",6,800250589,"CENTRO CAR 19 LTDA","PERSONA JURIDICA",null,"NO APLICA","NO APLICA",null,32400000,null,"N/A",0,32400000,0,"2023-05-08","2023-05-09","2024-04-30",240,"N/A","N/A","N/A","N/A","N/A",null,"EJECUCION",0]
["FDLC-CC-177-2023",2023,"FDLC-IMC-005-2023","https://community.secop.gov.co/Public/Tendering/OpportunityDetail/Index?noticeUID=CO1.NTC.4335920&isFromPublicArea=True&isModal=true&asPopupView=true","PRESTACION DE SERVICIOS","MINIMA CUANTIA","No aplica","ADQUISICIÓN DE INSUMOS CONSUMIBLES PARA LOS EQUIPOS DE IMPRESIÓN DE LA ALCALDÍA LOCAL DE LA CANDELARIA CARTUCHOS TONERS","FUNCIONAMIENTO",null,null,null,null,"O2120201003063649028",12,830089925,"PC PRONTO SAS","PERSONA JURIDICA",null,"NO APLICA","NO APLICA",null,11521580,null,1,5760791,17282371,17282370,"2023-05-10","2023-05-11","2023-07-10",30,1,30,"N/A","N/A","N/A",null,"TERMINADO",0.99999994213756893]
["FDLC-CIA-178-2023",2023,"FDLC-CIA-178-2023","https://community.secop.gov.co/Public/Tendering/OpportunityDetail/Index?noticeUID=CO1.NTC.4424022&isFromPublicArea=True&isModal=true&asPopupView=true","ContratosConveniosInteradministrativosConValor","Contratación Directa (con ofertas)","No aplica","Aunar esfuerzos técnicos administrativos jurídicos y financieros para laimplementación del Programa Jóvenes a la U para el acceso y la permanencia de las y los jóvenes en la ciudad de Bogotá particularmente para los jóvenes de la localidad de La Candelaria","INVERSION",null,null,null,null,"O23011601170000001607",1,901508361,"AGENCIA DISTRITAL PARA LA EDUCACIÓN SUPERIOR LA CIENCIA Y LA TECNOLOGÍA ATENEA","PERSONA JURIDICA",null,"NO APLICA","NO APLICA",null,1013000000,null,"N/A",0,1013000000,1013000000,"2023-05-18","2023-05-19","2030-12-31",2782,"N/A","N/A","N/A","N/A","N/A",null,"EJECUCION",1]
["FDLC-CPS-179-2023",2023,"FDLC-CPS-179-2023","https://community.secop.gov.co/Public/Tendering/OpportunityDetail/Index?noticeUID=CO1.NTC.4439429&isFromPublicArea=True&isModal=true&asPopupView=true","Contrato de Prestación de Servicios Profesionales y de Apoyo a la gestión","Contratación directa","No aplica","PRESTAR SERVICIOS PROFESIONALES PARA APOYAR EN LA FORMULACION PRESENTACIÓN EVALUACIÓN Y SEGUIMIENTO JURÍDICO DEL PROYECTO 1706 LA CANDELARIA RECREATIVA PARQUES PARA LA VIDA Y DE LOS PROYECTOS DE INVERSION DE LA ALCALDÍA LOCAL DE LA CANDELARIA","INVERSION",null,null,null,null,"O23011602330000001706",1,52904967,"ANGELA CRISTNA CARVAJAL TOVAR","PERSONA NATURAL",null,"NO APLICA","NO APLICA",null,25000000,null,2,7000002,32000002,27000000,"2023-05-18","2023-05-19","2023-11-29",150,2,42,"N/A","N/A","N/A",null,"TERMINADO",0.84374994726562824]
["FDLC-CPS-180-2023",2023,"FDLC-SAMC-001-2023","https://community.secop.gov.co/Public/Tendering/OpportunityDetail/Index?noticeUID=CO1.NTC.4322510&isFromPublicArea=True&isModal=true&asPopupView=true","PRESTACION DE SERVICIOS","SELECCION ABREVIADA MENOR CUANTIA","No aplica","PRESTAR LOS SERVICIOS PARA REALIZAR LA TOMA FÍSICA Y MEDICIÓNPOSTERIOR DETERIORO MODIFICACIÓN DE LA VIDA ÚTIL Y TOMA FISICA DE INVENTARIOS DE BIENES MUEBLES E INMUEBLES DE PROPIEDAD DEL FONDO DE DESARROLLO LOCAL DE LA CANDELARIA","INVERSION",null,null,null,null,"O23011605570000002021",4,900354279,"LQ REVISORES FISCALES AUDITORES EXTERNOS SAS","PERSONA JURIDICA",null,"NO APLICA","NO APLICA",null,50803970,null,"N/A",0,50803970,45723573,"2023-05-24","2023-06-06","2023-10-05",120,"N/A","N/A","N/A","N/A","N/A",null,"TERMINADO",0.9]
["FDLC-CPS-181-2023",2023,"FDLC-SAMC-002-2023","https://community.secop.gov.co/Public/Tendering/OpportunityDetail/Index?noticeUID=CO1.NTC.4334522&isFromPublicArea=True&isModal=true&asPopupView=true","PRESTACION DE SERVICIOS","SELECCION ABREVIADA MENOR CUANTIA","No aplica","PRESTAR SERVICIO PARA EL DESARROLLO DE ACCIONES ENCAMINADAS A FORTALECER HABILIDADES Y CONOCIMIENTOS EN LA GESTION DE RESIDUOS SOLIDOS E IMPLEMENTAR ACCIONES DE FOMENTO PARA LA AGRICULTURA URBANA A TRAVES DE PROCESOS DE CAPACITACION SENSIBILIZACIÓN EDUCACIÓN Y PARTICIPACIÓN EN LA LOCALIDAD DE LA CANDELARIA EN EL MARCO DE LOS PROYECTOS 1705 LA CANDELARIA SOSTENIBLE ECOEFICIENCIA RECICLAJE Y CAMBIO DE HÁBITOS DE CONSUMO Y 1626 LA CANDELARIA SOSTENIBLE AGRICULTURA URBANA","INVERSION",null,null,null,null,"O23011601240000001626-O23011602380000001705",6,900374639,"SOLUCIONES INTEGRALES TM SAS","PERSONA JURIDICA",null,"NO APLICA","NO APLICA",null,235085014,null,"N/A",0,235085014,190599021,"2023-05-24","2023-06-01","2023-09-30",120,"N/A","N/A","N/A","N/A","N/A",null,"TERMINADO",0.81076635961150634]
["FLDC-CPS-182-2023",2023,"FDLC-IMC-006-2023","https://community.secop.gov.co/Public/Tendering/OpportunityDetail/Index?noticeUID=CO1.NTC.4426007&isFromPublicArea=True&isModal=true&asPopupView=true","PRESTACION DE SERVICIOS","MINIMA CUANTIA","No aplica","PRESTAR SERVICIOS LOGISTICOS PARA ADELANTAR LOS DIFERENTES ESPACIOS DE RENDICIÓN DE CUENTAS CONTROL SOCIAL DIÁLOGO Y PARTICIPACIÓN DE LA LOCALIDAD DE LA CANDELARIA","INVERSION",null,null,null,null,"O23011605550000002019-O23011605570000002021",11,9013538743,"CM INGENIERA Y SERVICIOS AMBIENTALES SAS","PERSONA JURIDICA",null,"NO APLICA","NO APLICA",null,20850000,null,1,10425001,31275001,27806000,"2023-05-26","2023-05-29","2023-12-28",150,1,60,"N/A","N/A","N/A",null,"TERMINADO",0.88908070698383035]
["FDLC-CPS-183-2023",2023,"FDLC-CPS-183-2023","https://community.secop.gov.co/Public/Tendering/OpportunityDetail/Index?noticeUID=CO1.NTC.4482110&isFromPublicArea=True&isModal=true&asPopupView=true","Contrato de Prestación de Servicios Profesionales y de Apoyo a la gestión","Contratación directa","No aplica","PRESTAR SERVICIOS PROFESIONALES PARA APOYAR A LA ALCALDÍA LOCAL DE LA CANDELARIA EN LA PROMOCIÓN SEGUIMIENTO ACOMPAÑAMIENTO Y ATENCIÓN DE LAS INSTANCIAS DE PARTICIPACIÓN JUVENIL DE LA LOCALIDAD ASI COMO LOS PROCESOS COMUNITARIOS DE JUVENTUDES Y DEMÁS ESPACIOS DE PARTICIPACIÓN DESIGNADOS","INVERSION",null,null,null,null,"O23011605570000002021",1,1019099757,"ANGELA JIMENA SILVA GARCIA","PERSONA NATURAL",null,"NO APLICA","NO APLICA",null,35000000,null,"N/A",0,35000000,30166667,"2023-05-29","2023-05-30","2023-12-29",210,"N/A","N/A","N/A","N/A","N/A",null,"TERMINADO",0.86190477142857147]
["FDLC-CPS-184-2023",2023,"FDLC-SAMC-003-2023 ","https://community.secop.gov.co/Public/Tendering/OpportunityDetail/Index?noticeUID=CO1.NTC.4380040&isFromPublicArea=True&isModal=true&asPopupView=true","PRESTACION DE SERVICIOS","SELECCION ABREVIADA MENOR CUANTIA","No aplica","PRESTAR LOS SERVICIOS PARA FORTALECER LAS ORGANIZACIONES SOCIALES COMUNALES E INSTANCIAS DE PARTICIPACIÓN Y ADELANTAR PROCESOS DE FORMACIÓN PARA LA PARTICIPACIÓN DE LA LOCALIDAD DE LA CANDELARIA DE ACUERDO AL PROYECTO NO 2019 LA CANDELARIA PARTICIPATIVA","INVERSION",null,null,null,null,"O23011605550000002019",12,800169622,"INGEPLANCO SAS BIC","PERSONA JURIDICA",null,"NO APLICA","NO APLICA",null,237755827,null,"N/A",0,237755827,141505062,"2023-06-02","2023-06-15","2023-12-14",180,"N/A","N/A","N/A","N/A","N/A",null,"TERMINADO",0.5951696906255004]
["FDLC-CPS-185-2023",2023,"FDLC-CPS-185-2023","https://community.secop.gov.co/Public/Tendering/OpportunityDetail/Index?noticeUID=CO1.NTC.4515158&isFromPublicArea=True&isModal=true&asPopupView=true","Contrato de Prestación de Servicios Profesionales y de Apoyo a la gestión","Contratación directa","No aplica","PRESTAR SERVICIOS PROFESIONALES PARA APOYAR EN EL CUBRIMIENTO DIFUSIÓN Y COMUNICACIÓN DE LA GESTIÓN INSTITUCIONAL FOMENTANDO LA PARTICIPACIÓN INCIDENTE DE LAS INSTANCIAS DE PARTICIPACIÓN COLECTIVOS Y CIUDADANÍA EN LOS PROCESOS DE LA ADMINISTRACIÓN LOCAL","INVERSION",null,null,null,null,"O23011605550000002019",1,52646996,"ANGELA LILIANA RONDON GUTIERREZ","PERSONA NATURAL",null,"NO APLICA","NO APLICA",null,20000000,null,1,9666668,29666668,29333333,"2023-06-02","2023-06-05","2023-12-02",120,1,58,"N/A","N/A","N/A",null,"TERMINADO",0.98876398926903419]
["FDLC-CPS-186-2023",2023,"FDLC-CPS-186-2023","https://community.secop.gov.co/Public/Tendering/OpportunityDetail/Index?noticeUID=CO1.NTC.4531760&isFromPublicArea=True&isModal=true&asPopupView=true","Contrato de Prestación de Servicios Profesionales y de Apoyo a la gestión","Contratación directa","No aplica","PRESTAR SERVICIOS PROFESIONALES PARA BRINDAR ACOMPAÑAMIENTO Y SEGUIMIENTO EN LA IMPLEMENTACIÓN DEL SISTEMA DE GESTIÓN DE SEGURIDAD Y SALUD EN EL TRABAJO DE LA ALCALDIA LOCAL DE LA CANDELARIA","INVERSION",null,null,null,null,"O23011605570000002021",1,1020834874,"NICOLAS ANDRES MARTINEZ AGUILAR","PERSONA NATURAL",null,"NO APLICA","NO APLICA",null,18056000,null,1,9028001,27084001,27084000,"2023-06-06","2023-06-07","2023-12-06",120,1,60,"N/A","N/A","N/A",null,"TERMINADO",0.99999996307783334]
["FDLC-CIA-187-2023",2023,"FDLC-CIA-187-2023","https://community.secop.gov.co/Public/Tendering/OpportunityDetail/Index?noticeUID=CO1.NTC.4535647&isFromPublicArea=True&isModal=true&asPopupView=true","CONVENIO INTERADMINISTRATIVO","Contratación Directa (con ofertas)","No aplica","AUNAR ESFUERZOS ADMINISTRATIVOS TÉCNICOS FINANCIEROS Y LOGÍSTICOS ENTRE PROPAIS Y EL FONDO DE  DESARROLLO LOCAL DE LA CANDELARIA PARA LA CONSOLIDACIÓN Y FORTALECIMIENTO ECONÓMICO DE LOS EMPRENDIMIENTOS LOCALES A TRAVÉS  DEL PROGRAMA IMPULSO LOCAL 30","INVERSION",null,null,null,null,"O23011601060000001628",1,800250713,"CORPORACION PARA EL DESARROLLO DE LAS MICROEMPRESAS PROPAIS","PERSONA JURIDICA",null,"NO APLICA","NO APLICA",null,293410000,null,"N/A",0,293410000,278739500,"2023-06-07","2023-06-20","2024-01-19",150,"N/A","N/A","N/A","N/A","N/A",null,"TERMINADO",0.95]
["FDLC-CC-188-2023",2023,"FDLC-CC-188-2023","https://community.secop.gov.co/Public/Tendering/OpportunityDetail/Index?noticeUID=CO1.NTC.4510954&isFromPublicArea=True&isModal=true&asPopupView=true","COMPRAVENTA","MINIMA CUANTIA","No aplica","ADQUISICIÓN DE LOS CERTIFICADOS DE FIRMA DIGITAL DEL ACTUAL REPRESENTANTE LEGAL Y RESPONSABLE DE PRESUPUESTO DEL FONDO DE DESARROLLO DE LA CANDELARIA PARA LA IDENTIFICACIÓN CON AUTENTICIDAD Y SEGURIDAD EN LAS OPERACIONES ADMINISTRATIVAS Y FINANCIERAS","INVERSION",null,null,null,null,"O21202020080282130",1,901312112,"CAMERFIRMA","PERSONA JURIDICA",null,"NO APLICA","NO APLICA",null,357000,null,"N/A",0,357000,357000,"2023-06-09","2023-06-13","2023-07-12",30,"N/A","N/A","N/A","N/A","N/A",null,"TERMINADO",1]
["FDLC-CPS-190-2023",2023,"FDLC-CPS-190-2023","https://community.secop.gov.co/Public/Tendering/OpportunityDetail/Index?noticeUID=CO1.NTC.4557472&isFromPublicArea=True&isModal=true&asPopupView=true","PRESTACION DE SERVICIOS","CONTRATACION DIRECTA","No aplica","PRESTAR SERVICIOS DE FORMACIÓN Y PROMOCIÓN DE LA IDENTIDAD CULTURAL PARA LAS COMUNIDADES NEGRAS AFROCOLOMBIANAS RAIZALES Y PALENQUERAS QUE HABITAN EN LA LOCALIDAD DE LA CANDELARIA A TRAVÉS DE TALLERES EN MEDICINA ANCESTRAL Y ETNOBOTÁNICA Y LA CONMEMORACIÓN DEL DIA DE LA AFROCOLOMBIANIDAD EN EL MARCO","INVERSION",null,null,null,null,"O23011601060000001664",1,830029136,"Asociación Nacional de Estudiantes Afrocolombianos","PERSONA JURIDICA",null,"NO APLICA","NO APLICA",null,79760000,null,"N/A",0,79760000,23928000,"2023-06-13","2023-06-22","2023-12-30",90,"N/A","N/A","N/A","N/A","N/A",null,"TERMINADO",0.3]
["FDLC-CIA-191-2023",2023,"FDLC-CIA-191-2023","https://community.secop.gov.co/Public/Tendering/OpportunityDetail/Index?noticeUID=CO1.NTC.4582038&isFromPublicArea=True&isModal=true&asPopupView=true","CONVENIO INTERADIMISNITRATIVO","CONTRATACION DIRECTA","No aplica","Aunar esfuerzos entre el Fondo de Desarrollo Local de La Candelaria FDLC y la Secretaría de Cultura Recreación y Deporte SCRD para la estructuración y el desarrollo del espectáculo cultural y artístico Navidad 2023 en el Distrito Capital en el marco del Plan de Desarrollo Económico Social Ambiental","INVERSION",null,null,null,null,"O23011601210000001625",1,899999061,"SECRETARÍA DISTRITAL DE CULTURA RECREACIÓN Y DEPORTE","PERSONA JURIDICA",null,"NO APLICA","NO APLICA",null,10162672633,null,"N/A",0,10162672633,10000000000,"2023-06-16","2023-06-16","2023-12-31",197,"N/A","N/A","N/A","N/A","N/A",null,"TERMINADO",0.98399312475423317]
["FDLC-CPS-192-2023",2023,"FDLC-CPS-192-2023","https://community.secop.gov.co/Public/Tendering/OpportunityDetail/Index?noticeUID=CO1.NTC.4582322&isFromPublicArea=True&isModal=true&asPopupView=true","Contrato de Prestación de Servicios Profesionales y de Apoyo a la gestión","CONTRATACION DIRECTA","No aplica","PRESTAR SUS SERVICIOS PROFESIONALES DE APOYO Y ACOMPAÑAMIENTO RELACIONADOS CON LOS PROYECTOS DE OBRA PÚBLICA E INFRAESTRUCTURA PARA LOGRAR EL CUMPLIMIENTO DE LAS METAS DEL PLAN DE DESARROLLO LOCAL 20212024 de acuerdo con lo contemplado en ellos proyectos 2020  LA CANDELARIA SOSTENIBLE ESPACIO PÚBLIC","INVERSION",null,null,null,null,"O23011604490000002020",1,80879007,"JUAN PABLO SANABRIA VEGA","PERSONA NATURAL",null,"NO APLICA","NO APLICA",null,36000000,null,2,18000002,54000002,33000000,"2023-06-16","2023-06-16","2024-03-15",180,2,30,"N/A","N/A","N/A",null,"EJECUCION",0.61111108847736706]
["FDLC-CPS-193-2023",2023,"FDLC-CPS-193-2023","https://community.secop.gov.co/Public/Tendering/OpportunityDetail/Index?noticeUID=CO1.NTC.4582330&isFromPublicArea=True&isModal=true&asPopupView=true","Contrato de Prestación de Servicios Profesionales y de Apoyo a la gestión","CONTRATACION DIRECTA","No aplica","PRESTAR SUS SERVICIOS PROFESIONALES DE APOYO Y ACOMPAÑAMIENTO RELACIONADOS CON LOS PROYECTOS DE OBRA PÚBLICA E INFRAESTRUCTURA PARA LOGRAR EL CUMPLIMIENTO DE LAS METAS DEL PLAN DE DESARROLLO LOCAL 20212024","INVERSION",null,null,null,null,"O23011604490000002020",1,1015395116,"JHON EDWIN MORALES HERRERA","PERSONA NATURAL",null,"NO APLICA","NO APLICA",null,36000000,null,2,18000002,54000002,33000000,"2023-06-16","2023-06-16","2024-03-15",180,2,90,"N/A","N/A","N/A",null,"EJECUCION",0.61111108847736706]
["FDLC-CPS-194-2023",2023,"FDLC-CPS-194-2023","https://community.secop.gov.co/Public/Tendering/OpportunityDetail/Index?noticeUID=CO1.NTC.4590948&isFromPublicArea=True&isModal=true&asPopupView=true","Contrato de Prestación de Servicios Profesionales y de Apoyo a la gestión","CONTRATACION DIRECTA","No aplica","PRESTAR SERVICIOS PROFESIONALES AL FONDO DE DESARROLLO LOCAL DE LA CANDELARIA PARA APOYAR EN LA FORMULACIÓN IMPLEMENTACIÓN EJECUCIÓN Y SEGUIMIENTO DE PLANES POLITICAS PROGRAMAS Y PROYECTOS DE INVERSIÓN DEL FONDO DE DESARROLLO LOCAL DE LA CANDELARIA","INVERSION",null,null,null,null,"O23011605570000002021",1,35325622,"ENEYDA GONZALEZ PAVA","PERSONA NATURAL",null,"NO APLICA","NO APLICA",null,22570000,null,"N/A",0,22570000,22570000,"2023-06-20","2023-06-21","2023-11-20",150,"N/A","N/A","N/A","N/A","N/A",null,"TERMINADO",{"$f":"IF(ISERROR(AB211/AA211),\"-\",(AB211/AA211))","v":1}]
["FDLC-CPS-195-2023",2023,"FDLC-CPS-195-2023","https://community.secop.gov.co/Public/Tendering/OpportunityDetail/Index?noticeUID=CO1.NTC.4590789&isFromPublicArea=True&isModal=true&asPopupView=true","Contrato de Prestación de Servicios Profesionales y de Apoyo a la gestión","CONTRATACION DIRECTA","No aplica","PRESTAR SERVICIOS PROFESIONALES AL FONDO DE DESARROLLO LOCAL DE LA CANDELARIA PARA APOYAR EN LA FORMULACIÓN IMPLEMENTACIÓN EJECUCIÓN Y SEGUIMIENTO DE PLANES POLITICAS PROGRAMAS Y PROYECTOS DE INVERSIÓN DEL FONDO DE DESARROLLO LOCAL DE LA CANDELARIA","INVERSION",null,null,null,null,"O23011605570000002021",1,1033688318,"DEISY DAYANA ARIZA CAÑON","PERSONA NATURAL",null,"NO APLICA","NO APLICA",null,22570000,null,"N/A",0,22570000,19560667,"2023-06-20","2023-06-21","2023-11-20",150,"N/A","N/A","N/A","N/A","N/A",null,"TERMINADO",0.86666668143553394]
["FDLC-CPS-196-2023",2023,"FDLC-CPS-196-2023","https://community.secop.gov.co/Public/Tendering/OpportunityDetail/Index?noticeUID=CO1.NTC.4589499&isFromPublicArea=True&isModal=true&asPopupView=true","Contrato de Prestación de Servicios Profesionales y de Apoyo a la gestión","CONTRATACION DIRECTA","No aplica","PRESTAR SERVICIOS DE APOYO EN LAS ACTIVIDADES DE PROTECCIÓN CUIDADO Y CONSERVACIÓN DE LA MALLA VIAL COMO COMPONENTE PATRIMONIAL DE LA CANDELARIA","INVERSION",null,null,null,null,"O23011604490000002020",1,79976027,"JAIME ALIRIO RUIZ CALDERON","PERSONA NATURAL",null,"NO APLICA","NO APLICA",null,9225000,null,"N/A",0,9225000,9225000,"2023-06-16","2023-06-20","2023-11-19",150,"N/A","N/A","N/A","N/A","N/A",null,"TERMINADO",1]
["FDLC-CPS-197-2023",2023,"FDLC-CPS-197-2023","https://community.secop.gov.co/Public/Tendering/OpportunityDetail/Index?noticeUID=CO1.NTC.4590122&isFromPublicArea=True&isModal=true&asPopupView=true","Contrato de Prestación de Servicios Profesionales y de Apoyo a la gestión","CONTRATACION DIRECTA","No aplica","PRESTAR SERVICIOS DE APOYO EN LASACTIVIDADES DE PROTECCIÓN CUIDADO Y CONSERVACIÓN DE LA MALLA VIAL COMOCOMPONENTE PATRIMONIAL DE LA CANDELARIA","INVERSION",null,null,null,null,"O23011604490000002020",1,52854525,"ESPERANZA BUITRAGO LOAIZA","PERSONA NATURAL",null,"NO APLICA","NO APLICA",null,9225000,null,"N/A",0,9225000,9225000,"2023-06-16","2023-06-20","2023-11-19",150,"N/A","N/A","N/A","N/A","N/A",null,"TERMINADO",1]
["FDLC-CPS-198-2023",2023,"FDLC-CPS-198-2023","https://community.secop.gov.co/Public/Tendering/OpportunityDetail/Index?noticeUID=CO1.NTC.4609167&isFromPublicArea=True&isModal=true&asPopupView=true","Contrato de Prestación de Servicios Profesionales y de Apoyo a la gestión","CONTRATACION DIRECTA","No aplica","PRESTAR SERVICIOS DE APOYO TÉCNICO EN EL ACOMPAÑAMIENTO Y SEGUIMIENTO A LA IMPLEMENTACIÓN DEL SISTEMA DE GESTIÓN DE SEGURIDAD Y SALUD EN EL TRABAJO DE LOS PROCESOS CONTRACTUALES RELACIONADOS CON LOS PROYECTOS DE INVERSIÓN DE OBRAS E INFRAESTRUCTURA DEL FONDO DE DESARROLLO LOCAL DE LA CANDELARIA","INVERSION",null,null,null,null,"O23011604490000002020",1,1026279653,"DIEGO JOHAN VARGAS TORRES","PERSONA NATURAL",null,"NO APLICA","NO APLICA",null,13700000,null,1,2740001,{"$f":"+W215+X215+Z215","v":16440001},14522000,"2023-06-21","2023-06-22","2023-12-21",180,1,30,"N/A","N/A","N/A",null,"TERMINADO",0.88333327960259855]
["FDLC-CPS- 199-2023",2023,"FDLC-CPS- 199-2023","https://community.secop.gov.co/Public/Tendering/OpportunityDetail/Index?noticeUID=CO1.NTC.4613981&isFromPublicArea=True&isModal=true&asPopupView=true","Contrato de Prestación de Servicios Profesionales y de Apoyo a la gestión","CONTRATACION DIRECTA","No aplica","PRESTAR SERVICIOS ASISTENCIALES AL ÁREA DE GESTIÓN DE DESARROLLO LOCAL EN LOS PROCESOS Y ACTIVIDADES DE GESTIÓN ADMINISTRATIVA Y OPERATIVA DE LOS PROGRAMAS Y PROYECTOS DE INVERSIÓN RELACIONADOS CON LOS PLANES PROGRAMAS Y PROYECTOS DE OBRAS PÚBLICAS E INFRAESTRUCTURA DE LA ALCALDÍA LOCAL DE LA CANDEL","INVERSION",null,null,null,null,"O23011604490000002020",1,52807317,"JENY GONZALEZ CANTOR","PERSONA NATURAL",null,"NO APLICA","NO APLICA",null,10800000,null,1,900001,11700001,9480000,"2023-06-22","2023-06-23","2024-01-06",180,1,15,"N/A","N/A","N/A",null,"TERMINADO",0.81025634100373156]
["FDLC-CPS- 200-2023",2023,"FDLC-CPS- 200-2023","https://community.secop.gov.co/Public/Tendering/OpportunityDetail/Index?noticeUID=CO1.NTC.4614261&isFromPublicArea=True&isModal=true&asPopupView=true","Contrato de Prestación de Servicios Profesionales y de Apoyo a la gestión","CONTRATACION DIRECTA","No aplica","PRESTAR SERVICIOS DE APOYO EN LAS ACTIVIDADES DE PROTECCIÓN CUIDADO Y CONSERVACIÓN DE LA MALLA VIAL COMO COMPONENTE PATRIMONIAL DE LA CANDELARIA","INVERSION",null,null,null,null,"O23011604490000002020",1,1122727530,"JESSE JOSE VILLEGAS CABRERA","PERSONA NATURAL",null,"NO APLICA","NO APLICA",null,9225000,null,1,1845001,11070001,9717400,"2023-06-22","2023-06-23","2023-12-22",180,1,30,"N/A","N/A","N/A",null,"TERMINADO",0.87781383217580555]
["FDLC-CPS- 201-2023",2023,"FDLC-CPS- 201-2023","https://community.secop.gov.co/Public/Tendering/OpportunityDetail/Index?noticeUID=CO1.NTC.4614400&isFromPublicArea=True&isModal=False","Contrato de Prestación de Servicios Profesionales y de Apoyo a la gestión","CONTRATACION DIRECTA","No aplica","PRESTAR SERVICIOS PROFESIONALES EN MATERIA JURIDICA Y EN ARTICULACIÓN INTERINSTITUCIONAL A LA ALCALDIA LOCAL DE LA CANDELARIA","INVERSION",null,null,null,null,"O23011605570000002021",1,1054121677,"LINA MARCELA HOLGUIN HURTADO","PERSONA NATURAL",null,"NO APLICA","NO APLICA",null,27084000,null,"N/A",0,27084000,23322333,"2023-06-22","2023-06-26","2023-12-25",180,"N/A","N/A","N/A","N/A","N/A",null,"TERMINADO",0.86111109880372172]
["FDLC-CPS-202-2023",2023,"FDLC-CPS-202-2023","https://community.secop.gov.co/Public/Tendering/OpportunityDetail/Index?noticeUID=CO1.NTC.4615751&isFromPublicArea=True&isModal=true&asPopupView=true","Contrato de Prestación de Servicios Profesionales y de Apoyo a la gestión","CONTRATACION DIRECTA","No aplica","PRESTAR SERVICIOS DE APOYO EN LAS ACTIVIDADES DE PROTECCIÓN CUIDADO Y CONSERVACIÓN DE LA MALLA VIAL COMO COMPONENTE PATRIMONIAL DE LA CANDELARIA","INVERSION",null,null,null,null,"O23011604490000002020",1,65788328,"EMPERATRIZ GONZALEZ PALENCIA","PERSONA NATURAL",null,"NO APLICA","NO APLICA",null,9250000,null,1,1845001,11095001,9532500,"2023-06-22","2023-06-26","2023-12-25",180,1,30,"N/A","N/A","N/A",null,"TERMINADO",0.85917072021895269]
["FDLC-CPS- 203-2023",2023,"FDLC-CPS- 203-2023","https://community.secop.gov.co/Public/Tendering/OpportunityDetail/Index?noticeUID=CO1.NTC.4616024&isFromPublicArea=True&isModal=true&asPopupView=true","Contrato de Prestación de Servicios Profesionales y de Apoyo a la gestión","CONTRATACION DIRECTA","No aplica","PRESTAR SERVICIOS DE APOYO EN LAS ACTIVIDADES DE PROTECCIÓN CUIDADO Y CONSERVACIÓN DE LA MALLA VIAL COMO COMPONENTE PATRIMONIAL DE LA CANDELARIA","INVERSION",null,null,null,null,"O23011604490000002020",1,1000832141,"LAURA CATALINA MORA NIETO","PERSONA NATURAL",null,"NO APLICA","NO APLICA",null,9250000,null,1,1845001,11095001,9717000,"2023-06-22","2023-06-23","2023-12-22",180,1,30,"N/A","N/A","N/A",null,"TERMINADO",0.87579983093286784]
["FDLC-CPS-204-2023",2023,"FDLC-CPS-204-2023","https://community.secop.gov.co/Public/Tendering/OpportunityDetail/Index?noticeUID=CO1.NTC.4616145&isFromPublicArea=True&isModal=true&asPopupView=true","Contrato de Prestación de Servicios Profesionales y de Apoyo a la gestión","CONTRATACION DIRECTA","No aplica","PRESTAR SERVICIOS DE APOYO EN LAS ACTIVIDADES DE PROTECCIÓN CUIDADO Y CONSERVACIÓN DE LA MALLA VIAL COMO COMPONENTE PATRIMONIAL DE LA CANDELARIA","INVERSION",null,null,null,null,"O23011604490000002020",1,1193555922,"LIZ DAIRA TORRES SALDAÑA","PERSONA NATURAL",null,"NO APLICA","NO APLICA",null,9250000,null,1,1845001,11095001,9717000,"2023-06-22","2023-06-23","2023-12-22",180,1,30,"N/A","N/A","N/A",null,"TERMINADO",0.87579983093286784]
["FDLC-CPS-205-2023",2023,"FDLC-CPS-205-2023","https://community.secop.gov.co/Public/Tendering/OpportunityDetail/Index?noticeUID=CO1.NTC.4617343&isFromPublicArea=True&isModal=true&asPopupView=true","Contrato de Prestación de Servicios Profesionales y de Apoyo a la gestión","CONTRATACION DIRECTA","No aplica","PRESTAR SERVICIOS PROFESIONALES PARA EL SEGUIMIENTO JURÍDICO DE LOS PROYECTOS DE INFRAESTRUCTURA ASÍ COMO LOS DEMÁS ASUNTOS CONTRACTUALES QUE SE REQUIERAN","INVERSION",null,null,null,null,"O23011604490000002020",1,52159952,"ALBA RUBIELA DIAZ MENDEZ","PERSONA NATURAL",null,"NO APLICA","NO APLICA",null,30000000,null,"N/A",0,30000000,20833333,"2023-06-22","2023-06-26","2023-12-25",180,"N/A","N/A","N/A","N/A","N/A",null,"TERMINADO",0.69444443333333339]
["FDLC-CPS-206-2023",2023,"FDLC-CPS-206-2023","https://community.secop.gov.co/Public/Tendering/OpportunityDetail/Index?noticeUID=CO1.NTC.4623080&isFromPublicArea=True&isModal=true&asPopupView=true","Contrato de Prestación de Servicios Profesionales y de Apoyo a la gestión","CONTRATACION DIRECTA","No aplica","PRESTAR SERVICIOS PROFESIONALES AL FONDO DE DESARROLLO LOCAL DE LA CANDELARIA EN LOS TRÁMITES RELACIONADOS CON LOS PROCESOS PRECONTRACTUALES CONTRACTUALES Y POS CONTRACTUALES QUE SE ADELANTEN A TRAVÉS DE SECOP I Y II ASÍ COMO LA ADQUISICIÓN DE BIENES Y SERVICIOS A TRAVÉS DE LA TIENDA VIRTUAL DEL EST","INVERSION",null,null,null,null,"O23011605570000002021",1,1032456470,"DIANA CATHERINE GONZALEZ MOLANO","PERSONA NATURAL",null,"NO APLICA","NO APLICA",null,42000000,null,1,7000001,49000001,36866667,"2023-06-23","2023-06-23","2024-01-22",180,1,30,"N/A","N/A","N/A",null,"TERMINADO",0.75238094382896037]
["FDCL-CPS-207-2023",2023,"FDCL-CPS-207-2023","https://community.secop.gov.co/Public/Tendering/OpportunityDetail/Index?noticeUID=CO1.NTC.4626616&isFromPublicArea=True&isModal=true&asPopupView=true","Contrato de Prestación de Servicios Profesionales y de Apoyo a la gestión","CONTRATACION DIRECTA","No aplica","PRESTAR SERVICIOS PROFESIONALES ESPECIALIZADOS AL FONDO DE DESARROLLO LOCAL DE LA CANDELARIA PARA APOYAR JURÍDICAMENTE EN EL SEGUIMIENTO CONTRACTUAL POSCONTRACTUAL Y LIQUIDACIÓN DE LOS CONTRATOS DERIVADOS DE LOS PLANES PROGRAMAS Y PROYECTOS DE OBRAS PÚBLICAS E INFRAESTRUCTURA","INVERSION",null,null,null,null,"O23011604490000002020",1,1075243933,"NAUDY YULIETH RUBIANO DELGADO","PERSONA NATURAL",null,"NO APLICA","NO APLICA",null,32000000,null,1,16000000,48000000,25066667,"2023-06-23","2023-06-27","2023-12-26",120,1,60,"N/A","N/A","N/A",null,"TERMINADO",0.52222222916666672]
["FDLC-CPS-208-2023",2023,"FDLC-CPS-208-2023","https://community.secop.gov.co/Public/Tendering/OpportunityDetail/Index?noticeUID=CO1.NTC.4627827&isFromPublicArea=True&isModal=true&asPopupView=true","Contrato de Prestación de Servicios Profesionales y de Apoyo a la gestión","CONTRATACION DIRECTA","No aplica","PRESTAR SERVICIOS PROFESIONALES AL FONDO DE DESARROLLO LOCAL DE LA CANDELARIA PARA APOYAR EL SEGUIMIENTO LIQUIDACIÓN DEPURACIÓN Y CONSOLIDACIÓN DE LA INFORMACIÓN DE LAS OBLIGACIONES POR PAGAR DERIVADAS DE LOS PLANES PROGRAMAS Y PROYECTOS DE OBRAS PÚBLICAS E INFRAESTRUCTURA DE LA ENTIDAD","INVERSION",null,null,null,null,"O23011604490000002020",1,52065282,"CARMENZA  LIBERATO GAMBOA","PERSONA NATURAL",null,"NO APLICA","NO APLICA",null,13542000,null,2,6771002,20313002,18657867,"2023-06-23","2023-06-27","2023-11-11",90,2,45,"N/A","N/A","N/A",null,"TERMINADO",0.91851844449185793]
["FDLC-CPS-209-2023",2023,"FDLC-CPS-209-2023","https://community.secop.gov.co/Public/Tendering/OpportunityDetail/Index?noticeUID=CO1.NTC.4635792&isFromPublicArea=True&isModal=true&asPopupView=true","Contrato de Prestación de Servicios Profesionales y de Apoyo a la gestión","CONTRATACION DIRECTA","No aplica","PRESTAR SERVICIOS PROFESIONALES PARA APOYAR EN LA FORMULACIÓN PRESENTACIÓN EVALUACIÓN Y SEGUIMIENTO TÉCNICO A LA EJECUCIÓN CONTRACTUAL DE LOS PLANES PROGRAMAS Y PROYECTOS DE OBRAS PÚBLICAS E INFRAESTRUCTURA DE LA ALCALDÍA LOCAL DE LA CANDELARIA","INVERSION",null,null,null,null,"O23011604490000002020",1,1118547873,"ANGELICA MARIA ROMERO HERNANDEZ ","PERSONA NATURAL",null,"NO APLICA","NO APLICA",null,20000000,null,1,5000001,25000001,25000000,"2023-06-26","2023-06-27","2023-11-26",120,1,30,80037908,"CESION DE ROBERTO ALFONSO GOMEZ HERNANDEZ","2023-08-09",null,"TERMINADO",0.99999996000000158]
["FDLC-CPS-210-2023",2023,"FDLC-CPS-210-2023","https://community.secop.gov.co/Public/Tendering/OpportunityDetail/Index?noticeUID=CO1.NTC.4636201&isFromPublicArea=True&isModal=true&asPopupView=true","Contrato de Prestación de Servicios Profesionales y de Apoyo a la gestión","CONTRATACION DIRECTA","No aplica","PRESTAR SERVICIOS PROFESIONALES PARA APOYAR EN LA FORMULACIÓN PRESENTACIÓN EVALUACIÓN Y SEGUIMIENTO TÉCNICO A LA EJECUCIÓN CONTRACTUAL DE LOS PLANES PROGRAMAS Y PROYECTOS DE OBRAS PÚBLICAS E INFRAESTRUCTURA DE LA ALCALDÍA LOCAL DE LA CANDELARIA","INVERSION",null,null,null,null,"O23011604490000002020",1,1098738506,"JOHAN SEBASTIAN PEÑUELA GOMEZ ","PERSONA NATURAL",null,"NO APLICA","NO APLICA",null,13542000,null,1,6771001,20313001,10833600,"2023-06-26","2023-06-28","2023-11-11",90,1,45,11794731,"CESION DE MANUEL EXCEHOMO CHAVERRA CORDOBA","2023-08-25",null,"TERMINADO",0.53333330707757065]
["FDLC-CPS-211-2023",2023,"FDLC-CPS-211-2023","https://community.secop.gov.co/Public/Tendering/OpportunityDetail/Index?noticeUID=CO1.NTC.4635957&isFromPublicArea=True&isModal=true&asPopupView=true","Contrato de Prestación de Servicios Profesionales y de Apoyo a la gestión","CONTRATACION DIRECTA","No aplica","PRESTAR SERVICIOS PROFESIONALES AL FONDO DE DESARROLLO LOCAL DE LA CANDELARIA PARA APOYAR EN LA FORMULACIÓN IMPLEMENTACIÓN EJECUCIÓN Y SEGUIMIENTO DE PLANES POLITICAS PROGRAMAS Y PROYECTOS DE INVERSIÓN DEL FONDO DE DESARROLLO LOCAL DE LA CANDELARIA","INVERSION",null,null,null,null,"O23011605570000002021",1,52677880,"JENNY DALIA SANCHEZ JIMENEZ","PERSONA NATURAL",null,"NO APLICA","NO APLICA",null,27084000,null,"N/A",0,27084000,23021400,"2023-06-26","2023-06-28","2023-12-27",180,"N/A","N/A","N/A","N/A","N/A",null,"TERMINADO",0.85]
["FDLC-CPS-212-2023",2023,"FDLC-CPS-212-2023","https://community.secop.gov.co/Public/Tendering/OpportunityDetail/Index?noticeUID=CO1.NTC.4635974&isFromPublicArea=True&isModal=true&asPopupView=true","Contrato de Prestación de Servicios Profesionales y de Apoyo a la gestión","CONTRATACION DIRECTA","No aplica","PRESTAR SERVICIOS DE APOYO EN LAS ACTIVIDADES DE PROTECCIÓN CUIDADO Y CONSERVACIÓN DE LA MALLA VIAL COMO COMPONENTE PATRIMONIAL DE LA CANDELARIA","INVERSION",null,null,null,null,"O23011604490000002020",1,79596330,"SINUHE WALTARI AYURE VELASQUEZ","PERSONA NATURAL",null,"NO APLICA","NO APLICA",null,9225000,null,1,922501,10147501,5781000,"2023-06-26","2023-06-27","2024-01-04",150,1,15,"N/A","N/A","N/A",null,"TERMINADO",0.569696913555367]
["FDLC-CPS-213-2023",2023,"FDLC-CPS-213-2023","https://community.secop.gov.co/Public/Tendering/OpportunityDetail/Index?noticeUID=CO1.NTC.4635986&isFromPublicArea=True&isModal=true&asPopupView=true","Contrato de Prestación de Servicios Profesionales y de Apoyo a la gestión","CONTRATACION DIRECTA","No aplica","PRESTAR SERVICIOS PROFESIONALES AL FONDO DE DESARROLLO LOCAL DE LA CANDELARIA PARA APOYAR EN LA FORMULACIÓN IMPLEMENTACIÓN EJECUCIÓN Y SEGUIMIENTO DE PLANES POLITICAS PROGRAMAS Y PROYECTOS DE INVERSIÓN RELACIONADOS CON EL DESARROLLO ECONÓMICO DE LAS EMPRESAS Y EMPRENDIMIENTOS DE LA LOCALIDAD","INVERSION",null,null,null,null,"O23011601060000001628",1,1089242261,"ROMULO SIMON ESTRELLA PANTOJA","PERSONA NATURAL",null,"NO APLICA","NO APLICA",null,30000000,null,1,15000001,45000001,25666667,"2023-06-26","2023-06-27","2024-03-26",180,1,90,"N/A","N/A","N/A",null,"EJECUCION",0.57037036510288075]
["FDLC-CPS-214-2023",2023,"FDLC-CPS-214-2023","https://community.secop.gov.co/Public/Tendering/OpportunityDetail/Index?noticeUID=CO1.NTC.4635240&isFromPublicArea=True&isModal=true&asPopupView=true","Contrato de Prestación de Servicios Profesionales y de Apoyo a la gestión","CONTRATACION DIRECTA","No aplica","PRESTAR SERVICIOS PROFESIONALES AL FONDO DE DESARROLLO LOCAL DE LA CANDELARIA PARA APOYAR EN LA FORMULACIÓNIMPLEMENTACIÓN EJECUCIÓN Y SEGUIMIENTO DE PLANES POLITICAS PROGRAMAS Y PROYECTOS DE INVERSIÓN DEL FONDO DE DESARROLLO LOCAL DE LA CANDELARIA","INVERSION",null,null,null,null,"O23011605570000002021",1,1010185548,"DAMARIS RUT CARDENAS MORENO","PERSONA NATURAL",null,"NO APLICA","NO APLICA",null,22570000,null,"N/A",0,22570000,17604600,"2023-06-26","2023-07-04","2023-12-03",150,"N/A","N/A","N/A","N/A","N/A",null,"TERMINADO",0.78]
["FDLC-CPS-215-2023",2023,"FDLC-CPS-215-2023","https://community.secop.gov.co/Public/Tendering/OpportunityDetail/Index?noticeUID=CO1.NTC.4635171&isFromPublicArea=True&isModal=true&asPopupView=true","Contrato de Prestación de Servicios Profesionales y de Apoyo a la gestión","CONTRATACION DIRECTA","No aplica","PRESTAR SERVICIOS PROFESIONALES PARA APOYAR EN LA FORMULACION TECNICA Y SEGUIMIENTOS DE PLANES POLITICAS PROGRAMAS Y PROYECTOS RELACIONADOS CON OBRAS E INFRAESTRUCTURA QUE DESARROLLE LA ALCALDIA LOCAL DE LA CANDELARIA","INVERSION",null,null,null,null,"O23011604490000002020",1,1014240286,"JORGE ALBERTO OJEDA GONZALEZ","PERSONA NATURAL",null,"NO APLICA","NO APLICA",null,30000000,null,"N/A",0,{"$f":"+W232+X232+Z232","v":30000000},25500000,"2023-06-26","2023-06-28","2023-12-27",180,"N/A","N/A","N/A","N/A","N/A",null,"TERMINADO",{"$f":"IF(ISERROR(AB232/AA232),\"-\",(AB232/AA232))","v":0.85}]
["FDLC-CPS-217-2023",2023,"FDLC-CPS-217-2023","https://community.secop.gov.co/Public/Tendering/OpportunityDetail/Index?noticeUID=CO1.NTC.4654009&isFromPublicArea=True&isModal=true&asPopupView=true","Contrato de Prestación de Servicios Profesionales y de Apoyo a la gestión","CONTRATACION DIRECTA","No aplica","PRESTAR SERVICIOS ASISTENCIALES AL FONDO DE DESARROLLO LOCAL EN LOS PROCESOS Y ACTIVIDADES DE GESTIÓN ADMINISTRATIVA Y OPERATIVA DE LOS PROGRAMAS Y PROYECTOS DE INVERSIÓN RELACIONADOS CON EL DESARROLLO ECONÓMICO DE LAS EMPRESAS Y EMPRENDIMIENTOS DE LA LOCALIDAD","INVERSION",null,null,null,null,"O23011601060000001628",1,1030531639,"JUAN ALEXANDER ZAPATA PÁEZ","PERSONA NATURAL",null,"NO APLICA","NO APLICA",null,16200000,null,"N/A",0,null,13770000,"2023-06-28","2023-06-28","2023-12-27",180,"N/A","N/A","N/A","N/A","N/A",null,"TERMINADO",{"$f":"IF(ISERROR(AB233/AA233),\"-\",(AB233/AA233))","v":"-"}]
["FDLC-CPS-219-2023",2023,"FDLC-CPS-219-2023","https://community.secop.gov.co/Public/Tendering/OpportunityDetail/Index?noticeUID=CO1.NTC.4649976&isFromPublicArea=True&isModal=true&asPopupView=true","Contrato de Prestación de Servicios Profesionales y de Apoyo a la gestión","CONTRATACION DIRECTA","No aplica","PRESTAR SERVICIOS PROFESIONALES AL FONDO DE DESARROLLO LOCAL DE LA CANDELARIA PARA APOYAR EN LA FORMULACIÓN IMPLEMENTACIÓN EJECUCIÓN Y SEGUIMIENTO DE PLANES POLITICAS PROGRAMAS Y PROYECTOS DE INVERSIÓN DEL FONDO DE DESARROLLO LOCAL DE LA CANDELARIA","INVERSION",null,null,null,null,"O23011605570000002021",1,79606016,"CESAR AUGUSTO VARELA SABRICA","PERSONA NATURAL",null,"NO APLICA","NO APLICA",null,27084000,null,"N/A",0,{"$f":"+W234+X234+Z234","v":27084000},23021400,"2023-06-27","2023-06-28","2023-12-27",180,"N/A","N/A","N/A","N/A","N/A",null,"TERMINADO",0.85]
["FDLC-CPS-220-2023",2023,"FDLC-CPS-220-2023","https://community.secop.gov.co/Public/Tendering/OpportunityDetail/Index?noticeUID=CO1.NTC.4650284&isFromPublicArea=True&isModal=true&asPopupView=true","Contrato de Prestación de Servicios Profesionales y de Apoyo a la gestión","CONTRATACION DIRECTA","No aplica","PRESTAR SERVICIOS ASISTENCIALES AL FONDO DE DESARROLLO LOCAL EN LOS PROCESOS Y ACTIVIDADES DE GESTIÓN ADMINISTRATIVA Y OPERATIVA DE LOS PROGRAMAS Y PROYECTOS DE INVERSIÓN RELACIONADOS CON EL DESARROLLO ECONÓMICO DE LAS EMPRESAS Y EMPRENDIMIENTOS DE LA LOCALIDAD","INVERSION",null,null,null,null,"O23011601060000001628",1,93086512,"BLADIMIR OVIEDO RUIZ","PERSONA NATURAL",null,"NO APLICA","NO APLICA",null,16200000,null,"N/A",0,16200000,13770000,"2023-06-27","2023-06-28","2023-12-27",180,"N/A","N/A","N/A","N/A","N/A",null,"TERMINADO",0.85]
["FDLC-CPS-221-2023",2023,"FDLC-CPS-221-2023","https://community.secop.gov.co/Public/Tendering/OpportunityDetail/Index?noticeUID=CO1.NTC.4643906&isFromPublicArea=True&isModal=true&asPopupView=true","Contrato de Prestación de Servicios Profesionales y de Apoyo a la gestión","CONTRATACION DIRECTA","No aplica","PRESTAR SERVICIOS PROFESIONALES PARA APOYAR EN LA FORMULACIÓN PRESENTACIÓN EVALUACIÓN Y SEGUIMIENTO TÉCNICO A LA EJECUCIÓN CONTRACTUAL DE LOS PLANES PROGRAMAS Y PROYECTOS DE OBRAS PÚBLICAS E INFRAESTRUCTURA DE LA ALCALDÍA LOCAL DE LA CANDELARIA","INVERSION",null,null,null,null,"O23011604490000002020",1,1018424239,"YEIMS ALEXANDER PINEDA RODRIGUEZ","PERSONA NATURAL",null,"NO APLICA","NO APLICA",null,20000000,null,"N/A",0,20000000,18333333,"2023-06-27","2023-07-11","2023-11-10",120,"N/A","N/A","N/A","N/A","N/A",null,"TERMINADO",0.91666665000000003]
["FDLC-CPS-222-2023",2023,"FDLC-CPS-222-2023","https://community.secop.gov.co/Public/Tendering/OpportunityDetail/Index?noticeUID=CO1.NTC.4645512&isFromPublicArea=True&isModal=true&asPopupView=true","Contrato de Prestación de Servicios Profesionales y de Apoyo a la gestión","CONTRATACION DIRECTA","No aplica","PRESTAR SERVICIOS PROFESIONALES AL FONDO DE DESARROLLO LOCAL DE LA CANDELARIA PARA APOYAR LA GESTIÓN DE LOS ASUNTOS RELACIONADOS CON LA DESTINACIÓN DEL ESPACIO PÚBLICO SEGURIDAD CIUDADANA Y CONVIVENCIA EN LA LOCALIDAD","INVERSION",null,null,null,null,"O23011605570000002021",1,11801160,"JIMMY ORLANDO CORDOBA VIVEROS","PERSONA NATURAL",null,"NO APLICA","NO APLICA",null,36000000,null,"N/A",0,36000000,24600000,"2023-06-27","2023-06-28","2023-12-27",180,"N/A","N/A","N/A","N/A","N/A",null,"TERMINADO",0.68333333333333335]
["FDLC-CPS-223-2023",2023,"FDLC-CPS-223-2023","https://community.secop.gov.co/Public/Tendering/OpportunityDetail/Index?noticeUID=CO1.NTC.4643463&isFromPublicArea=True&isModal=true&asPopupView=true","Contrato de Prestación de Servicios Profesionales y de Apoyo a la gestión","CONTRATACION DIRECTA","No aplica","PRESTAR SERVICIOS PROFESIONALES AL FONDO DE DESARROLLO LOCAL DE LA CANDELARIA PARA APOYAR EN LA FORMULACIÓN IMPLEMENTACIÓN EJECUCIÓN Y SEGUIMIENTO DE PLANES POLITICAS PROGRAMAS Y PROYECTOS DE INVERSIÓN RELACIONADOS CON EL DESARROLLO ECONÓMICO DE LAS EMPRESAS Y EMPRENDIMIENTOS DE LA LOCALIDAD","INVERSION",null,null,null,null,"O23011601060000001628",1,1013607417,"YESID FERNANDO BUSTOS AGUILAR","PERSONA NATURAL",null,"NO APLICA","NO APLICA",null,30000000,null,"N/A",0,30000000,25500000,"2023-06-28","2023-06-28","2023-12-27",180,"N/A","N/A","N/A","N/A","N/A",null,"TERMINADO",0.85]
["FDLC-CPS-224-2023",2023,"FDLC-CPS-224-2023","https://community.secop.gov.co/Public/Tendering/OpportunityDetail/Index?noticeUID=CO1.NTC.4649768&isFromPublicArea=True&isModal=true&asPopupView=true","Contrato de Prestación de Servicios Profesionales y de Apoyo a la gestión","CONTRATACION DIRECTA","No aplica","PRESTAR SERVICIOS PROFESIONALES AL FONDO DE DESARROLLO LOCAL DE LA CANDELARIA EN LA PLANEACIÓN FORMULACIÓN Y SEGUIMIENTO DE LOS PLANES POLITICAS PROGRAMAS Y PROYECTOS DE INVERSIÓN PARA EL CUMPLIMIENTO DE LAS METAS DEL PLAN DE DESARROLLO LOCAL 20212024","INVERSION",null,null,null,null,"O23011605570000002021",1,41648295,"ISABEL SANCHEZ RODRIGUEZ","PERSONA NATURAL",null,"NO APLICA","NO APLICA",null,30000000,null,"N/A",0,30000000,25333333,"2023-06-28","2023-06-29","2023-12-28",180,"N/A","N/A","N/A","N/A","N/A",null,"TERMINADO",0.8444444333333333]
["FDLC-CPS-225-2023",2023,"FDLC-CPS-225-2023","https://community.secop.gov.co/Public/Tendering/OpportunityDetail/Index?noticeUID=CO1.NTC.4649951&isFromPublicArea=True&isModal=true&asPopupView=true","Contrato de Prestación de Servicios Profesionales y de Apoyo a la gestión","CONTRATACION DIRECTA","No aplica","PRESTAR SERVICIOS PROFESIONALES PARA APOYAR EN LA FORMULACION TECNICA Y SEGUIMIENTOS DE PLANES POLITICAS PROGRAMAS Y PROYECTOS RELACIONADOS CON OBRAS E INFRAESTRUCTURA QUE DESARROLLE LA ALCALDIA LOCAL DE LA CANDELARIA","INVERSION",null,null,null,null,"O23011604490000002020",1,1014267890,"BRYAN FELIPE PRIETO MANZANO","PERSONA NATURAL",null,"NO APLICA","NO APLICA",null,13542000,null,1,6620534,20162534,18507400,"2023-06-28","2023-06-28","2023-09-27",90,1,44,"N/A","N/A","N/A",null,"TERMINADO",0.91791041741082746]
["FDLC-CPS-226-2023",2023,"FDLC-CPS-226-2023","https://community.secop.gov.co/Public/Tendering/OpportunityDetail/Index?noticeUID=CO1.NTC.4654791&isFromPublicArea=True&isModal=true&asPopupView=true","Contrato de Prestación de Servicios Profesionales y de Apoyo a la gestión","CONTRATACION DIRECTA","No aplica","PRESTAR SERVICIOS PROFESIONALES PARA APOYAR EN LA FORMULACIÓN PRESENTACIÓN EVALUACIÓN Y SEGUIMIENTO TÉCNICO A LA EJECUCIÓN CONTRACTUAL DE LOS PLANES PROGRAMAS Y PROYECTOS DE OBRAS PÚBLICAS E INFRAESTRUCTURA DE LA ALCALDÍA LOCAL DE LA CANDELARIA","INVERSION",null,null,null,null,"O23011604490000002020",1,1015999291,"CAMILO ANDRES RINCON GONZALEZ","PERSONA NATURAL",null,"NO APLICA","NO APLICA",null,13542000,null,1,6620534,20162534,18356933,"2023-06-28","2023-06-29","2023-09-28",90,1,44,"N/A","N/A","N/A",null,"TERMINADO",0.9104477145581007]
["FDLC-CPS-227-2023",2023,"FDLC-CPS-227-2023","https://community.secop.gov.co/Public/Tendering/OpportunityDetail/Index?noticeUID=CO1.NTC.4650620&isFromPublicArea=True&isModal=true&asPopupView=true","Contrato de Prestación de Servicios Profesionales y de Apoyo a la gestión","CONTRATACION DIRECTA","No aplica","PRESTAR SERVICIOS DE APOYO EN LAS ACTIVIDADES DE PROTECCIÓN CUIDADO Y CONSERVACIÓN DE LA MALLA VIAL COMO COMPONENTE PATRIMONIAL DE LA CANDELARIA","INVERSION",null,null,null,null,"O23011604490000002020",1,1105683118,"MARIA DEL PILAR SANCHEZ BORBON","PERSONA NATURAL",null,"NO APLICA","NO APLICA",null,9225000,null,1,1845001,11070001,9409500,"2023-06-27","2023-06-28","2023-12-27",180,1,30,"N/A","N/A","N/A",null,"TERMINADO",0.84999992321590578]
["FDLC-CPS-228-2023",2023,"FDLC-CPS-228-2023","https://community.secop.gov.co/Public/Tendering/OpportunityDetail/Index?noticeUID=CO1.NTC.4650125&isFromPublicArea=True&isModal=true&asPopupView=true","Contrato de Prestación de Servicios Profesionales y de Apoyo a la gestión","CONTRATACION DIRECTA","No aplica","PRESTAR SERVICIOS PROFESIONALES PARA APOYAR A LA ALCALDÍA LOCAL DE LA CANDELARIA EN LA PROMOCIÓN SEGUIMIENTO ACOMPAÑAMIENTO Y ATENCIÓN DE LAS INSTANCIAS DE PARTICIPACIÓN DE LA LOCALIDAD Y DEMÁS ESPACIOS DE PARTICIPACIÓN DESIGNADOS","INVERSION",null,null,null,null,"O23011605550000002019",1,1072190560,"WILMER ALEXANDER BARRIOS","PERSONA NATURAL",null,"NO APLICA","NO APLICA",null,22570000,null,"N/A",0,22570000,22570000,"2023-06-27","2023-06-28","2023-11-27",150,"N/A","N/A","N/A","N/A","N/A",null,"TERMINADO",1]
["FDLC-CPS-229-2023",2023,"FDLC-CPS-229-2023","https://community.secop.gov.co/Public/Tendering/OpportunityDetail/Index?noticeUID=CO1.NTC.4649946&isFromPublicArea=True&isModal=true&asPopupView=true","Contrato de Prestación de Servicios Profesionales y de Apoyo a la gestión","CONTRATACION DIRECTA","No aplica","PRESTAR SERVICIOS PROFESIONALES EN LA PLANEACIÓN Y SEGUIMIENTO DE LOS PROYECTOS CULTURALES ARTÍSTICOS Y PATRIMONIALES DE LA ENTIDAD Y DEMÁS ASIGNADOS POR EL ÁREA DE GESTIÓN DEL DESARROLLO LOCAL PARA EL CUMPLIMIENTO DE LAS METAS DEL PLAN DE DESARROLLO LOCAL 20212024","INVERSION",null,null,null,null,"O23011601210000001625",1,1024462252,"HECTOR JULIO CEDANO MARTINEZ","PERSONA NATURAL",null,"NO APLICA","NO APLICA",null,25000000,null,1,5000001,30000001,25500000,"2023-06-27","2023-06-28","2023-12-27",180,1,30,"N/A","N/A","N/A",null,"TERMINADO",0.84999997166666763]
["FDLC-CIA-231-2023",2023,"FDLC-CIA-231-2023","https://community.secop.gov.co/Public/Tendering/OpportunityDetail/Index?noticeUID=CO1.NTC.4647459&isFromPublicArea=True&isModal=true&asPopupView=true","ContratosConveniosInteradministrativosConValor","CONTRATACION DIRECTA","No aplica","Aunar esfuerzos administrativos técnicos financieros y logísticos entre el Fondo de Desarrollo Local de La Candelaria y Artesanías de Colombia SA  BIC para la revitalización la reconversión verde el fortalecimiento y la transformación productiva que permita la reactivación económica de los artesanos","INVERSION",null,null,null,null,"O23011601060000001628",1,860007887,"ARTESANIAS DE COLOMBIA S.A - BIC","PERSONA JURIDICA",null,"NO APLICA","NO APLICA",null,50200000,null,"N/A",0,50200000,null,"2023-06-28","2023-06-30","2024-02-20",232,null,82,"N/A","N/A","N/A",null,"TERMINADO",0]
["FDLC-CPS-232-2023",2023,"FDLC-CPS-232-2023","https://community.secop.gov.co/Public/Tendering/OpportunityDetail/Index?noticeUID=CO1.NTC.4649999&isFromPublicArea=True&isModal=true&asPopupView=true","Contrato de Prestación de Servicios Profesionales y de Apoyo a la gestión","CONTRATACION DIRECTA","No aplica","PRESTAR SERVICIOS PROFESIONALES ESPECIALIZADOS AL FONDO DE DESARROLLO LOCAL DE LA CANDELARIA PARA APOYAR JURÍDICAMENTE EN EL SEGUIMIENTO CONTRACTUAL POSCONTRACTUAL Y LIQUIDACIÓN DE LOS CONTRATOS DERIVADOS DE LOS PLANES PROGRAMAS Y PROYECTOS DE OBRAS PÚBLICAS E INFRAESTRUCTURA","INVERSION",null,null,null,null,"O23011604490000002020",1,1077860194,"DIEGO ORLANDO CEDIEL SALAS","PERSONA NATURAL",null,"NO APLICA","NO APLICA",null,22500000,null,1,11000001,33500001,23000000,"2023-06-28","2023-06-29","2023-09-28",90,1,44,"N/A","N/A","N/A",null,"TERMINADO",0.68656714368456284]
["FDLC-CIA-233-2023",2023,"8549-2023","https://www.secop.gov.co/CO1ContractsManagement/Tendering/SalesContractEdit/View?docUniqueIdentifier=CO1.SLCNTR.10961620","CONVENIO INTERADMINISTRATIVO","CONTRATACION DIRECTA","No aplica","Aunar esfuerzos técnicos, administrativos, jurídicos y financieros entre la Secretaría Distrital de Integración Social y el Fondo de Desarrollo Local de La Candelaria para la operación del pago de transferencias monetarias no condicionadas de la Estrategia de Ingreso Mínimo Garantizado, que permitirá la dispersión de recursos a los hogares pobres priorizados e identificados de la Localidad de La Candelaria.","INVERSION",null,null,null,null,"O23011601010000001605",1,899999061,"SECRETARÍA DISTRITAL DE INTEGRACION SOCIAL","PERSONA JURIDICA",null,"NO APLICA","NO APLICA",null,608479704,null,"N/A",0,608479704,608479704,"2023-06-28","2023-06-29","2023-12-31",185,"N/A","N/A","N/A","N/A","N/A",null,"TERMINADO",1]
["FDLC-CIA-234-2023",2023,"FDLC-CIA-234-2023","https://www.contratos.gov.co/consultas/detalleProceso.do?numConstancia=23-22-69024&g-recaptcha-response=03AAYGu2Th2BpC4Q6vjESG2vi03bekW8EGr9HkxQlBwKmDnfKIwuPN0CoCU3eh-ahNooavEMMUbzXufhqD8ypv32ddiNpE-_a5NxUiJfDicLE2Wte5ccUk6W4rz8RQt99_AYuUrJXoQ7sOWDswuOg2-Z89mR2ZZUqSwbd0vInIzccyfAd4LsrENeaIIsywDcxzpIPjqgNZvnSynOvTY9Z0EmSeWB5Y_PC80rL2vcPgFBGwerj_GgdbCk-oCYIp2rhTk7OoLcofDQHNaGc4HbIyLROIh-qNYPc0kN5un0cNKGZnoFQM_BCo4Dgf5oTI00xbabOc_dTlTPCM89joVojjEzaROhzviX7CcI_pkUTK74c90Vxmy4rr4m6zk5Wq_YmrdumYI8tE52_g26dHNx0lIYq15vfB057QHTvwwARMTeN3V4VrEj3lJpo8ry9RJmtYpVay0tC8yHplneZC6bhzqJUa09lng4mjds4QycUvxIHnd5Ax0jFTrukiqajAQv5DNZF7EDd0EACwiv4ROAzMrPnJKXlhRhCtLDUkjbt-E3BlFCSmhL10znjr9Xv_9SJIXFxHuv-wW86c","CONVENIO INTERADMINISTRATIVO","CONTRATACION DIRECTA","No aplica","PRESTAR LOS SERVICIOS DE PLANEACION EJECUCION Y DIVULGACION DE LAS ACTIVIDADES A DESARROLLARSE EN EL MARCO DE ACCION CIUDAD NAVIDAD 2023 Y LA GENERACION DE ENTORNOS LUMINICOS Y DE DIFUSION DE LOS ACTOS PRINCIPALES QUE HARAN PARTE DE LA ESTRATEGIA COMUNICACIONAL DE LA ADMINISTRACION DISTRITAL","INVERSION",null,null,null,null,"O23011601210000001625",1,830012587,"CANAL CAPITAL","PERSONA JURIDICA",null,"NO APLICA","NO APLICA",null,200000000,null,"N/A",0,200000000,180000000,"2023-06-27","2023-07-10","2024-03-06",240,"N/A","N/A","N/A","N/A","N/A",null,"EJECUCION",0.9]
["FDLC-CIA- 235-2023",2023,"FDLC-CIA- 235-2023","https://community.secop.gov.co/Public/Tendering/OpportunityDetail/Index?noticeUID=CO1.NTC.4657119&isFromPublicArea=True&isModal=true&asPopupView=true","ContratosConveniosInteradministrativosConValor","CONTRATACION DIRECTA","No aplica","Aunar esfuerzos técnicos, operativos, administrativos y financieros entre el Fondo de Desarrollo Local de la Candelaria y la Fundación Batuta para la adquisición de instrumentos musicales y accesorios, así como la realización del mantenimiento de los instrumentos del Centro Filarmónico Local de La candelaria con el objetivo de fortalecer el desarrollo de procesos de formación artística y cultural de niños, niñas y adolescentes de la localidad en el marco del proyecto 1625: La Candelaria cultural, artística y patrimonial","INVERSION",null,null,null,null,"O23011601210000001625",1,800148631,"FUNDACION NACIONAL BATUTA","PERSONA JURIDICA",null,"NO APLICA","NO APLICA",null,218000000,null,"N/A",0,218000000,null,"2023-06-28","2023-06-29","2024-02-28",240,"N/A","N/A","N/A","N/A","N/A",null,"EJECUCION",0]
["FDLC-CPS-236-2023",2023,"FDLC-CPS-236-2023","https://community.secop.gov.co/Public/Tendering/OpportunityDetail/Index?noticeUID=CO1.NTC.4653771&isFromPublicArea=True&isModal=true&asPopupView=true","Contrato de Prestación de Servicios Profesionales y de Apoyo a la gestión","CONTRATACION DIRECTA","No aplica","PRESTAR SERVICIOS PROFESIONALES PARA APOYAR EN LA FORMULACIÓN PRESENTACIÓN EVALUACIÓN Y SEGUIMIENTO TÉCNICO A LA EJECUCIÓN CONTRACTUAL DE LOS PLANES PROGRAMAS Y PROYECTOS DE OBRAS PÚBLICAS E INFRAESTRUCTURA DE LA ALCALDÍA LOCAL DE LA CANDELARIA","INVERSION",null,null,null,null,"O23011604490000002020",1,1030534528,"DIANA ALEXANDRA JIMENEZ ARIZA","PERSONA NATURAL",null,"NO APLICA","NO APLICA",null,20000000,null,1,5000001,25000001,25000000,"2023-06-28","2023-06-28","2023-11-27",120,1,30,"N/A","N/A","N/A",null,"TERMINADO",0.99999996000000158]
["FDLC-CIA-237-2023",2023,"FDLC-CIA-237-2023","https://community.secop.gov.co/Public/Tendering/OpportunityDetail/Index?noticeUID=CO1.NTC.4652425&isFromPublicArea=True&isModal=true&asPopupView=true","ContratosConveniosInteradministrativosConValor","CONTRATACION DIRECTA","No aplica","AUNAR ESFUERZOS ADMINISTRATIVOS TÉCNICOS FINANCIEROS Y LOGÍSTICOS ENTRE EL FONDO DE DESARROLLO LOCAL DE LA CANDELARIA Y EL CABILDO INDIGENA INGA DE BOGOTA PARA EL FORTALECIMIENTO EMPRESARIAL DE LA COMUNIDAD INDIGENA DE LALOCALIDAD QUE PERMITA LA REACTIVACIÓN ECONÓMICA DE ACUERDO AL PROYECTO No 1628","INVERSION",null,null,null,null,"O23011601060000001628",1,830032429,"CABILDO INDIGENA INGA DE BOGOTA, D.C.","PERSONA JURIDICA",null,"NO APLICA","NO APLICA",null,92004053,null,"N/A",0,92004053,73603241,"2023-06-28","2023-07-11","2023-09-28",90,"N/A","N/A","N/A","N/A","N/A",null,"TERMINADO",0.79999998478327905]
["FDLC-CPS-238-2023",2023,"FDLC-CPS-238-2023","https://community.secop.gov.co/Public/Tendering/OpportunityDetail/Index?noticeUID=CO1.NTC.4653979&isFromPublicArea=True&isModal=true&asPopupView=true","Contrato de Prestación de Servicios Profesionales y de Apoyo a la gestión","CONTRATACION DIRECTA","No aplica","PRESTAR SERVICIOS PROFESIONALES AL FONDO DE DESARROLLO LOCAL DE LA CANDELARIA PARA LA FORMULACIÓN Y SEGUIMIENTO DE PLANES POLITICAS PROGRAMAS Y PROYECTOS DE INVERSIÓN RELACIONADOS CON LA ESTRATEGIA DE CUIDADO PREVENCIÓN DE VIOLENCIAS Y PROYECTOS CON ENFOQUE DE GÉNERO DEL PLAN DE DESARROLLO LOCAL","INVERSION",null,null,null,null,"O23011603400000001781",1,52087456,"JUANITA SABOGAL SALGADO","PERSONA NATURAL",null,"NO APLICA","NO APLICA",null,20000000,null,1,10000001,30000001,25166667,"2023-06-28","2023-06-30","2023-12-29",120,1,60,"N/A","N/A","N/A",null,"TERMINADO",0.83888887203703755]
["FDLC-CPS-239-2023",2023,"FDLC-CPS-239-2023","https://community.secop.gov.co/Public/Tendering/OpportunityDetail/Index?noticeUID=CO1.NTC.4653217&isFromPublicArea=True&isModal=true&asPopupView=true","Contrato de Prestación de Servicios Profesionales y de Apoyo a la gestión","CONTRATACION DIRECTA","No aplica","PRESTAR SERVICIOS ASISTENCIALES AL ÁREA DE GESTIÓN DE DESARROLLO LOCAL EN LAS ACTIVIDADES DE GESTIÓN ADMINISTRATIVA DERIVADAS DE LOS PLANES PROGRAMAS Y PROYECTOS DE OBRAS PÚBLICAS E INFRAESTRUCTURA DE LA ENTIDAD","INVERSION",null,null,null,null,"O23011604490000002020",1,1015457709,"GINETTE ELIANA CARRASCAL GUERRERO","PERSONA NATURAL",null,"NO APLICA","NO APLICA",null,10000000,null,1,2500001,12500001,5250000,"2023-06-28","2023-06-28","2023-11-27",120,1,30,"N/A","N/A","N/A",null,"TERMINADO",0.4199999664000027]
["FDLC-CPS-240-2023",2023,"FDLC-CPS-240-2023","https://community.secop.gov.co/Public/Tendering/OpportunityDetail/Index?noticeUID=CO1.NTC.4653220&isFromPublicArea=True&isModal=true&asPopupView=true","Contrato de Prestación de Servicios Profesionales y de Apoyo a la gestión","CONTRATACION DIRECTA","No aplica","PRESTAR SERVICIOS DE APOYO EN LAS ACTIVIDADES DE PROTECCIÓN CUIDADO Y CONSERVACIÓN DE LA MALLA VIAL COMO COMPONENTE PATRIMONIAL DE LA CANDELARIA","INVERSION",null,null,null,null,"O23011604490000002020",1,1010179255,"JUDY BEDOYA GOMEZ","PERSONA NATURAL",null,"NO APLICA","NO APLICA",null,9225000,null,1,1845001,11070001,9409500,"2023-06-28","2023-06-28","2023-12-27",180,1,30,"N/A","N/A","N/A",null,"TERMINADO",0.84999992321590578]
["FDLC-CPS-241-2023",2023,"FDLC-CPS-241-2023","https://community.secop.gov.co/Public/Tendering/OpportunityDetail/Index?noticeUID=CO1.NTC.4654189&isFromPublicArea=True&isModal=true&asPopupView=true","Contrato de Prestación de Servicios Profesionales y de Apoyo a la gestión","CONTRATACION DIRECTA","No aplica","PRESTAR SERVICIOS PROFESIONALES AL FONDO DE DESARROLLO LOCAL DE LA CANDELARIA PARA LA FORMULACIÓN Y SEGUIMIENTO DE PLANES POLITICAS PROGRAMAS Y PROYECTOS DE INVERSIÓN RELACIONADOS CON LA ESTRATEGIA DE CUIDADO PREVENCIÓN DE VIOLENCIAS Y PROYECTOS CON ENFOQUE DE GÉNERO DEL PLAN DE DESARROLLO LOCAL","INVERSION",null,null,null,null,"O23011603400000001781",1,1022408072,"LAURA STHEFANIA DIAZ GUTIERREZ","PERSONA NATURAL",null,"NO APLICA","NO APLICA",null,27084000,null,2,13391536,40475536,23021400,"2023-06-28","2023-06-28","2024-03-26",180,2,89,"N/A","N/A","N/A",null,"EJECUCION",0.56877319672801863]
["FDLC-CPS-242-2023",2023,"FDLC-CPS-242-2023","https://community.secop.gov.co/Public/Tendering/OpportunityDetail/Index?noticeUID=CO1.NTC.4655151&isFromPublicArea=True&isModal=true&asPopupView=true","Contrato de Prestación de Servicios Profesionales y de Apoyo a la gestión","CONTRATACION DIRECTA","No aplica","PRESTAR SERVICIOS DE APOYO TÉCNICO AL FONDO DE DESARROLLO LOCAL DE LA CANDELARIA EN LOS PROCEDIMIENTOS ADMINISTRATIVOS Y OPERATIVOS QUE LE SEAN ASIGNADOS","INVERSION",null,null,null,null,"O23011605570000002021",1,93118919,"ALFONSO CASTAÑEDA BUSTAMANTE","PERSONA NATURAL",null,"NO APLICA","NO APLICA",null,8211000,null,1,2737001,10948001,10948000,"2023-06-28","2023-06-30","2023-10-29",90,1,30,"N/A","N/A","N/A",null,"TERMINADO",0.99999990865912414]
["FDLC-CIA-243-2023",2023,"FDLC-CIA-243-2023","https://www.contratos.gov.co/consultas/detalleProceso.do?numConstancia=23-22-69199&g-recaptcha-response=03AAYGu2RqFFJzU_Pq3GUu-rGTcv09sD_9L597lF1q3ccQ2AxglGHSKtIjzpWSmFFeGH1jPJID-7nIo2SKcTrIFJFDXkNwaRCDQxGKJoED9ciX1UC1AT1dmeJXS1vUVf4yS7G_v0vg_FRX6XkXJ36anLfPWFrKojKM9f3KRui2fzjYhKItHJfslyLODSGu-0pzQlmHYl7x1Cvv0uY2Bf3z4vCA6tX8Eq4W-fY_voIZq3LvuCV-tZXyNDhyRUeAFCzQ2RQogS6CQWI5Rv60RWkdmrSl4Zt0rekaRb0iioflnJNtQzfZd5huGHWCxVhfAbzpwiWB2GFne4aVu9gavNbfWWNsAf0EwuYyoohm_bgzsKoTWydqiXyIb1upip8m9ecVXXazF8OvqKlGnlYMjT5GClE_okGZD6aWqv44mgyeY3SAJg8fDLVTG-rZUH-AmJl8KsSJYiHitrt3LMuteqM3ThTmOBTrdiMoOu3vDSK4Pqq35p8fHmPhGxJIzXGN8nBqOz3kroYzI2XWplLCwpIi3jymAf35evb0sB0fA9G5ewGhpnzdX1afuqtdbyAA-wEZf3Fn3Lm9fQD9","CONVENIO INTERADMINISTRATIVO","CONTRATACION DIRECTA","No aplica","Aunar esfuerzos administrativos y financieros entre la Secretaria Distrital de Seguridad Convivencia y Justicia y los Fondos de Desarrollo Local de Usaquen Chapinero Santa Fe Usme Tunjuelito Bosa Kennedy Fontibon Engativa Suba Barrios Unidos Teusaquillo Antonio Narino Puente Aranda la Candelaria Rafael Uribe Uribe y Ciudad Bolivar para el suministro e instalacion de equiposy componentes para el sistema de video vigilancia de Bogota","INVERSION",null,null,null,null,"O23011603480000001788",1,899999061,"SECRETARIA DISTRITAL DE SEGURIDAD CONVIVENCIA Y JUSTICIA","PERSONA JURIDICA",null,"NO APLICA","NO APLICA",null,195000000,null,"N/A",0,195000000,195000000,"2023-06-28","2023-08-02","2024-05-01",270,"N/A","N/A","N/A","N/A","N/A",null,"EJECUCION",1]
["FDLC-CPS-244-2023",2023,"FDLC-CPS-244-2023","https://community.secop.gov.co/Public/Tendering/OpportunityDetail/Index?noticeUID=CO1.NTC.4660997&isFromPublicArea=True&isModal=true&asPopupView=true","Contrato de Prestación de Servicios Profesionales y de Apoyo a la gestión","CONTRATACION DIRECTA","No aplica","PRESTAR SERVICIOS ASISTENCIALES PARA APOYAR EN LA ELABORACIÓN GESTIÓN Y PUBLICACIÓN DE CONTENIDOS Y MATERIAL GRÁFICO DE COMUNICACIÓN EN LAS REDES SOCIALES Y HERRAMIENTAS INSTITUCIONALES DE COMUNICACIÓN DE LA ALCALDÍA LOCAL DE LA CANDELARIA DE LOS PROGRAMAS RELACIONADOS CON EL DESARROLLO ECONÓMICO DE","INVERSION",null,null,null,null,"O23011601060000001628",1,1020813728,"EDGAR SANTIAGO ALARCON TALERO","PERSONA NATURAL",null,"NO APLICA","NO APLICA",null,10000000,null,1,2500001,12500001,10166667,"2023-06-28","2023-06-29","2023-11-28",120,1,30,"N/A","N/A","N/A",null,"TERMINADO",0.81333329493333639]
["FDLC-CPS-245-2023",2023,"FDLC-CPS-245-2023","https://community.secop.gov.co/Public/Tendering/OpportunityDetail/Index?noticeUID=CO1.NTC.4662129&isFromPublicArea=True&isModal=true&asPopupView=true","PRESTACION DE SERVICIOS","CONTRATACION DIRECTA","No aplica","PRESTAR SERVICIOS PROFESIONALES PARA REALIZAR LA AUDITORÍA DE SEGUIMIENTO N 2 AL ÁREA TURÍSTICA SOSTENIBLE DE LA CANDELARIA DE ACUERDO A LOS LINEAMIENTOS QUE EXIGE LA NORMA TÉCNICA SECTORIAL COLOMBIANA NTSTS 001 PARA GARANTIZAR SU CONSERVACIÓN","INVERSION",null,null,null,null,"O23011601060000001628",1,830040274,"KIWA CQR S.A.S","PERSONA JURIDICA",null,"NO APLICA","NO APLICA",null,3769158,null,"N/A",0,3769158,{"$f":"+Z259+AA259","v":3769158},"2023-07-10","2023-07-26","2023-09-25",60,"N/A","N/A","N/A","N/A","N/A",null,"TERMINADO",1]
["FDLC-CPS-246-2023",2023,"FDLC-CPS-246-2023","https://community.secop.gov.co/Public/Tendering/OpportunityDetail/Index?noticeUID=CO1.NTC.4663217&isFromPublicArea=True&isModal=true&asPopupView=true","Contrato de Prestación de Servicios Profesionales y de Apoyo a la gestión","CONTRATACION DIRECTA","No aplica","PRESTAR SERVICIOS ASISTENCIALES EN LOS PROCESOS Y ACTIVIDADES DE GESTIÓN ADMINISTRATIVA Y OPERATIVA DE LOS PROGRAMAS Y PROYECTOS DE INVERSIÓN DEL FONDO DE DESARROLLO LOCAL DE LA CANDELARIA","INVERSION",null,null,null,null,"O23011605570000002021",1,43904066,"MARIA NATHALIE INFANTE GOMEZ","PERSONA NATURAL",null,"NO APLICA","NO APLICA",null,15000000,null,"N/A",0,15000000,12666667,"2023-06-28","2023-06-29","2023-12-28",180,"N/A","N/A","N/A","N/A","N/A",null,"TERMINADO",{"$f":"IF(ISERROR(AB260/AA260),\"-\",(AB260/AA260))","v":0.84444446666666662}]
["FDLC-CPS-247-2023",2023,"FDLC-CPS-247-2023","https://community.secop.gov.co/Public/Tendering/OpportunityDetail/Index?noticeUID=CO1.NTC.4665555&isFromPublicArea=True&isModal=true&asPopupView=true","Contrato de Prestación de Servicios Profesionales y de Apoyo a la gestión","CONTRATACION DIRECTA","No aplica","PRESTAR SERVICIOS ASISTENCIALES AL ÁREA DE GESTIÓN DE DESARROLLO LOCAL EN LOS PROCESOS Y ACTIVIDADES DE GESTIÓN ADMINISTRATIVA Y OPERATIVA DE LOS PROGRAMAS Y PROYECTOS DE INVERSIÓN RELACIONADOS CON LA ESTRATEGIA DE CUIDADO PREVENCIÓN DE VIOLENCIAS Y PROYECTOS CON ENFOQUE DE GÉNERO DEL PLAN DE DESARR","INVERSION",null,null,null,null,"O23011601060000001663",1,1026286347,"YEYMY CAMILA OTALORA CAMELO","PERSONA NATURAL",null,"NO APLICA","NO APLICA",null,7200000,null,1,3600001,10800001,9120000,"2023-06-28","2023-06-29","2023-12-28",120,1,60,"N/A","N/A","N/A",null,"TERMINADO"]
["FDLC-CPS-248-2023",2023,"FDLC-CPS-248-2023","https://community.secop.gov.co/Public/Tendering/OpportunityDetail/Index?noticeUID=CO1.NTC.4666658&isFromPublicArea=True&isModal=true&asPopupView=true","Contrato de Prestación de Servicios Profesionales y de Apoyo a la gestión","CONTRATACION DIRECTA","No aplica","PRESTAR SERVICIOS PROFESIONALES AL FONDO DE DESARROLLO LOCAL DE LA CANDELARIA EN LA PLANEACIÓN FORMULACIÓN YSEGUIMIENTO DE LOS PLANES POLITICAS PROGRAMAS Y PROYECTOS DE INVERSIÓN PARA EL CUMPLIMIENTO DE LAS METAS DEL PLAN DE DESARROLLO LOCAL 20212024","INVERSION",null,null,null,null,"O23011605570000002021",1,79501819,"MIGUEL HERNANDO MENDOZA VELOZA","PERSONA NATURAL",null,"NO APLICA","NO APLICA",null,18056000,null,1,4514001,22570001,18206467,"2023-06-28","2023-06-30","2023-11-29",120,1,30,"N/A","N/A","N/A",null,"TERMINADO",0.80666664569487612]
["FDLC-CPS-249-2023",2023,"FDLC-CPS-249-2023","https://community.secop.gov.co/Public/Tendering/OpportunityDetail/Index?noticeUID=CO1.NTC.4666818&isFromPublicArea=True&isModal=true&asPopupView=true","Contrato de Prestación de Servicios Profesionales y de Apoyo a la gestión","CONTRATACION DIRECTA","No aplica","PRESTAR SERVICIOS ASISTENCIALES EN LOS PROCESOS Y ACTIVIDADES DE GESTIÓN ADMINISTRATIVA Y OPERATIVA DE LOS PROGRAMAS Y PROYECTOS DE INVERSIÓN DEL FONDO DE DESARROLLO LOCAL DE LA CANDELARIA","INVERSION",null,null,null,null,"O23011605570000002021",1,1022945943,"JAVIER ALBERTO BUITRAGO CONEO","PERSONA NATURAL",null,"NO APLICA","NO APLICA",null,13416000,null,"N/A",0,13416000,3726667,"2023-06-28","2023-07-11","2023-12-31",180,"N/A","N/A","N/A","N/A","N/A",null,"TERMINADO",0.27777780262373286]
["FDLC-CPS-250-2023",2023,"FDLC-CPS-250-2023","https://community.secop.gov.co/Public/Tendering/OpportunityDetail/Index?noticeUID=CO1.NTC.4667475&isFromPublicArea=True&isModal=true&asPopupView=true","Contrato de Prestación de Servicios Profesionales y de Apoyo a la gestión","CONTRATACION DIRECTA","No aplica","PRESTAR SERVICIOS ASISTENCIALES AL ÁREA DE GESTIÓN DE DESARROLLO LOCAL EN LOS PROCESOS Y ACTIVIDADES DE GESTIÓNADMINISTRATIVA Y OPERATIVA DE LOS PROGRAMAS Y PROYECTOS DE INVERSIÓN RELACIONADOS CON LOS PLANES PROGRAMAS Y PROYECTOS DE OBRAS PÚBLICAS E INFRAESTRUCTURA DE LA ALCALDÍA LOCAL DE LA CANDELA","INVERSION",null,null,null,null,"O23011604490000002020",1,1010171112,"DIEGO FABIAN DUARTE VELASQUEZ ","PERSONA NATURAL",null,"NO APLICA","NO APLICA",null,10800000,null,"N/A",0,10800000,8700000,"2023-06-28","2023-06-30","2023-12-29",180,"N/A","N/A",1001281981,"CESION DE YEISON ESMIK GOMEZ HERNANDEZ","2023-07-06",null,"TERMINADO",0.80555555555555558]
["FDLC-CPS-251-2023",2023,"FDLC-CPS-251-2023","https://community.secop.gov.co/Public/Tendering/OpportunityDetail/Index?noticeUID=CO1.NTC.4668675&isFromPublicArea=True&isModal=true&asPopupView=true","Contrato de Prestación de Servicios Profesionales y de Apoyo a la gestión","CONTRATACION DIRECTA","No aplica","PRESTAR SERVICIOS ASISTENCIALES ENLOS PROCESOS Y ACTIVIDADES DE GESTIÓN ADMINISTRATIVA Y OPERATIVA DE LOSPROGRAMAS Y PROYECTOS DE INVERSIÓN DEL FONDO DE DESARROLLO LOCAL DE LACANDELARIA","INVERSION",null,null,null,null,"O23011605570000002021",1,80441310,"RICHARD HERIBERTO LUNA TOVAR","PERSONA NATURAL",null,"NO APLICA","NO APLICA",null,13290000,null,"N/A",0,13290000,11148833,"2023-06-29","2023-06-30","2023-12-29",180,"N/A","N/A","N/A","N/A","N/A",null,"TERMINADO",0.83888886380737393]
["FDLC-CPS-252-2023",2023,"FDLC-CPS-252-2023","https://community.secop.gov.co/Public/Tendering/OpportunityDetail/Index?noticeUID=CO1.NTC.4667982&isFromPublicArea=True&isModal=true&asPopupView=true","Contrato de Prestación de Servicios Profesionales y de Apoyo a la gestión","CONTRATACION DIRECTA","No aplica","PRESTAR SERVICIOS PROFESIONALES AL FONDO DE DESARROLLO LOCAL DE LA CANDELARIA PARA LA FORMULACIÓN Y SEGUIMIENTO DE PLANES POLITICAS PROGRAMAS Y PROYECTOS DE INVERSIÓN RELACIONADOS CON LA ESTRATEGIA DE CUIDADO PREVENCIÓN DE VIOLENCIAS Y PROYECTOS CON ENFOQUE DE GÉNERO DEL PLAN DE DESARROLLO LOCAL","INVERSION",null,null,null,null,"O23011603400000001781",1,1024570825,"Geraldine Nuñez Monroy","PERSONA NATURAL",null,"NO APLICA","NO APLICA",null,18056000,null,1,4514001,22570001,22570000,"2023-06-28","2023-06-29","2023-11-28",120,1,30,"N/A","N/A","N/A",null,"TERMINADO",0.99999995569340028]
["FDLC-CPS-253-2023",2023,"FDLC-CPS-253-2023","https://community.secop.gov.co/Public/Tendering/OpportunityDetail/Index?noticeUID=CO1.NTC.4668006&isFromPublicArea=True&isModal=true&asPopupView=true","Contrato de Prestación de Servicios Profesionales y de Apoyo a la gestión","CONTRATACION DIRECTA","No aplica","PRESTAR SERVICIOS ASISTENCIALES EN LOS PROCESOS Y ACTIVIDADES DE GESTIÓN ADMINISTRATIVA Y OPERATIVA DE LOS PROGRAMAS Y PROYECTOS DE INVERSIÓN DEL FONDO DE DESARROLLO LOCAL DE LA CANDELARIA","INVERSION",null,null,null,null,"O23011605570000002021",1,80151613,"JORGE YESID CALDAS RUIZ","PERSONA NATURAL",null,"NO APLICA","NO APLICA",null,13416000,null,"N/A",0,13416000,11329067,"2023-06-28","2023-06-29","2023-12-28",180,"N/A","N/A","N/A","N/A","N/A",null,"TERMINADO",0.84444446929039951]
["FDLC-CPS-254-2023",2023,"FDLC-CPS-254-2023","https://community.secop.gov.co/Public/Tendering/OpportunityDetail/Index?noticeUID=CO1.NTC.4667778&isFromPublicArea=True&isModal=true&asPopupView=true","Contrato de Prestación de Servicios Profesionales y de Apoyo a la gestión","CONTRATACION DIRECTA","No aplica","PRESTAR SERVICIOS DE APOYO EN LAS ACTIVIDADES DE PROTECCIÓN CUIDADO Y CONSERVACIÓN DE LA MALLA VIAL COMO COMPONENTE PATRIMONIAL DE LA CANDELARIA","INVERSION",null,null,null,null,"O23011604490000002020",1,51573986,"MARGARITA POLO GUTIERREZ","PERSONA NATURAL",null,"NO APLICA","NO APLICA",null,9225000,null,1,4612501,13837501,7503000,"2023-06-28","2023-06-29","2024-02-13",225,1,75,"N/A","N/A","N/A",null,"TERMINADO",0.54222218303724057]
["FDLC-CPS-255-2023",2023,"FDLC-CPS-255-2023","https://community.secop.gov.co/Public/Tendering/OpportunityDetail/Index?noticeUID=CO1.NTC.4667939&isFromPublicArea=True&isModal=true&asPopupView=true","Contrato de Prestación de Servicios Profesionales y de Apoyo a la gestión","CONTRATACION DIRECTA","No aplica","PRESTAR SERVICIOS ASISTENCIALES AL ÁREA DE GESTIÓN DE DESARROLLO LOCAL EN LAS ACTIVIDADES DE GESTIÓN ADMINISTRATIVA DERIVADAS DE LOS PLANES PROGRAMAS Y PROYECTOS DE INVERSIÓN CON ENFOQUE DE GÉNERO DEL PLAN DE DESARROLLO LOCAL","INVERSION",null,null,null,null,"O23011603400000001781",1,1112302106,"DANIELA TABORDA VALENCIA","PERSONA NATURAL",null,"NO APLICA","NO APLICA",null,10000000,null,1,5000001,15000001,10083333,"2023-06-28","2023-06-30","2023-12-29",120,1,60,"N/A","N/A","N/A",null,"TERMINADO",0.67222215518518968]
["FDLC-CPS-256-2023",2023,"FDLC-CPS-256-2023","https://community.secop.gov.co/Public/Tendering/OpportunityDetail/Index?noticeUID=CO1.NTC.4667708&isFromPublicArea=True&isModal=true&asPopupView=true","Contrato de Prestación de Servicios Profesionales y de Apoyo a la gestión","CONTRATACION DIRECTA","No aplica","PRESTAR SERVICIOS PROFESIONALES AL FONDO DE DESARROLLO LOCAL DE LA CANDELARIA PARA APOYAR EN LA FORMULACIÓN IMPLEMENTACIÓN EJECUCIÓN Y SEGUIMIENTO DE PLANES POLITICAS PROGRAMAS Y PROYECTOS DE INVERSIÓN RELACIONADOS CON EL DESARROLLO ECONÓMICO DE LAS EMPRESAS Y EMPRENDIMIENTOS DE LA LOCALIDAD","INVERSION",null,null,null,null,"O23011601060000001628",1,1018456945,"GIOVANNI ANDRES RAMIREZ HUILA","PERSONA NATURAL",null,"NO APLICA","NO APLICA",null,18056000,null,"N/A",0,18056000,17303667,"2023-06-28","2023-07-06","2023-11-05",120,"N/A","N/A","N/A","N/A","N/A",null,"TERMINADO",0.95833335179441737]
["OC257",2023,"ORDEN DE COMPRA 114382","https://www.colombiacompra.gov.co/tienda-virtual-del-estado-colombiano/ordenes-compra/114382","ORDEN DE COMPRA","ACUERDO MARCO DE PRECIOS","No aplica","ADQUISICIÓN DE ELEMENTOS DIDÁCTICOS, DEPORTIVOS, TECNOLÓGICOS, PAPELERÍA Y FERRETERÍA PARA LAS INSTITUCIONES EDUCATIVAS IED LA CANDELARIA Y IED ESCUELA NACIONAL DE COMERCIO (ESNALCO) EN EL MARCO DEL PROYECTO 1608 DENOMINADO: “LA CANDELARIA PEDAGÓGICA BASES SOLIDAD PARA LA VIDA”","INVERSION",null,null,null,null,"O23011601120000001608",1,805018905,"YUBARTA S.A.S.","PERSONA JURIDICA",null,"NO APLICA","NO APLICA",null,9419670,null,"N/A",0,9419670,9419669.6899999995,"2023-08-10","2023-08-11","2023-11-17",90,"N/A","N/A","N/A","N/A","N/A",null,"TERMINADO",0.99999996709014216]
["OC258",2023,"ORDEN DE COMPRA 114383","https://www.colombiacompra.gov.co/tienda-virtual-del-estado-colombiano/ordenes-compra/114383","ORDEN DE COMPRA","ACUERDO MARCO DE PRECIOS","No aplica","ADQUISICIÓN DE ELEMENTOS DIDÁCTICOS, DEPORTIVOS, TECNOLÓGICOS, PAPELERÍA Y FERRETERÍA PARA LAS INSTITUCIONES EDUCATIVAS IED LA CANDELARIA Y IED ESCUELA NACIONAL DE COMERCIO (ESNALCO) EN EL MARCO DEL PROYECTO 1608 DENOMINADO: “LA CANDELARIA PEDAGÓGICA BASES SOLIDAD PARA LA VIDA","INVERSION",null,null,null,null,"O23011601120000001608",1,900552715,"GRUPO EMPRESARIAL MADEX S.A.S.","PERSONA JURIDICA",null,"NO APLICA","NO APLICA",null,4511860,null,"N/A",0,4511860,4511859.54,"2023-08-10","2023-08-11","2023-11-17",90,"N/A","N/A","N/A","N/A","N/A",null,"TERMINADO",0.99999989804648193]
["OC259",2023,"ORDEN DE COMPRA 114384","https://www.colombiacompra.gov.co/tienda-virtual-del-estado-colombiano/ordenes-compra/114384","ORDEN DE COMPRA","ACUERDO MARCO DE PRECIOS","No aplica","ADQUISICIÓN DE ELEMENTOS DIDÁCTICOS, DEPORTIVOS, TECNOLÓGICOS, PAPELERÍA Y FERRETERÍA PARA LAS INSTITUCIONES EDUCATIVAS IED LA CANDELARIA Y IED ESCUELA NACIONAL DE COMERCIO (ESNALCO) EN EL MARCO DEL PROYECTO 1608 DENOMINADO: “LA CANDELARIA PEDAGÓGICA BASES SOLIDAD PARA LA VIDA","INVERSION",null,null,null,null,"O23011601120000001608",1,830001338,"Sumimas S.A.S.","PERSONA JURIDICA",null,"NO APLICA","NO APLICA",null,1294771,null,"N/A",0,1294771,1294771.18,"2023-08-10","2023-08-11","2023-11-17",90,"N/A","N/A","N/A","N/A","N/A",null,"TERMINADO",1.0000001390207225]
["OC260",2023,"ORDEN DE COMPRA 114385","https://www.colombiacompra.gov.co/tienda-virtual-del-estado-colombiano/ordenes-compra/114385","ORDEN DE COMPRA","ACUERDO MARCO DE PRECIOS","No aplica","ADQUISICIÓN DE ELEMENTOS DIDÁCTICOS, DEPORTIVOS, TECNOLÓGICOS, PAPELERÍA Y FERRETERÍA PARA LAS INSTITUCIONES EDUCATIVAS IED LA CANDELARIA Y IED ESCUELA NACIONAL DE COMERCIO (ESNALCO) EN EL MARCO DEL PROYECTO 1608 DENOMINADO: “LA CANDELARIA PEDAGÓGICA BASES SOLIDAD PARA LA VIDA”","INVERSION",null,null,null,null,"O23011601120000001608",1,800209890,"Comercializadora Vinarta S.A.S","PERSONA JURIDICA",null,"NO APLICA","NO APLICA",null,4123395,null,"N/A",0,4123395,4123394.85,"2023-08-10","2023-08-11","2023-11-17",90,"N/A","N/A","N/A","N/A","N/A",null,"TERMINADO",0.99999996362220944]
["OC261",2023,"ORDEN DE COMPRA 114386","https://www.colombiacompra.gov.co/tienda-virtual-del-estado-colombiano/ordenes-compra/114386","ORDEN DE COMPRA","ACUERDO MARCO DE PRECIOS","No aplica","ADQUISICIÓN DE ELEMENTOS DIDÁCTICOS, DEPORTIVOS, TECNOLÓGICOS, PAPELERÍA Y FERRETERÍA PARA LAS INSTITUCIONES EDUCATIVAS IED LA CANDELARIA Y IED ESCUELA NACIONAL DE COMERCIO (ESNALCO) EN EL MARCO DEL PROYECTO 1608 DENOMINADO: “LA CANDELARIA PEDAGÓGICA BASES SOLIDAD PARA LA VIDA”","INVERSION",null,null,null,null,"O23011601120000001608",1,900741497,"TECNOPHONE COLOMBIA SAS","PERSONA JURIDICA",null,"NO APLICA","NO APLICA",null,22293191,null,"N/A",0,22293191,22293190.850000001,"2023-08-10","2023-08-11","2023-11-17",90,"N/A","N/A","N/A","N/A","N/A",null,"TERMINADO",0.99999999327148825]
["OC262",2023,"ORDEN DE COMPRA 114387","https://www.colombiacompra.gov.co/tienda-virtual-del-estado-colombiano/ordenes-compra/114387","ORDEN DE COMPRA","ACUERDO MARCO DE PRECIOS","No aplica","ADQUISICIÓN DE ELEMENTOS DIDÁCTICOS, DEPORTIVOS, TECNOLÓGICOS, PAPELERÍA Y FERRETERÍA PARA LAS INSTITUCIONES EDUCATIVAS IED LA CANDELARIA Y IED ESCUELA NACIONAL DE COMERCIO (ESNALCO) EN EL MARCO DEL PROYECTO 1608 DENOMINADO: “LA CANDELARIA PEDAGÓGICA BASES SOLIDAD PARA LA VIDA”","INVERSION",null,null,null,null,"O23011601120000001608",1,805013342,"COMERCIALIZADORA MUNDIAL","PERSONA JURIDICA",null,"NO APLICA","NO APLICA",null,1287202,null,"N/A",0,1287202,1287202.3899999999,"2023-08-10","2023-08-11","2023-11-17",90,"N/A","N/A","N/A","N/A","N/A",null,"TERMINADO",1.0000003029827484]
["FLDC-CPS-263-2023",2023,"FLDC-CPS-263-2023","https://community.secop.gov.co/Public/Tendering/OpportunityDetail/Index?noticeUID=CO1.NTC.4721016&isFromPublicArea=True&isModal=False","PRESTACION DE SERVICIOS","SELECCION ABREVIADA MENOR CUANTIA","No aplica","PRESTAR SERVICIOS CON EL FIN DE LLEVAR A CABO ACTIVIDADES QUE FOMENTEN LA RESIGNIFICACIÓN DEL TRABAJO DE CUIDADO ADEMÁS DE CREAR ESPACIOS DE ALIVIO PARA LOS CUIDADORES EN LA LOCALIDAD EN EL MARCO DEL PROYECTO 1663 LA CANDELARIA REDISTRIBUTIVA DEMOCRATIZANDO EL TRABAJO DE CUIDADO","INVERSION",null,null,null,null,"O23011601060000001663",20,900453166,"DREAMS EVENT PLANNING SERVICES SAS","PERSONA JURIDICA",null,"NO APLICA","NO APLICA",null,191031757,null,"N/A",0,191031757,104204653,"2023-08-24","2023-08-29","2024-02-28",180,"N/A","N/A","N/A","N/A","N/A",null,"EJECUCION",{"$f":"IF(ISERROR(AB277/AA277),\"-\",(AB277/AA277))","v":0.5454834035788092}]
["FDLC-COP-264-2023",2023,"FDLC-LP-001-2023","https://community.secop.gov.co/Public/Tendering/OpportunityDetail/Index?noticeUID=CO1.NTC.4527761&isFromPublicArea=True&isModal=False","OBRA","LICITACION PUBLICA","No aplica","REALIZAR EL DIAGNOSTICO Y LAS OBRAS DE CONSERVACIÓN Y ACCIONES DE MOVILIDAD DE LA MALLA VIAL URBANA PRIORIZADA POR EL FDLC A PRECIOS UNITARIOS CON FORMULA DE REAJUSTE Y A MONTO AGOTABLE, EN CUMPLIMIENTO DE LAS METAS VIGENCIA 2023","INVERSION",null,null,null,null,"O23011604490000002020",37,900283268,"RETIN INGENIERIA S.A.S.","PERSONA JURIDICA",null,"NO APLICA","NO APLICA",null,2457035215,null,"N/A",0,2457035215,491407043,"2023-08-29","2023-09-12","2024-03-11",180,"N/A","N/A","N/A","N/A","N/A",null,"EJECUCION",0.2]
["FDLC-CON-265-2023",2023,"FDLC-CMA-001-2023","https://community.secop.gov.co/Public/Tendering/OpportunityDetail/Index?noticeUID=CO1.NTC.4805656&isFromPublicArea=True&isModal=False","INTERVENTORIA","CONCURSO DE MERITOS ABIERTO","No aplica","REALIZAR LA INTERVENTORÍA TÉCNICA ADMINISTRATIVA FINANCIERA JURÍDICA SOCIAL AMBIENTAL Y SALUD Y SEGURIDAD EN EL TRABAJO AL CONTRATO DE OBRA PÚBLICA QUE TENDRÁ POR OBJETO CONTRACTUAL REALIZAR EL DIAGNÓSTICO Y LAS OBRAS DE CONSERVACIÓN Y ACCIONES DE MOVILIDAD DE LA MALLA VIAL URBANA PRIORIZADA POR EL","INVERSION",null,null,null,null,"O23011604490000002020",47,830018821,"TECNUMEC S.A.S","PERSONA JURIDICA",null,"NO APLICA","NO APLICA",null,351752844,null,"N/A",0,351752844,0,"2023-09-07","2023-09-12","2024-04-11",210,"N/A","N/A","N/A","N/A","N/A",null,"EJECUCION",0]
["FDLC-CPS-266-2023",2023,"FDLC-SAMC-005-2023_4","https://community.secop.gov.co/Public/Tendering/OpportunityDetail/Index?noticeUID=CO1.NTC.4877960&isFromPublicArea=True&isModal=False","PRESTACION DE SERVICIOS","SELECCION ABREVIADA MENOR CUANTIA","No aplica","PRESTAR SERVICIOS PARA REALIZAR ACTIVIDADES QUE PROMUEVAN LA PREVENCIÓN DE VIOLENCIA INTRAFAMILIAR Y SEXUAL SOBRE POBLACIONES EN SITUACIONES DE RIESGO Y VULNERACIÓN DE DERECHOS EN EL MARCO DEL PROYECTO 1662 LA CANDELARIA TERRITORIO LIBRE DE VIOLENCIA INTRAFAMILIAR Y SEXUAL","INVERSION",null,null,null,null,"O23011601060000001662",9,900360948,"CORPORACIÓN COLECTIVO DIGERATI","PERSONA JURIDICA",null,"NO APLICA","NO APLICA",null,103306924,null,"N/A",0,103306924,0,"2023-09-15","2023-09-22","2024-02-21",150,"N/A","N/A","N/A","N/A","N/A",null,"EJECUCION",{"$f":"IF(ISERROR(AB280/AA280),\"-\",(AB280/AA280))","v":0}]
["FDLC-SEG-267-2023",2023,"FDLC-SAMC-006-2023","https://community.secop.gov.co/Public/Tendering/OpportunityDetail/Index?noticeUID=CO1.NTC.4896514&isFromPublicArea=True&isModal=False","SEGUROS","SELECCION ABREVIADA MENOR CUANTIA","No aplica","Contratar los seguros que amparen los intereses patrimoniales actuales y futuros, así como los bienes de propiedad del fondo local de la candelaria, que estén bajo su responsabilidad y custodia y aquellos que sean adquiridos para desarrollar las funciones inherentes a su actividad, así como cualquier otra póliza de seguros que requiera la entidad en el desarrollo de su actividad.","FUNCIONAMIENTO",null,null,null,null,"O212020200701030571354 - O212020200701030571351 - O212020200701030571355",1,860524654,"Aseguradora Solidaria de Colombia Entidad Cooperativa","PERSONA JURIDICA",null,"NO APLICA","NO APLICA",null,89222993,null,"N/A",0,89222993,0,"2023-09-15","2023-09-15","2024-10-22",403,"N/A","N/A","N/A","N/A","N/A",null,"EJECUCION"]
["FDLC-CPS-268-2023",2023,"FDLC-LP-002-2023","https://community.secop.gov.co/Public/Tendering/OpportunityDetail/Index?noticeUID=CO1.NTC.4833625&isFromPublicArea=True&isModal=False","PRESTACION DE SERVICIOS","LICITACION PUBLICA","No aplica","PRESTAR LOS SERVICIOS LOGÍSTICOS Y TÉCNICOS NECESARIOS PARA LA REALIZACIÓN DE LOS EVENTOS, FIESTAS Y FESTIVALES DE LA LOCALIDAD DE LA CANDELARIA EN EL MARCO DEL PROYECTO 1625: \"LA CANDELARIA CULTURAL, ARTÍSTICA Y PATRIMONIAL\"","INVERSION",null,null,null,null,"O23011601210000001625",13,890802221,"Adescubrir Travel & Adventure SAS","PERSONA JURIDICA",null,"NO APLICA","NO APLICA",null,774350922,null,"N/A",0,774350922,368300973,"2023-09-18","2023-09-26","2024-03-25",180,"N/A","N/A","N/A","N/A","N/A",null,"EJECUCION",0.47562540772696338]
["FDLC-SEG-269-2023",2023,"FDLC-IMC-008-2023","https://community.secop.gov.co/Public/Tendering/OpportunityDetail/Index?noticeUID=CO1.NTC.4970128&isFromPublicArea=True&isModal=False","SEGUROS","MINIMA CUANTIA","No aplica","CONTRATAR UNA PÓLIZA COLECTIVA DE SEGURO DE VIDA PARA LOS EDILES DE LA JUNTA ADMINISTRADORA LOCAL DEL FONDO DE DESARROLLO LOCAL DE LA CANDELARIA","FUNCIONAMIENTO",null,null,null,null,"O21202020070103010271311",1," 860037013","COMPAÑIA MUNDIAL DE SEGUROS SA","PERSONA JURIDICA",null,"NO APLICA","NO APLICA",null,4458959,null,"N/A",0,{"$f":"+W283+X283+Z283","v":4458959},0,"2023-09-29","2023-10-02","2024-08-15",318,"N/A","N/A","N/A","N/A","N/A",null,"EJECUCION",0]
["FDLC-CC-270-2023",2023,"FDLC-IMC-009-2023","https://community.secop.gov.co/Public/Tendering/OpportunityDetail/Index?noticeUID=CO1.NTC.4974722&isFromPublicArea=True&isModal=False","PRESTACION DE SERVICIOS","MINIMA CUANTIA","No aplica","ADQUIRIR CARPETAS PARA LA ORGANIZACIÓN DEL ARCHIVO Y GESTIÓN DOCUMENTAL DEL FONDO DE DESARROLLO LOCAL DE LA CANDELARIA","FUNCIONAMIENTO",null,null,null,null,"O2120201003023219999",5,830085106,"COMERCIALIZADORA VIMEL LTDA","PERSONA JURIDICA",null,"NO APLICA","NO APLICA",null,4919200,null,"N/A",0,4919200,0,"2023-10-02","2023-10-13","2024-01-12",90,"N/A","N/A","N/A","N/A","N/A",null,"TERMINADO",0]
["FDLC-CPS-271-2023",2023,"FDLC-IMC-010-2023","https://community.secop.gov.co/Public/Tendering/OpportunityDetail/Index?noticeUID=CO1.NTC.4979713&isFromPublicArea=True&isModal=False","PRESTACION DE SERVICIOS","MINIMA CUANTIA","No aplica","PRESTAR LOS SERVICIOS DE MANTENIMIENTO PREVENTIVO Y CORRECTIVO PARA LOS EQUIPOS DE CÓMPUTO, RECURSOS TECNOLÓGICOS Y DEMÁS EQUIPOS DE OFICINA DE PROPIEDAD DE LA ALCALDÍA LOCAL DE LA CANDELARIA","FUNCIONAMIENTO",null,null,null,null,"O21202020080787130",1,19322393,"JAMES RIVEROS TELLEZ","PERSONA NATURAL",null,"NO APLICA","NO APLICA",null,19073000,null,"N/A",0,19073000,5010950,"2023-10-04","2023-10-10","2024-10-09",365,"N/A","N/A","N/A","N/A","N/A",null,"EJECUCION",0.26272479421171291]
["OC272",2023,"ORDEN DE COMPRA 117212","https://www.colombiacompra.gov.co/tienda-virtual-del-estado-colombiano/ordenes-compra/117212","ORDEN DE COMPRA","ACUERDO MARCO DE PRECIOS","No aplica","ADQUIRIR LICENCIAS DE SOFTWARE PARA LA ALCALDIA LOCAL DE LA CANDELARIA POR MEDIO DEL INSTRUMENTO DE AGREGACIÓN DE DEMANDA PARA LA ADQUISICIÓN DE SOFTWARE POR CATÁLOGO QUE REQUIERAN LAS ENTIDADES ESTATALES CCE�139-IAD-2022","FUNCIONAMIENTO",null,null,null,null,"O212010100502030101",1,9010105231,"Soluciones Orión Sucursal Colombia","PERSONA JURIDICA",null,null,null,null,43306008,null,"N/A",0,43306008,43306008,"2023-10-05","2023-10-05","2023-12-09",64,"N/A","N/A","N/A","N/A","N/A",null,"TERMINADO",1]
["FDLC-SUM-273-2023",2023,"FDLC-IMC-011-2023","https://community.secop.gov.co/Public/Tendering/OpportunityDetail/Index?noticeUID=CO1.NTC.5053014&isFromPublicArea=True&isModal=true&asPopupView=true","COMPRAVENTA","MINIMA CUANTIA","No aplica","REALIZAR A MONTO AGOTABLE EL SUMINISTRO DE MATERIALES Y REPUESTOS DE FERRETERÍA SEGÚN LAS ESPECIFICACIONES Y REQUERIMIENTOS TÉCNICOS PARA EL MANTENIMIENTO PREVENTIVO Y CORRECTIVO DE LOS INMUEBLES PROPIEDAD DEL FONDO DE DESARROLLO LOCAL DE LA CANDELARIA","FUNCIONAMIENTO",null,null,null,null,"O2120201004024299991",6,9005574981,"JEDISMAR SAS","PERSONA JURIDICA",null,"NO APLICA","NO APLICA",null,29986000,null,"N/A",0,29986000,29986000,"2023-11-01","2023-11-02","2023-12-01",30,"N/A","N/A","N/A","N/A","N/A",null,"TERMINADO"]
["FDLC-COP-274-2023",2023,"FDLC-LP-003-2023","https://community.secop.gov.co/Public/Tendering/OpportunityDetail/Index?noticeUID=CO1.NTC.4953222&isFromPublicArea=True&isModal=true&asPopupView=true","OBRA","LICITACION PUBLICA","No aplica","REALIZAR EL DIAGNOSTICO Y LAS OBRAS DE CONSERVACIÓN Y ACCIONES DE MOVILIDAD DEL ESPACIO PUBLICO PRIORIZADO POR EL FDLC A PRECIOS UNITARIOS Y A MONTO AGOTABLE","INVERSION",null,null,null,null,"O23011604490000002020",20,901769884,"CONSORCIO PC","PERSONA JURIDICA",901621980,"PETRA INGENIERIA Y CONSTRUCCIONES SAS 60% ",60,null,2600000000,null,"N/A",0,2600000000,520000000,"2023-10-25","2023-12-11","2024-06-10",210,"N/A","N/A","N/A","N/A","N/A",null,"EJECUCION"]
[null,null,null,null,null,null,null,null,null,null,null,null,null,null,null,null,null,null,900332538,"CONTRATAR SAS 40%",40,null,null,null,"N/A",null,null,null,null,null,null,null,"N/A","N/A","N/A","N/A"]
["FDLC-CPS-275-2023",2023,"FDLC-SAMC-007-2023","https://community.secop.gov.co/Public/Tendering/OpportunityDetail/Index?noticeUID=CO1.NTC.5022927&isFromPublicArea=True&isModal=true&asPopupView=true","Prestación de servicios","SELECCION ABREVIADA MENOR CUANTIA","No aplica","PRESTAR LOS SERVICIOS PARA LA EJECUCION TECNICA Y LOGÌSTICA DE ACTIVIDADES QUE CONTRIBUYAN A LA VINCULACION DE PERSONAS VICTIMAS DEL CONFLICTO ARMADO DE LA LOCALIDAD DE LA CANDELARIA EN PROCESOS PRODUCTIVOS A TRAVES DE LA CELEBRACION DE EVENTOS CULTURALESGASTRONÒMICOS Y EL FORTALECIMIENTO DE LOS PRO","INVERSION",null,null,null,null,"O23011603390000001777",5,900693739,"G&D GERENCIA Y DIRECCION DE PROYECTOS S.A.S","PERSONA JURIDICA",null,"NO APLICA","NO APLICA",null,106507500,null,"N/A",0,106507500,null,"2023-11-07","2023-11-09","2024-02-29",90,1,"21 días","N/A","N/A","N/A",null,"EJECUCION"]
["OC276",2023,"ORDEN DE COMPRA 119274","https://www.colombiacompra.gov.co/tienda-virtual-del-estado-colombiano/ordenes-compra/119274","ORDEN DE COMPRA","ACUERDO MARCO DE PRECIOS","No aplica","ADQUISICION DE PRODUCTOSDE PAPELERÍA , NECESARIOS PARA ELCUMPLIMIENTO DE LAS FUNCIONESADMINISTRATIVAS Y MISIONALES DE LAALCALDÍA LOCAL DE LA CANDELARIA","FUNCIONAMIENTO",null,null,null,null,"O2120201003023212801",1,10125834,"GS-POLYFLEX","PERSONA JURIDICA",null,"NO APLICA","NO APLICA",null,7772300,null,"N/A",0,7772300,0,"2023-11-08","2023-11-08","2023-12-08",30,"N/A","N/A","N/A","N/A","N/A",null,"TERMINADO"]
["FDLC-CC-277-2023",2023,"FDLC-IMC-012-2023.","https://community.secop.gov.co/Public/Tendering/OpportunityDetail/Index?noticeUID=CO1.NTC.5036011&isFromPublicArea=True&isModal=False","COMPRAVENTA","MINIMA CUANTIA","No aplica","ADQUISICIÓN, INSTALACIÓN Y PUESTA EN FUNCIONAMIENTO DE UN EQUIPO DE AIRE ACONDICIONADO PARA EL DATA CENTER DE LA ALCALDÍA LOCAL DE LA CANDELARIA","INVERSION",null,null,null,null,"O23011605570000002021",6,830080652,"SOLUCIONES INTEGRALES DE OFICINA SAS","PERSONA JURIDICA",null,"NO APLICA","NO APLICA",null,5846000,null,"N/A",0,5846000,7772300,"2023-11-14","2023-11-16","2023-12-15",30,"N/A","N/A","N/A","N/A","N/A",null,"TERMINADO"]
["FDLC-CON-278-2023",2023,"FDLC-CMA-002-2023","https://community.secop.gov.co/Public/Tendering/OpportunityDetail/Index?noticeUID=CO1.NTC.5055139&isFromPublicArea=True&isModal=False","INTERVENTORIA","CONCURSO DE MERITOS ABIERTO","No aplica","REALIZAR LA INTERVENTORÍA TÉCNICA, ADMINISTRATIVA, FINANCIERA, JURÍDICA, SOCIAL, AMBIENTAL Y SALUD Y SEGURIDAD EN EL TRABAJO AL CONTRATO DE OBRA PÚBLICA QUE TENDRÁ POR OBJETO CONTRACTUAL: REALIZAR EL DIAGNOSTICO Y LAS OBRAS DE CONSERVACIÓN Y ACCIONES DE MOVILIDAD DEL ESPACIO PUBLICO PRIORIZADO POR E","INVERSION",null,null,null,null,"O23011604490000002020",41,901573477,"ALMA Interventoría & Consultoría S.A.S","PERSONA JURIDICA",null,"NO APLICA","NO APLICA",null,349820629,null,"N/A",0,349820629,0,"2023-11-21","2023-12-11","2024-08-10",240,"N/A","N/A","N/A","N/A",null,null,"EJECUCION"]
["FLDC-CPS-279-2023",2023,"FDLC-SAMC-008-2023","https://community.secop.gov.co/Public/Tendering/OpportunityDetail/Index?noticeUID=CO1.NTC.5124516&isFromPublicArea=True&isModal=False","PRESTACION DE SERVICIOS","SELECCION ABREVIADA MENOR CUANTIA","No aplica","PRESTAR SERVICIOS ORIENTADOS A LA REALIZACIÓN DE ACCIONES INTEGRALES QUE PROMUEVAN EL RECONOCIMIENTO Y PROTECCIÓN DE LOS DERECHOS DE LAS MUJERES PERTENECIENTES A LA COMUNIDAD DE CANDELARIA, EN EL MARCO DEL PROYECTO 1781 LA CANDELARIA SEGURA: MUJERES LIBRES DE VIOLENCIAS","INVERSION",null,null,null,null,"O23011603400000001781",7,900810120,"People Security SAS","PERSONA JURIDICA",null,"NO APLICA","NO APLICA",null,152964990,null,"N/A",0,152964990,0,"2023-11-23","2023-11-30","2024-03-29",120,"N/A","N/A","N/A","N/A",null,null,"EJECUCION",0]
["FDLC-CPS-280-2023",2023,"FDLC-CPS-280-2023","https://community.secop.gov.co/Public/Tendering/OpportunityDetail/Index?noticeUID=CO1.NTC.5221993&isFromPublicArea=True&isModal=False","Contrato de Prestación de Servicios Profesionales y de Apoyo a la gestión","Contratación directa","No aplica","PRESTAR SERVICIOS PROFESIONALES PARA APOYAR EN LA FORMULACIÓN, PRESENTACIÓN, EVALUACIÓN Y SEGUIMIENTO JURÍDICO DEL PROYECTO '1706 LA CANDELARIA RECREATIVA PARQUES PARA LA VIDA' Y DE LOS PROYECTOS DE INVERSIÓN DE LA ALCALDÍA LOCAL DE LA CANDELARIA ","INVERSION",null,null,null,null,"O23011602330000001706",1,1081515216,"GUSTAVO ALFREDO FIERRO PARRA ","PERSONA NATURAL",null,"NO APLICA","NO APLICA",null,6000000,null,"N/A",0,6000000,0,"2023-11-23","2023-11-23","2023-12-22",30,"N/A","N/A","N/A","N/A","N/A",null,"TERMINADO",0]
["FDLC-CPS-281-2023",2023,"FDLC-IMC-013-2023","https://community.secop.gov.co/Public/Tendering/OpportunityDetail/Index?noticeUID=CO1.NTC.5159083&isFromPublicArea=True&isModal=true&asPopupView=true","PRESTACION DE SERVICIOS","MINIMA CUANTIA","No aplica","PRESTAR SERVICIOS LOGÍSTICOS Y TÉCNICOS TENDIENTES A DESARROLLAR LAS ACTIVIDADES FORMATIVAS PARA NIÑOS, NIÑAS Y ADOLESCENTES DE LA ESCUELA DE ARTES CIRCENSES DE LA CANDELARIA","INVERSION",null,null,null,null,"O23011601210000001625",4,900764350,"Generacion de Talentos S.A.S.","PERSONA JURIDICA",null,"NO APLICA","NO APLICA",null,27312764,null,"N/A",0,27312764,0,"2023-11-28","2023-12-05","2024-04-04",120,"N/A","N/A","N/A","N/A","N/A",null,"EJECUCION",0]
["FLDC-CPS-282-2023",2023,"FDLC-SAMC-009-2023 ","https://community.secop.gov.co/Public/Tendering/OpportunityDetail/Index?noticeUID=CO1.NTC.5131954&isFromPublicArea=True&isModal=true&asPopupView=true","PRESTACION DE SERVICIOS","SELECCION ABREVIADA MENOR CUANTIA","No aplica","GARANTIZAR EL SUMINISTRO DE INSUMOS Y APOYO LOGÍSTICO PARA LA REALIZACIÓN DE EVENTOS RECREODEPORTIVOS QUE PROMUEVAN LA EXPRESIÓN ARTÍSTICA Y CULTURAL DE LOS HABITANTES DE LA LOCALIDAD EN EL MARCO DEL PROYECTO 1625 LA CANDELARIA CULTURAL, ARTISTICA Y PATRIMONIAL","INVERSION",null,null,null,null,"O23011601210000001625",5,900018217,"FUNDACIÓN OTRO ROLLO SOCIAL","PERSONA JURIDICA",null,"NO APLICA","NO APLICA",null,75956045,null,"N/A",0,75956045,0,"2023-11-28","2023-12-01","2024-03-31",120,"N/A","N/A","N/A","N/A","N/A",null,"EJECUCION",0]
["FDLC-CPS-283-2023",2023,"FDLC-CPS-283-2023","https://community.secop.gov.co/Public/Tendering/OpportunityDetail/Index?noticeUID=CO1.NTC.5249742&isFromPublicArea=True&isModal=true&asPopupView=true","Contrato de Prestación de Servicios Profesionales y de Apoyo a la gestión","Contratación directa","No aplica","PRESTAR SERVICIOS PROFESIONALES EN MATERIA JURIDICA Y EN ARTICULACIÓN INTERINSTITUCIONAL A LA ALCALDIA LOCAL DE LA CANDELARIA.","INVERSION",null,null,null,null,"O23011605570000002021",1,1012433345,"LISETH VIVIANA GUERRA GONZALEZ","PERSONA NATURAL",null,"NO APLICA","NO APLICA",null,6000000,null,"N/A",0,6000000,0,"2023-11-28","2023-11-29","2023-12-28",30,"N/A","N/A","N/A","N/A","N/A",null,"TERMINADO",0]
["FDLC-CPS-284-2023",2023,"FDLC-CPS-284-2023","https://community.secop.gov.co/Public/Tendering/ContractNoticeManagement/Index?currentLanguage=es-CO&Page=login&Country=CO&SkinName=CCE","Contrato de Prestación de Servicios Profesionales y de Apoyo a la gestión","CONTRATACION DIRECTA","No aplica","PRESTAR SERVICIOS PROFESIONALES AL FONDO DE DESARROLLO LOCAL DE LA CANDELARIA PARA APOYAR EL SEGUIMIENTO, LIQUIDACIÓN, DEPURACIÓN Y CONSOLIDACIÓN DE LA INFORMACIÓN DE LAS OBLIGACIONES POR PAGAR, DERIVADAS DE LA GESTIÓN CONTRACTUAL DE LA ENTIDAD Y SU RESPECTIVA LIQUIDACIÓN","INVERSION",null,null,null,null,"O23011602330000001706",1,53120588,"YOSMILE RODRÍGUEZ CUARTAS","PERSONA NATURAL",null,"NO APLICA","NO APLICA",null,5000000,null,"N/A",0,5000000,0,"2023-11-28","2023-11-29","2023-12-28",30,"N/A","N/A","N/A","N/A","N/A",null,"TERMINADO",0]
["FDLC-CIA-285-2023",2023,"FDLC-CIA-285-2023","https://community.secop.gov.co/Public/Tendering/OpportunityDetail/Index?noticeUID=CO1.NTC.5289683&isFromPublicArea=True&isModal=true&asPopupView=true","Contratos o convenios Interadministrativos (con valor)","Contratación Directa (con ofertas)","No aplica","REALIZAR LA GERENCIA INTEGRAL PARA EL DESARROLLO DE ACTIVIDADES LOGÍSTICAS Y ADMINISTRATIVAS TENDIENTES A CONSOLIDAR A LA CANDELARIA COMO UNA LOCALIDAD SEGURA PARA LOS EMPRENDEDORES GARANTIZANDO LAS ACTIVIDADES ASOCIADAS AL DESARROLLO ECONÓMICO LOCAL Y EL SUMINISTRO DE ELEMENTOS NECESARIOS PARA LA D","INVERSION",null,null,null,null,"O23011601060000001628 - O23011603480000001788",1,900258772,"FONDO DE DESARROLLO DE PROYECTOS DE CUNDINAMARCA","PERSONA JURIDICA",null,"NO APLICA","NO APLICA",null,658318182,null,"N/A",0,658318182,0,"2023-12-12","2023-12-29","2024-03-28",90,"N/A","N/A","N/A","N/A","N/A",null,"EJECUCION",0]
["FDLC-CIA-286-2023",2023,"FDLC-CIA-286-2023","https://community.secop.gov.co/Public/Tendering/OpportunityDetail/Index?noticeUID=CO1.NTC.5290125&isFromPublicArea=True&isModal=true&asPopupView=true","Contratos o convenios Interadministrativos (con valor)","Contratación Directa (con ofertas)","No aplica","Aunar esfuerzos técnicos administrativos y financieros para promover el ejercicio y la restitución de la autonomía e inclusión social de las personas con discapacidad PcD por medio del otorgamiento de DISPOSITIVOS DE ASISTENCIA PERSONAL ayudas técnicas desde una perspectiva de derechos humanos que p","INVERSION",null,null,null,null,"O23011601060000001664",1,900959051,"SUBRED INTEGRADA DE SERVICIO DE SALUD CENTRO ORIENTE ESE 1","PERSONA JURIDICA",null,"NO APLICA","NO APLICA",null,99999993,null,"N/A",0,99999993,0,"2023-12-12","NO HA INICIADO","2024-06-01",180,"N/A","N/A","N/A","N/A","N/A",null,"EJECUCION",0]
["FDLC-CPS-287-2023",2023,"FDLC-CPS-287-2023","https://community.secop.gov.co/Public/Tendering/OpportunityDetail/Index?noticeUID=CO1.NTC.5304638&isFromPublicArea=True&isModal=true&asPopupView=true","Contrato de Prestación de Servicios Profesionales y de Apoyo a la gestión","Contratación directa","No aplica","PRESTAR SERVICIOS DE APOYO TÉCNICO EN LA IMPLEMENTACIÓN DE ACCIONES Y ESTRATEGIAS CULTURALES MUSICALES Y ARTÍSTICAS EN EL MARCO DE LAS POLITICAS PLANES PROGRAMAS Y PROYECTOS PARA EL CUMPLIMIENTO DE LAS METAS DEL PLAN DE DESARROLLO LOCAL 20212024","INVERSION",null,null,null,null,"O23011601120000001608",1,1022991588,"Rodrigo Delgado Diaz","PERSONA NATURAL",null,"NO APLICA","NO APLICA",null,2800000,null,"N/A",0,2800000,0,"2023-12-12","2023-12-15","2024-01-14",30,"N/A","N/A","N/A","N/A","N/A",null,"TERMINADO",0]
["FDLC-CPS-288-2023",2023,"FDLC-CPS-288-2023","https://community.secop.gov.co/Public/Tendering/OpportunityDetail/Index?noticeUID=CO1.NTC.5304584&isFromPublicArea=True&isModal=true&asPopupView=true","Contrato de Prestación de Servicios Profesionales y de Apoyo a la gestión","Contratación directa","No aplica","PRESTAR SERVICIOS PROFESIONALES AL FONDO DE DESARROLLO LOCAL DE LA CANDELARIA PARA LA FORMULACIÓN Y SEGUIMIENTO DE PLANES POLITICAS PROGRAMAS Y PROYECTOS DE INVERSIÓN RELACIONADOS CON LA ESTRATEGIA DE CUIDADO PREVENCIÓN DE VIOLENCIAS Y PROYECTOS CON ENFOQUE DE GÉNERO DEL PLAN DE DESARROLLO LOCAL","INVERSION",null,null,null,null,"O23011601060000001662",1,51881732,"NUBIA PRIETO ORTEGON","PERSONA NATURAL",null,"NO APLICA","NO APLICA",null,4514000,null,"N/A",0,4514000,0,"2023-12-12","2023-12-14","2024-01-13",30,"N/A","N/A","N/A","N/A","N/A",null,"TERMINADO",0]
["FDLC-CPS-289-2023",2023,"FDLC-CPS-289-2023","https://community.secop.gov.co/Public/Tendering/OpportunityDetail/Index?noticeUID=CO1.NTC.5306287&isFromPublicArea=True&isModal=true&asPopupView=true","Contrato de Prestación de Servicios Profesionales y de Apoyo a la gestión","Contratación directa","No aplica","PRESTAR SERVICIOS PROFESIONALES AL FONDO DE DESARROLLO LOCAL DE LA CANDELARIA PARA APOYAR CONTABLEMENTE EL SEGUIMIENTO LIQUIDACIÓN DEPURACIÓN Y CONSOLIDACIÓN DE LA INFORMACIÓN DE LAS OBLIGACIONES POR PAGAR DERIVADAS DE LA GESTIÓN CONTRACTUAL DE LA ENTIDAD ESPECIALMENTE DE LOS PROYECTOS DE INVERSIÓN","INVERSION",null,null,null,null,"O23011603400000001781",1,1016023497,"EDGAR ANTONIO PEREZ BELTRAN","PERSONA NATURAL",null,"NO APLICA","NO APLICA",null,4514000,null,"N/A",0,4514000,0,"2023-12-12","2023-12-13","2024-01-12",30,"N/A","N/A","N/A","N/A","N/A",null,"TERMINADO",0]
["FDLC-CPS-290-2023",2023,"FDLC-CPS-290-2023","https://community.secop.gov.co/Public/Tendering/OpportunityDetail/Index?noticeUID=CO1.NTC.5310909&isFromPublicArea=True&isModal=true&asPopupView=true","Contrato de Prestación de Servicios Profesionales y de Apoyo a la gestión","Contratación directa","No aplica","PRESTAR SERVICIOS DE APOYO TÉCNICO Y ADMINISTRATIVO CON RELACIÓN A LOS PROYECTOS DE PREVENCIÓN DE VIOLENCIA INTRAFAMILIAR Y SEXUAL QUE DESARROLLE LA ALCALDÍA LOCAL DE LA CANDELARIA Y LOS DEMÁS REQUERIDOS POR EL DESPACHO DEL LA ALCALDESA LOCAL","INVERSION",null,null,null,null,"O23011601060000001662",1,51791113,"LIBIA JEANNETTE ALARCON VILLALOBOS","PERSONA NATURAL",null,"NO APLICA","NO APLICA",null,2800000,null,"N/A",0,2800000,0,"2023-12-12","2023-12-14","2024-01-13",30,"N/A","N/A","N/A","N/A","N/A",null,"TERMINADO",0]
["FDLC-CPS-291-2023",2023,"FDLC-CPS-291-2023","https://community.secop.gov.co/Public/Tendering/OpportunityDetail/Index?noticeUID=CO1.NTC.5313502&isFromPublicArea=True&isModal=true&asPopupView=true","Contrato de Prestación de Servicios Profesionales y de Apoyo a la gestión","Contratación directa","No aplica","PRESTAR SERVICIOS PROFESIONALES ALFONDO DE DESARROLLO LOCAL DE LA CANDELARIA EN LA ADMINISTRACIÓN DE LAS CASAS COMUNITARIAS DE LA LOCALIDAD DE LA CANDELARIA DE  CONFORMIDAD CON EL ACUERDOLOCAL 006 DE 2013 PROPENDIENDO POR QUE SEAN TERRITORIOS LIBRES DE VIOLENCIASCONTRA LAS MUJERES","INVERSION",null,null,null,null,"O23011603400000001781",1,1032473249,"MANUELA LOPEZ GIRALDO","PERSONA NATURAL",null,"NO APLICA","NO APLICA",null,4514000,null,"N/A",0,4514000,0,"2023-12-13","2023-12-15","2024-01-13",30,"N/A","N/A","N/A","N/A","N/A",null,"TERMINADO",0]
["FDLC-CPS-292-2023",2023,"FDLC-CPS-292-2023","https://community.secop.gov.co/Public/Tendering/OpportunityDetail/Index?noticeUID=CO1.NTC.5308772&isFromPublicArea=True&isModal=true&asPopupView=true","Contrato de Prestación de Servicios Profesionales y de Apoyo a la gestión","Contratación directa","No aplica","PRESTAR SERVICIOS DE APOYO EN LAS ACTIVIDADES DE PROTECCIÓN CUIDADO Y CONSERVACIÓN DE LA MALLA VIAL COMO COMPONENTE PATRIMONIAL DE LA CANDELARIA","INVERSION",null,null,null,null,"O23011604490000002020",1,52854525,"ESPERANZA BUITRAGO LOAIZA","PERSONA NATURAL",null,"NO APLICA","NO APLICA",null,1845000,null,"N/A",0,1845000,0,"2023-12-13","2023-12-14","2024-01-13",30,"N/A","N/A","N/A","N/A","N/A",null,"TERMINADO",0]
["FDLC-CPS-293-2023",2023,"FDLC-CPS-293-2023","https://community.secop.gov.co/Public/Tendering/OpportunityDetail/Index?noticeUID=CO1.NTC.5309015&isFromPublicArea=True&isModal=true&asPopupView=true","Contrato de Prestación de Servicios Profesionales y de Apoyo a la gestión","Contratación directa","No aplica","PRESTAR SERVICIOS DE APOYO EN LAS ACTIVIDADES DE PROTECCIÓN CUIDADO Y CONSERVACIÓN DE LA MALLA VIAL COMO COMPONENTE PATRIMONIAL DE LA CANDELARIA","INVERSION",null,null,null,null,"O23011604490000002020",1,79976027,"JAIME ALIRIO RUIZ CALDERON","PERSONA NATURAL",null,"NO APLICA","NO APLICA",null,1845000,null,"N/A",0,1845000,0,"2023-12-13","2023-12-14","2024-01-13",30,"N/A","N/A","N/A","N/A","N/A",null,"TERMINADO",0]
["FDLC-CPS-294-2023",2023,"FDLC-CPS-294-2023","https://community.secop.gov.co/Public/Tendering/OpportunityDetail/Index?noticeUID=CO1.NTC.5308777&isFromPublicArea=True&isModal=true&asPopupView=true","Contrato de Prestación de Servicios Profesionales y de Apoyo a la gestión","Contratación directa","No aplica","PRESTAR SERVICIOS PROFESIONALES PARA APOYAR EN LA FORMULACION TECNICA Y SEGUIMIENTOS DE PLANES POLITICAS PROGRAMAS Y PROYECTOS RELACIONADOS CON OBRAS E INFRAESTRUCTURA QUE DESARROLLE LA ALCALDIA LOCAL DE LA CANDELARIA","INVERSION",null,null,null,null,"O23011604490000002020",1,1014267890,"BRYAN FELIPE PRIETO MANZANO","PERSONA NATURAL",null,"NO APLICA","NO APLICA",null,4514000,null,"N/A",0,4514000,0,"2023-12-13","2023-12-14","2024-01-13",30,"N/A","N/A","N/A","N/A","N/A",null,"TERMINADO",0]
["FDLC-CPS-295-2023",2023,"FDLC-CPS-295-2023","https://community.secop.gov.co/Public/Tendering/OpportunityDetail/Index?noticeUID=CO1.NTC.5323212&isFromPublicArea=True&isModal=true&asPopupView=true","Contrato de Prestación de Servicios Profesionales y de Apoyo a la gestión","Contratación directa","No aplica","PRESTAR SERVICIOS PROFESIONALES AL FONDO DE DESARROLLO LOCAL DE LA CANDELARIA PARA APOYAR CONTABLEMENTE EL SEGUIMIENTO LIQUIDACIÓN DEPURACIÓN Y CONSOLIDACIÓN DE LA INFORMACIÓN DE LAS OBLIGACIONES POR PAGAR DERIVADAS DE LA GESTIÓN CONTRACTUAL DE LA ENTIDAD ESPECIALMENTE DEL PROYECTO DE INVERSIÓN 1706","INVERSION",null,null,null,null,"O23011602330000001706",1,1102802441,"NHUR PERTUZ SANCHEZ","PERSONA NATURAL",null,"NO APLICA","NO APLICA",null,4514000,null,"N/A",0,4514000,0,"2023-12-15","2023-12-19","2024-01-18",30,"N/A","N/A","N/A","N/A","N/A",null,"TERMINADO",0]
["FDLC-CPS-296-2023",2023,"FDLC-SAMC-010-2023","https://community.secop.gov.co/Public/Tendering/OpportunityDetail/Index?noticeUID=CO1.NTC.5221382&isFromPublicArea=True&isModal=true&asPopupView=true","OBRA","SELECCION ABREVIADA MENOR CUANTIA","No aplica","REALIZAR EL MANTENIMIENTO YO ADECUACIÓN DE LA INFRAESTRUCTURA FÍSICA ASÍ COMO EL SUMINISTRO E INSTALACIÓN DE MOBILIARIO URBANO A REMPLAZAR PARA LOS PARQUES VECINALES DE BOLSILLO Y EL PARQUE LA CONCORDIA DE LA LOCALIDAD DE LA CANDELARIA QUE CONFORMAN EN SISTEMA DISTRITAL DE PARQUES POR MEDIO DE PRECI","INVERSION",null,null,null,null,"O23011602330000001706",1,901743595,"UNION TEMPORAL PARQUE LA INDEPENDENCIA","PERSONA JURIDICA",800229583,"EQUIPOS Y CONSTRUCCIONES VAREGO SAS   ",50,null,225000000,null,"N/A",0,225000000,0,"2023-12-15","2024-01-09","2024-04-08",90,"N/A","N/A","N/A","N/A","N/A",null,"EJECUCION",0]
[null,null,null,null,null,null,null,null,null,null,null,null,null,null,null,null,null,null,900388354,"VAREGO SAS",50,null,null,null,"N/A",null,null,0,null,null,null,null,"N/A","N/A","N/A","N/A"]
["FDLC-CPS-297-2023",2023,"FDLC-CPS-295-2023 A","https://community.secop.gov.co/Public/Tendering/OpportunityDetail/Index?noticeUID=CO1.NTC.5324596&isFromPublicArea=True&isModal=False","CPS","Contratación directa","No aplica","PRESTAR SERVICIOS ASISTENCIALES PARA LA OPERACIÓN SEGUIMIENTO Y CUMPLIMIENTO DE LOS PROCESOS Y PROCEDIMIENTOS DEL SERVICIO APOYOS ECONÓMICOS TIPO C REQUERIDOS PARA LA GARANTÍA DE LOS DERECHOS DE LA POBLACIÓN MAYOR EN ELMARCO DE LA POLÍTICA PÚBLICA SOCIAL PARA EL ENVEJECIMIENTO Y LA VEJEZ EN EL DISTRITO CAPITAL A CARGO DE LA ALCALDÍA LOCAL.","INVERSION",null,null,null,null,"O23011601010000001605",1,1000004995,"JORGE ENRIQUE ESPINOSA MENDEZ","PERSONA NATURAL",null,"NO APLICA","NO APLICA",null,"2,700,000",null,"N/A",null,{"$error":"#VALUE!"},0,"2023-12-18","2023-12-19","2024-01-18",30,"N/A","N/A","N/A","N/A","N/A",null,"TERMINADO","-"]
["FDLC-CPS-298-2023",2023,"FDLC-CPS-298-2023","https://community.secop.gov.co/Public/Tendering/OpportunityDetail/Index?noticeUID=CO1.NTC.5336714&isFromPublicArea=True&isModal=true&asPopupView=true","Contrato de Prestación de Servicios Profesionales y de Apoyo a la gestión","Contratación directa","No aplica","PRESTAR SERVICIOS ASISTENCIALES PARAAPOYAR EN LAS TAREAS RELACIONADAS CON LA GESTIÓN DOCUMENTAL DE LA ALCALDIALOCAL DE LA CANDELARIA","INVERSION",null,null,null,null,"O23011605570000002021",1,53121023,"NUBIA ALEJANDRA TOVAR NUÑEZ","PERSONA NATURAL",null,"NO APLICA","NO APLICA",null,2750000,null,"N/A",0,2750000,0,"2023-12-19","2023-12-20","2024-01-19",30,"N/A","N/A","N/A","N/A","N/A",null,"TERMINADO",0]
["FDCL-CPS-299-2023",2023,"FDCL-CPS-299-2023","https://community.secop.gov.co/Public/Tendering/OpportunityDetail/Index?noticeUID=CO1.NTC.5336239&isFromPublicArea=True&isModal=true&asPopupView=true","Contrato de Prestación de Servicios Profesionales y de Apoyo a la gestión","Contratación directa","No aplica","PRESTAR SERVICIOS PROFESIONALES EN MATERIA JURÍDICA Y EN ARTICULACIÓN INTERINSTITUCIONAL A LA ALCALDÍA LOCAL DE LA CANDELARIA","INVERSION",null,null,null,null,"O23011605570000002021",1,1095800182,"LEIDY KARINA CASTILLO PUENTES","PERSONA NATURAL",null,"NO APLICA","NO APLICA",null,6000000,null,"N/A",0,6000000,0,"2023-12-19","2023-12-27","2024-01-19",30,"N/A","N/A","N/A","N/A","N/A",null,"TERMINADO",0]
["FDLC-CPS-300-2023",2023,"FDLC-CPS-300-2023","https://community.secop.gov.co/Public/Tendering/OpportunityDetail/Index?noticeUID=CO1.NTC.5342092&isFromPublicArea=True&isModal=true&asPopupView=true","Contrato de Prestación de Servicios Profesionales y de Apoyo a la gestión","Contratación directa","No aplica","PRESTAR SERVICIOS PROFESIONALES AL FONDO DE DESARROLLO LOCAL DE LA CANDELARIA PARA APOYAR EN LA FORMULACIÓN IMPLEMENTACIÓN EJECUCIÓN Y SEGUIMIENTO DE PLANES POLITICAS PROGRAMAS Y PROYECTOS DE INVERSIÓN DEL FONDO DE DESARROLLO LOCAL DE LA CANDELARIA","INVERSION",null,null,null,null,"O23011605570000002021",1,1070331732,"IVONNE JULIETH ROJAS ROJAS","PERSONA NATURAL",null,"NO APLICA","NO APLICA",null,4514000,null,"N/A",0,4514000,0,"2023-12-21","2023-12-21","2024-01-20",30,"N/A","N/A","N/A","N/A","N/A",null,"TERMINADO",0]
["FDLC-CPS-301-2023",2023,"FDLC-CPS-301-2023","https://community.secop.gov.co/Public/Tendering/OpportunityDetail/Index?noticeUID=CO1.NTC.5341978&isFromPublicArea=True&isModal=true&asPopupView=true","Contrato de Prestación de Servicios Profesionales y de Apoyo a la gestión","Contratación directa","No aplica","PRESTAR SERVICIOS PROFESIONALES PARA APOYAR EN LA FORMULACION PRESENTACIÓN EVALUACIÓN Y SEGUIMIENTO JURÍDICO DE LOS PROYECTOS DE INVERSION DE LA ALCALDÍA LOCAL DE LA CANDELARIA","INVERSION",null,null,null,null,"O23011605570000002021",1,80120031,"LUIS ALFONSO ORJUELA ORTIZ","PERSONA NATURAL",null,"NO APLICA","NO APLICA",null,4514000,null,"N/A",0,4514000,0,"2023-12-21","2023-12-26","2024-01-25",30,"N/A","N/A","N/A","N/A","N/A",null,"TERMINADO",0]
["FDLC-CPS-302-2023",2023,"FDLC-CPS-302-2023","https://community.secop.gov.co/Public/Tendering/OpportunityDetail/Index?noticeUID=CO1.NTC.5342296&isFromPublicArea=True&isModal=true&asPopupView=true","Contrato de Prestación de Servicios Profesionales y de Apoyo a la gestión","Contratación directa","No aplica","PRESTAR SERVICIOS PROFESIONALES PARALA PLANEACIÓN IMPLEMENTACIÓN Y FORTALECIMIENTO DE PROYECTOS RELACIONADOSCON LAS ACTIVIDADES DEL TURISMO LOCAL A TRAVÉS DE LA GESTIÓN ARTICULACIÓN EINTERLOCUCIÓN CON CIUDADANÍA Y ENTIDADES PÚBLICAS Y PRIVADAS LAS EMPRESAS YEMPRENDIMIENTOS CULTURALES Y CREATIVOS DE","INVERSION",null,null,null,null,"O23011605570000002021",1,11803256,"HAROLD GARCIA CHAVERRA","PERSONA NATURAL",null,"NO APLICA","NO APLICA",null,4514000,null,"N/A",0,4514000,0,"2023-12-21","2023-12-28","2024-01-27",30,"N/A","N/A","N/A","N/A","N/A",null,"TERMINADO",0]
["FDLC-CPS-303-2023",2023,"FDLC-CPS-303-2023","https://community.secop.gov.co/Public/Tendering/OpportunityDetail/Index?noticeUID=CO1.NTC.5346026&isFromPublicArea=True&isModal=true&asPopupView=true","Contrato de Prestación de Servicios Profesionales y de Apoyo a la gestión","Contratación directa","No aplica","PRESTAR SERVICIOS PROFESIONALES AL FONDO DE DESARROLLO LOCAL DE LA CANDELARIA PARA LA FORMULACIÓN Y SEGUIMIENTO DE PLANES POLITICAS PROGRAMAS Y PROYECTOS DE INVERSIÓN RELACIONADOS CON LA ESTRATEGIA DE CUIDADO PREVENCIÓN DE VIOLENCIAS Y PROYECTOS CON ENFOQUE DE GÉNERO DEL PLAN DE DESARROLLO LOCAL","INVERSION",null,null,null,null,"O23011603400000001781",1,53029129,"YINNA PAOLA OJEDA GÓMEZ","PERSONA NATURAL",null,"NO APLICA","NO APLICA",null,4514000,null,"N/A",0,4514000,0,"2023-12-22","2023-12-22","2024-01-21",30,"N/A","N/A","N/A","N/A","N/A",null,"TERMINADO",0]
["FDLC-CPS-304-2023",2023,"FDLC-CPS-304-2023","https://community.secop.gov.co/Public/Tendering/OpportunityDetail/Index?noticeUID=CO1.NTC.5345918&isFromPublicArea=True&isModal=true&asPopupView=true","Contrato de Prestación de Servicios Profesionales y de Apoyo a la gestión","Contratación directa","No aplica","PRESTAR SERVICIOS PROFESIONALES AL FONDO DE DESARROLLO LOCAL DE LA CANDELARIA PARA LA FORMULACIÓN Y SEGUIMIENTO DE PLANES POLITICAS PROGRAMAS Y PROYECTOS DE INVERSIÓN RELACIONADOS CON LA ESTRATEGIA DE CUIDADO PREVENCIÓN DE VIOLENCIAS Y PROYECTOS CON ENFOQUE DE GÉNERO DEL PLAN DE DESARROLLO LOCAL","INVERSION",null,null,null,null,"O23011605570000002021",1,1016046406,"MARIA VANESSA JUEZ MORENO","PERSONA JURIDICA",null,"NO APLICA","NO APLICA",null,4514000,null,"N/A",0,4514000,0,"2023-12-22","2023-12-22","2024-01-21",30,"N/A","N/A","N/A","N/A","N/A",null,"TERMINADO",0]
["FDLC-CPS-305-2023",2023,"FDLC-CPS-305-2023","https://community.secop.gov.co/Public/Tendering/OpportunityDetail/Index?noticeUID=CO1.NTC.5344852&isFromPublicArea=True&isModal=true&asPopupView=true","Contrato de Prestación de Servicios Profesionales y de Apoyo a la gestión","Contratación directa","No aplica","PRESTAR SERVICIOS PROFESIONALES AL FONDO DE DESARROLLO LOCAL PARA ARTICULAR LOS PROCESOS  DE COMUNICACIÓN DE LA ALCALDIA LOCAL DE LA CANDELARIA","INVERSION",null,null,null,null,"O23011605570000002021",1,52934811,"ANGIE MARCELA ALVARADO GAONA","PERSONA NATURAL",null,"NO APLICA","NO APLICA",null,6000000,null,"N/A",0,6000000,0,"2023-12-22","2023-12-26","2024-01-25",30,"N/A","N/A","N/A","N/A","N/A",null,"TERMINADO",0]
["FDLC-CPS-306-2023",2023,"FDLC-SAMC-011-2023","https://community.secop.gov.co/Public/Tendering/OpportunityDetail/Index?noticeUID=CO1.NTC.5295103&isFromPublicArea=True&isModal=False","OBRA","SELECCION ABREVIADA MENOR CUANTIA","No aplica","REALIZAR POR EL SISTEMA DE PRECIOS UNITARIOS A MONTO AGOTABLE Y SIN FÓRMULA DE REAJUSTE LAS OBRAS DE REPARACIÓN LOCATIVAS Y MANTENIMIENTO PREVENTIVO Y/O CORRECTIVO, DE LOS BIENES INMUEBLES A CARGO DEL FONDO DE DESARROLLO LOCAL DE LA CANDELARIA","INVERSION",null,null,null,null,"O23011605570000002021",1,901621980,"PETRA INGENIERIA Y CONSTRUCCIONES SAS","PERSONA JURIDICA",null,"NO APLICA","NO APLICA",null,152000000,null,"N/A",0,152000000,0,"2023-12-26","2024-01-16","2024-05-15",120,"N/A","N/A","N/A","N/A","N/A",null,"EJECUCION",0]
["FDLC-CPS-307-2023",2023,"FDLC-CPS-307-2023","https://community.secop.gov.co/Public/Tendering/OpportunityDetail/Index?noticeUID=CO1.NTC.5356118&isFromPublicArea=True&isModal=true&asPopupView=true","Contrato de Prestación de Servicios Profesionales y de Apoyo a la gestión","Contratación directa","No aplica","PRESTAR SERVICIOS ASISTENCIALES AL FONDO DE DESARROLLO LOCAL DE LA CANDELARIA PARA APOYAR EL SEGUIMIENTO, LIQUIDACIÓN, DEPURACIÓN Y CONSOLIDACIÓN DE LA INFORMACIÓN DE LAS OBLIGACIONES POR PAGAR DERIVADAS DE LA GESTIÓN CONTRACTUAL DE LA ENTIDAD Y SU RESPECTIVA LIQUIDACIÓN, ESPECIALMENTE, DEL PROYECTO DE INVERSIÓN 1706: LA CANDELARIA RECREATIVA: PARQUES PARA LA VIDA","INVERSION",null,null,null,null,"O23011602330000001706",1,1026279653,"DIEGO JOHAN VARGAS TORRES","PERSONA NATURAL",null,"NO APLICA","NO APLICA",null,1726667,null,"N/A",0,1726667,0,"2023-12-27","2023-12-27","2024-01-23",30,"N/A","N/A","N/A","N/A","N/A",null,"TERMINADO",0]
["OC123325",2023,"ORDEN DE COMPRA 123325","https://www.colombiacompra.gov.co/tienda-virtual-del-estado-colombiano/ordenes-compra/123325","ORDEN DE COMPRA","SELECCION ABREVIADA MENOR CUANTIA","No aplica","Que el Fondo de Desarrollo Local de La Candelaria cuenta con el proyecto de inversión registrado en el Banco de Proyectos de Inversión del Distrito, No.1606 La Candelaria pedagógica: más y me-jor tiempo en los colegios, cuyo objeto es: “Brindar servicio de apoyo financiero para el acceso y permanencia en educación superior o postsecundaria, que incluye apoyo financiero y subsidios en las modalidades técnico, profesional, tecnólogo, profesional universitario o postsecundaria","INVERSION",null,null,null,null,"O23011601140000001606",1,830110570,"NEX COMPUTER S.A.S.","PERSONA JURIDICA",null,"NO APLICA","NO APLICA",null,269077478.39999998,null,"N/A",null,269077478.39999998,0,"2023-12-27","2023-12-27","2024-03-25",90,"N/A","N/A","N/A","N/A","N/A",null,"EJECUCION",0]
["FDLC-CPS-308-2023",2023,"FDLC-CPS-308-2023","https://community.secop.gov.co/Public/Tendering/OpportunityDetail/Index?noticeUID=CO1.NTC.5361219&isFromPublicArea=True&isModal=true&asPopupView=true","Contrato de Prestación de Servicios Profesionales y de Apoyo a la gestión","Contratación directa","No aplica","PRESTAR SERVICIOS PROFESIONALES PARA BRINDAR ACOMPAÑAMIENTO Y SEGUIMIENTO EN LA IMPLEMENTACIÓN DEL SISTEMA DE GESTIÓN DE SEGURIDAD Y SALUD EN EL TRABAJO DE LA ALCALDIA LOCAL DE LA CANDELARIA","INVERSION",null,null,null,null,"O23011601240000001626",1,1020834874,"NICOLAS ANDRES MARTINEZ AGUILAR","PERSONA NATURAL",null,"NO APLICA","NO APLICA",null,4514000,null,"N/A",0,4514000,0,"2023-12-28","2023-12-29","2024-01-28",30,"N/A","N/A","N/A","N/A","N/A",null,"TERMINADO",0]
["FDLC-CPS-309-2023",2023,"FDLC-CPS-309-2023","https://community.secop.gov.co/Public/Tendering/OpportunityDetail/Index?noticeUID=CO1.NTC.5361756&isFromPublicArea=True&isModal=true&asPopupView=true","Contrato de Prestación de Servicios Profesionales y de Apoyo a la gestión","Contratación directa","No aplica","PRESTAR SERVICIOS PROFESIONALES AL FONDO DE DESARROLLO LOCAL DE LA CANDELARIA PARA APOYAR EN LA FORMULACIÓN, IMPLEMENTACIÓN, EJECUCIÓN Y SEGUIMIENTO DE PLANES, POLITICAS, PROGRAMAS Y PROYECTOS DE INVERSIÓN RELACIONADOS CON EL DESARROLLO ECONÓMICO DE LAS EMPRESAS Y EMPRENDIMIENTOS DE LA LOCALIDAD","INVERSION",null,null,null,null,"O23011601240000001627",1,1018456945,"GIOVANNI ANDRES RAMIREZ HUILA","PERSONA NATURAL",null,"NO APLICA","NO APLICA",null,4514000,null,"N/A",0,4514000,0,"2023-12-28","2023-12-29","2024-01-28",30,"N/A","N/A","N/A","N/A","N/A",null,"TERMINADO",0]
["FDLC-CPS-310-2023",2023,"FDLC-CPS-310-2023","https://community.secop.gov.co/Public/Tendering/OpportunityDetail/Index?noticeUID=CO1.NTC.5363477&isFromPublicArea=True&isModal=true&asPopupView=true","Contrato de Prestación de Servicios Profesionales y de Apoyo a la gestión","Contratación directa","No aplica","PRESTAR SERVICIOS PROFESIONALES AL FONDO DE DESARROLLO LOCAL DE LA CANDELARIA PARA APOYAR EN LA FORMULACIÓN, IMPLEMENTACIÓN, EJECUCIÓN Y SEGUIMIENTO DE PLANES, POLITICAS, PROGRAMAS Y PROYECTOS DE INVERSIÓN DEL FONDO DE DESARROLLO LOCAL DE LA CANDELARIA","INVERSION",null,null,null,null,"O23011605570000002021",1,1121330020,"AMLORI ELENA PLATA PEREZ","PERSONA NATURAL",null,"NO APLICA","NO APLICA",null,4514000,null,"N/A",0,{"$f":"+W327+X327+Z327","v":4514000},0,"2023-12-28","2023-12-29","2024-01-28",30,"N/A","N/A","N/A","N/A","N/A",null,"TERMINADO",0]
["Total",null,null,null,null,null,null,null," ",null,null,null,null," ",null,null,null,null,null,null,null,null,{"$f":"SUM(W14:W327)","v":31777446973.400002},{"$f":"SUM(X14:X327)","v":-99150501},{"$f":"SUM(Y14:Y327)","v":170},{"$f":"SUM(Z14:Z327)","v":1578572820},{"$f":"SUM(AA14:AA327)","v":{"$error":"#VALUE!"}}," ",null,null,null,null,null,null,null,null,null,null,null,{"$f":"SUM(AN14:AN327)","v":216.82508234297745}]
[" "," "," "," "," "," "," "," ",null," "," "," "," ",null," ",null,null,null,null,null,null,null,null,null,null,null,null,null," "," "," "," "," "," "," "," "," "," "," "," "]
[]
[null,null,null,null,null,null,null,null,null,null,null,null,null,null,null,null,null,null,null,null,null,null,null,null,null,null,{"$f":"SUBTOTAL(9,AA14:AA327)","v":{"$error":"#VALUE!"}},{"$f":"SUBTOTAL(9,AB14:AB327)","v":23193704077.499996}]
[]
[]
[]
[]
[]
[]
[]
[]
[null,2022]
[]
[null,null,null,null,null,null,null,null,null,null,null,null,null,null,null,null,null,null,null,null,null,null,null,null,null,null,{"$f":"SUBTOTAL(9,AA131:AA327)","v":{"$error":"#VALUE!"}},{"$f":"SUBTOTAL(9,AB131:AB327)","v":18683691669.5}]

{"sheet":"Tipo","index":1,"n_rows":67,"n_cols":5,"rows_kept":67,"cut":false,"hidden":true,"merged":[]}
[null,null,"Modalidad de Selección","afectacion","Naturaleza Jurídica"]
[1,null,"Concurso de méritos","Funcionamiento","Persona Natural"]
[2,null,"Contratación directa","Inversión","Persona Jurídica"]
[3,null,"Contratación mínima cuantia","Operación","Unión Temporal"]
[4,null,"Selección abreviada",null,"Consorcio"]
[5,null,"Licitación pública",null,"Sociedad con objeto único"]
[6,null,"Otros",null,"Persona jurídica extranjera"]
[7,null,"Régimen especial",null,"Sin ánimo de lucro"]
[8,null,null,null,"Cabildo indígena"]
[9,null,null,null,"Consejo comunitario de las comunidades negras"]
[10,null,"Selección abreviada",null,"Organizaciones de segundo nivel"]
[11,null,"Subasta inversa ",null,"Formas o expresiones organizativas, afrocolombianas, raizales y palenqueras"]
[12,null,"Bolsas de productos",null,"Organizaciones de base de comunidades negras "]
[13,null,"Acuerdo marco de precios ",null,"Asociaciones de autoridades tradicionales indígenas"]
[14,null,"Selección abreviada por menor cuantía "]
[15]
[16,null,"contratacion directa"]
[17,null,"Urgencia manifiesta"]
[18,null,"Contratación de empréstitos"]
[19,null,"Contratos interadministrativos"]
[20,null,"Contratación de bienes y servicios en el sector Defensa "]
[null,"SECTOR","Contratos para el desarrollo de actividades científicas y tecnológicas"]
[1,"Gestión Pública","Contratos de encargo fiduciario que celebren las entidades territoriales cuando inician el Acuerdo de Reestructuración de Pasivos"]
[{"$f":"+A23+1","v":2},"Gobierno","Cuando no exista pluralidad de oferentes en el mercado"]
[{"$f":"+A24+1","v":3},"Hacienda","Prestación de servicios profesionales y de apoyo a la gestión, o para la ejecución de trabajos artísticos que sólo puedan encomendarse a determinadas personas naturales"]
[4,"Planeación","El arrendamiento o adquisición de inmuebles"]
[5,"Desarrollo Económico, Industria y Turismo","Contratación de bienes y servicios de la Dirección Nacional de Inteligencia (DNI)"]
[6,"Educación"]
[7,"Salud"]
[8,"Integración Social","Decreto 92 de 2017"]
[9,"Cultura, Recreación y Deporte","No aplica"]
[10,"Ambiente"]
[11,"Movilidad","SECOP I"]
[12,"Hábitat","SECOP II"]
[13,"Mujeres"]
[14,"Seguridad, Convivencia y Justicia","Bogotá Mejor para Todos"]
[15,"Gestión Juridíca","Un Nuevo Contrato Social y Ambiental para la Bogotá del Siglo XXI"]
[16,"descentralizado territorialmente"]
[]
[null,"16 - AL","Estado"]
[null,null,"Celebrado o por iniciar"]
[null,"Plan de desarrollo distrital","En ejecución"]
[null,"Un nuevo contrato social y ambiental para la Bogotá del Siglo XXI","Terminado"]
[null,null,"Liquidado"]
[]
[null,"Tipo"]
[null,"Obra pública"]
[null,"Consultoría"]
[null,"Interventoría"]
[null,"Contratos de prestación de servicios"]
[null,"Contratos de prestación de servicios profesionales y de apoyo a la gestión"]
[null,"Compraventa de bienes muebles"]
[null,"Compraventa de bienes inmuebles"]
[null,"Arrendamiento de bienes muebles"]
[null,"Arrendamiento de bienes inmuebles"]
[null,"Seguro"]
[null,"Suministro"]
[null,"Empréstitos"]
[null,"Fiducia mercantil o encargo fiduciario"]
[null,"Concesión "]
[null,"Convenios de cooperacion"]
[null,"Convenios/Contratos interadministrativos"]
[null,"Convenios de apoyo o convenios de asociación "]
[null,"Convenios solidarios"]
[null,"Asociaciones Público Privadas"]
[null,"Otros"]
[null,"Otros gastos"]